Workbook

Sheet LDC Info
Z3: 1 | AA3: Alectra Utilities Corporation-Brampton Rate Zone
Z4: 2 | AA4: Alectra Utilities Corporation-Enersource Rate Zone
Z5: 3 | AA5: Alectra Utilities Corporation-Horizon Utilities Rate Zone
Z6: 4 | AA6: Alectra Utilities Corporation-PowerStream Rate Zone
Z7: 5 | AA7: Alectra Utilities Corporation-Guelph Rate Zone
Z8: 6 | AA8: Algoma Power Inc.
Z9: 7 | AA9: Atikokan Hydro Inc.
Z10: 8 | AA10: Bluewater Power Distribution Corporation
Z11: 9 | AA11: Brantford Power Inc.
Z12: 10 | AA12: Burlington Hydro Inc.
Z13: 11 | AA13: Canadian Niagara Power Inc.
D14: Utility Name | E14: Burlington Hydro Inc. | Z14: 12 | AA14: Centre Wellington Hydro Ltd.
Z15: 13 | AA15: Chapleau Public Utilities Corporation
D16: Assigned EB Number | E16: EB-2020-0007 | Z16: 14 | AA16: Cooperative Hydro Embrun Inc.
Z17: 15 | AA17: E.L.K. Energy Inc.
D18: Name of Contact and Title | E18: Sally Blackwell, VP Regulatory Compliance and Asset Management | Z18: 16 | AA18: Elexicon Energy Inc.-Whitby Rate Zone
Z19: 17 | AA19: Elexicon Energy Inc.-Veridian Rate Zone
D20: Phone Number | E20: 905-336-4373 | Z20: 18 | AA20: Energy+ Inc.
Z21: 19 | AA21: Entegrus Powerlines Inc.-For Entegrus-Main Rate Zone
D22: Email Address | E22: sblackwell@burlingtonhydro.com | Z22: 20 | AA22: Entegrus Powerlines Inc.-For Former St. Thomas Energy Rate Zone
Z23: 21 | AA23: ENWIN Utilities Ltd.
D24: Test Year | E24: 2021 | Z24: 22 | AA24: EPCOR Electricity Distribution Ontario Inc.
Z25: 23 | AA25: ERTH Power Corporation - ERTH Power Main Rate Zone
D26: Bridge Year | E26: =IF(ISBLANK(E24), "", E24-1) -> 2020 | Z26: 24 | AA26: ERTH POWER CORPORATION – GODERICH RATE ZONE
Z27: 25 | AA27: Essex Powerlines Corporation
D28: Last Rebasing Year | E28: 2014 | Z28: 26 | AA28: Festival Hydro Inc.
Z29: 27 | AA29: Fort Frances Power Corporation
A30: Identify the accounting standard used for the test year | Z30: 28 | AA30: Greater Sudbury Hydro Inc.
E31: MIFRS | Z31: 29 | AA31: Grimsby Power Incorporated
Z32: 30 | AA32: Halton Hills Hydro Inc.
A33: ="Did "& E14 &" update its depreciation and capitalization policies?" -> Did Burlington Hydro Inc. update its depreciation and capitalization policies? | Z33: 31 | AA33: Hearst Power Distribution Co. Ltd.
E34: Yes | Z34: 32 | AA34: Hydro 2000 Inc.
Z35: 33 | AA35: Hydro Hawkesbury Inc.
A36: If "yes" to cell E34, were the changes in policies reflected in a prior rebasing application? | Z36: 34 | AA36: Hydro One Networks Inc.
E37: Yes | Z37: 35 | AA37: Hydro One Networks Inc.-Former Haldimand County Hydro Inc. Service Area
Z38: 36 | AA38: Hydro One Networks Inc.-Former Norfolk Power Distribution Inc. Service Area
A39: ="When did "&E14&" update its actual depreciation and capitalization policies?" -> When did Burlington Hydro Inc. update its actual depreciation and capitalization policies? | Z39: 37 | AA39: Hydro One Networks Inc.-Former Woodstock Hydro Services Inc. Service Area
E40: 2001-01-01 | F40: 2013 | Z40: 38 | AA40: Hydro One Remote Communites Inc.
Z41: 39 | AA41: Hydro Ottawa Limited
A42: Identify the year the applicant adopted IFRS for financial reporting purposes | Z42: 40 | AA42: InnPower Corporation
E43: 2015 | Z43: 41 | AA43: Kingston Hydro Corporation
Z44: 42 | AA44: Kitchener-Wilmot Hydro Inc.
Z45: 43 | AA45: Lakefront Utilities Inc.
A46: ="Is " & E14 & " applying for cost recovery for the test and/or future year(s) for Green Energy initiatives?" -> Is Burlington Hydro Inc. applying for cost recovery for the test and/or future year(s) for Green Energy initiatives? | Z46: 44 | AA46: Lakeland Power Distribution Ltd.
E47: No | Z47: 45 | AA47: Lakeland Power Distribution Ltd.-Parry Sound Service Area
Z48: 46 | AA48: London Hydro Inc.
A49: ="Is " & E14 & " an embedded distributor?" -> Is Burlington Hydro Inc. an embedded distributor? | E49: No | Z49: 47 | AA49: Milton Hydro Distribution Inc.
Z50: 48 | AA50: Newmarket-Tay Power Distribution Ltd.-For Former Midland Power Utility Rate Zone
Z51: 49 | AA51: Newmarket-Tay Power Distribution Ltd.-For Newmarket-Tay Power Main Rate Zone
B52: Notes | Z52: 50 | AA52: Niagara Peninsula Energy Inc.
Z53: 51 | AA53: Niagara-on-the-Lake Hydro Inc.
C54: Pale green cells represent input cells. | Z54: 52 | AA54: North Bay Hydro Distribution Limited - Espanola service territory
Z55: 53 | AA55: North Bay Hydro Distribution Limited - North Bay service territory
C56: Pale blue cells represent drop-down lists. The applicant should select the appropriate item from the drop-down list. | Z56: 54 | AA56: Northern Ontario Wires Inc.
Z57: 55 | AA57: Oakville Hydro Electricity Distribution Inc.
C58: White cells contain fixed values, automatically generated values or formulae. | N58: =IF(LEN($G58)>1, (SUMPRODUCT(--($C$81:$C$1003=$C58),--($A$81:$A$1003=$D58), --($B$81:$B$1003=$B58&"_TOTAL"), $L$1:$L$889)), "") ->  | O58: =IF(LEN($G58)>1, (SUMPRODUCT(--($C$81:$C$1003=$C58),--($A$81:$A$1003=$D58), --($B$81:$B$1003=$B58&"_TOTAL"), $M$1:$M$889)), "") ->  | Z58: 56 | AA58: Orangeville Hydro Limited
Z59: 57 | AA59: Orillia Power Distribution Corporation
Z60: 58 | AA60: Oshawa PUC Networks Inc.
Z61: 59 | AA61: Ottawa River Power Corporation
Z62: 60 | AA62: Peterborough Distribution Incorporated
Z63: 61 | AA63: PUC Distribution Inc.
Z64: 62 | AA64: Renfrew Hydro Inc.
Z65: 63 | AA65: Rideau St. Lawrence Distribution Inc.
Z66: 64 | AA66: Sioux Lookout Hydro Inc.
Z67: 65 | AA67: Synergy North Corporation-Kenora Rate Zone
Z68: 66 | AA68: Synergy North Corporation-Thunder Bay Rate Zone
Z69: 67 | AA69: Tillsonburg Hydro Inc.
Z70: 68 | AA70: Toronto Hydro-Electric System Limited
Z71: 69 | AA71: Wasaga Distribution Inc.
Z72: 70 | AA72: Waterloo North Hydro Inc.
Z73: 71 | AA73: Welland Hydro-Electric System Corp.
Z74: 72 | AA74: Wellington North Power Inc.
Z75: 73 | AA75: Westario Power Inc.

Sheet Index
A15: 1 | B15: LDC Information Sheet | E15: 20 | F15: App.2-G: Service Reliability Indicators
A16: 2 | B16: Index | E16: 21 | F16: App.2-H: Other Operating Revenue (TO BE UPDATED AT THE DRAFT RATE ORDER STAGE)
A17: 3 | B17: Cost of Service Application Flowchart | E17: 22 | F17: App.2-I: Load Forecast CDM Adjustment Workform
A18: 4 | B18: List of Key References | E18: 23 | F18: App.2-IA: Load Forecast Data Instructions
A19: 5 | B19: App.2-A: List of Requested Approvals | E19: 24 | F19: App.2-IB: Actual and Forecast Load and Customer Data
A20: 6 | B20: App.2-AA: Capital Projects Table | E20: 25 | F20: App.2-JA: OM&A Summary Analysis (TO BE UPDATED AT THE DRAFT RATE ORDER STAGE)
A21: 7 | B21: App.2-AB: Capital Expenditures (TO BE UPDATED AT THE DRAFT RATE ORDER STAGE) | E21: 26 | F21: App.2-JB: Recoverable OM&A Cost Driver Table
A22: 8 | B22: App. 2-AC: Customer Engagement Worksheet | E22: 27 | F22: App.2-JC: OM&A Programs Table
A23: 9 | B23: App.2-B: General Accounting Instructions | E23: 28 | F23: App.2-K: Employee Costs (TO BE UPDATED AT THE DRAFT RATE ORDER STAGE)
A24: 10 | B24: App.2-BA: Fixed Asset Continuity Schedule | E24: 29 | F24: App.2-L: Recoverable OM&A Cost per Customer and per FTE
A25: 11 | B25: Appendix 2-BB: Service Life Comparison | E25: 30 | F25: App.2-M: Regulatory Costs Schedule (TO BE UPDATED AT THE DRAFT RATE ORDER STAGE)
A26: 12 | B26: App.2-C_DepExp: Depreciation and Amortization Expense | E26: 31 | F26: App.2-N: Shared Services and Corporate Cost Allocation
A27: 13 | B27: App.2-D: Overhead Expenses | E27: 32 | F27: App.2-OA: Capital Structure and Cost of Capital
A28: 14 | B28: App.2-EA: Account 1575 PP&E Deferral Account (2015 IFRS Adopters) - CONTACT OEB STAFF IF TAB REQUIRED | E28: 33 | F28: App.2-OB: Debt Instruments
A29: 15 | B29: App.2-EB: Account 1576 - Accounting Changes Under CGAAP (2012 Changes) - CONTACT OEB STAFF IF TAB REQUIRED | E29: 34 | F29: App.2-Q: Cost of Serving Embedded Distributor(s)
A30: 16 | B30: App.2-EC: Account 1576 - Accounting Changes Under CGAAP (2013 Changes) - CONTACT OEB STAFF IF TAB REQUIRED | E30: 35 | F30: App.2-R: Loss Factors
A31: 17 | B31: App.2-FA: Renewable Generation Connection Investment Summary (TO BE UPDATED AT THE DRAFT RATE ORDER STAGE) | E31: 36 | F31: App.2-S: Stranded Meter Treatment
A32: 18 | B32: App.2-FB: Calculation of Renewable Generation Connection Direct Benefits/Provincial Amount: Renewable Enabling Improvement Investments (TO BE UPDATED AT THE DRAFT RATE ORDER STAGE) | E32: 37 | F32: App.2-Y: Transition to MIFRS Summary Impact - CONTACT OEB STAFF IF TAB REQUIRED
A33: 19 | B33: App.2-FC: Calculation of Renewable Generation Connection Direct Benefits/Provincial Amount: Renewable Expansion Investments (TO BE UPDATED AT THE DRAFT RATE ORDER STAGE) | E33: 38 | F33: App.2-YA: One-Time Incremental IFRS Transition Costs - CONTACT OEB STAFF IF TAB REQUIRED
E34: 39 | F34: App.2-Z: Commodity Expense
A42: Note: | B42: Appendices for the Tariff of Rates and Charges at Current and Proposed Rates, and for the Bill Impacts are now in a separate spreadsheet model. These appendices were formerly 2-Z and 2-W.

Sheet COS Flowchart
B4: Cost of Service Rate Application Schematic
B6: The Cost of Service Rate Application Schematic is a flowchart that is included as a guide for the components of an application. The schematic demonstrates how demand and costs interrelate to derive the revenue requirement and how the revenue requirement is allocated between classes and through fixed/variable splits to derive rates that will be compensatory for the annual revenue requirement, based on the the forecasted demand. There is no form to be filled out; therefore, this Schedule is not required to be filed.

Sheet List of Key References
B2: List of Key References
A4: A list of key references for understanding the Filing Requirements has been embedded in the document below. To access the list of references and associated hyperlinks double-click the icon below.

Sheet App.2-A_Requested_Approvals
G1: File Number: | H1: =EBNUMBER -> EB-2020-0007
G2: Exhibit:
G3: Tab:
G4: Schedule:
G5: Page:
G7: Date:
B9: Appendix 2-A
B10: List of Requested Approvals
B12: The distributor must fill out the following sheet with the complete list of specific approvals requested and relevant section(s) of the legislation must be provided. All approvals, including accounting orders (deferral and variance accounts) new rate classes, revised specific service charges or retail service charges which the applicant is seeking, must be separately identified, as well being clearly documented in the appropriate sections of the application.
B14: Additional requests may be added by copying and pasting blank input rows, as needed.
B16: If additional requests arise, or requested approvals are removed, during the processing of the application, the distributor should update this list.
B18: =CONCATENATE('LDC Info'!E14," is seeking the following approvals in this application:") -> Burlington Hydro Inc. is seeking the following approvals in this application:
B20: 1 | F20: Approval of the 2021 Test Year revenue requirement as proposed in Exhibit 6 – Calculation of Revenue Deficiency or Sufficiency as follows:
B22: 1 | D22: a | F22: Approval of the 2021 Test Year Service revenue requirement of $37,957,812
B24: 1 | D24: b | F24: Approval of the 2021 Test Year Base revenue requirement of $35,068,645
B26: 1 | D26: c | F26: Approval of the 2021 Revenue offsets of $2,889,167
B28: 2 | F28: Approval of 2021 distribution rates and charges, effective May 1, 2021, as proposed in Appendix C - Proposed Tariff of Rates and Charges of Exhibit 8
B30: 3 | F30: Approval of BHI’s Distribution System Plan filed as Appendix A in Exhibit 2
B32: 4 | F32: Approval for an Advanced Capital Module (“ACM”) to implement a new Enterprise Resource Planning system (“ERP”) as set out in Exhibit 2, Section 2.2.3
B34: 5 | F34: Approval of the inclusion into the 2021 opening rate base of BHI’s Connection Cost Recovery Agreement (“CCRA”) payments associated with the Tremaine TS; as documented in Exhibit 2, Section 2.2.4
B36: 6 | F36: Approval of the inclusion into the 2021 opening rate base of BHI’s purchase of two new breakers at the Tremaine TS as documented in Exhibit 2, Section 2.2.4
B38: 7 | F38: Approval of the 2021 load forecast as documented in Exhibit 3
B40: 8 | F40: Approval to continue to use the OEB established deferral Accounts (USoA 1509) to record impacts arising from the COVID-19 Emergency not incorporated into this Application, from May 1, 2021 onwards, including the Sub-Account Lost Revenues Arising from the COVID-19 Emergency for Electricity Distributors and Natural Gas Distributors to record lost revenues as compared to the load forecast approved in this Application
B42: 9 | F42: Approval to incorporate a reduction of 4.4 FTE and associated salaries and benefits of $572,068 in the 2021 Test year to smooth out the impact of differences in FTE over the 2021-2025 Price Cap IR period
B44: 10 | F44: Approval to modify the description of certain Specific Service Charges as set out in Section 8.6 of Exhibit 8
B46: 11 | F46: Approval of a revised loss factor as identified in Section 8.9 of Exhibit 8
B48: 12 | F48: Approval of updated Retail Transmission Service Rates (“RTSRs”), as identified in Section 8.3 of Exhibit 8
B50: 13 | F50: Approvals related to deferral and variance accounts, as set out in Exhibit 9: Deferral and Variance Accounts
B52: 13 | D52: a | F52: Approval for the clearance of the balances recorded in certain Group 1 deferral and variance accounts of $2,433,347 on an interim basis by means of class-specific rate riders and manual adjustments, effective May 1, 2021 to April 30, 2023, as identified in Section 9.3 of Exhibit 9
B54: 13 | D54: b | F54: Approval for the clearance of the balances recorded in certain Group 2 deferral and variance accounts of $2,712,867 by means of class-specific rate riders effective from May 1, 2021 to April 30, 2023 inclusive of 13 b.i. and 13 b.ii.
B56: 13 | D56: b. i. | F56: Approval for the clearance of the balance in its Lost Revenue Adjustment Mechanism Variance Account (“LRAMVA”) of $1,043,612, resulting from its Conservation and Demand Management (“CDM”) activities up to December 31, 2020 as identified Section 4.6.2 of Exhibit 4
B58: 13 | D58: b. ii. | F58: Approval for the clearance of the balance in its USoA Account 1575 - IFRS-CGAP Transitional PP&E Amounts of $829,462, resulting from BHI’s transition to IFRS by means of class-specific rate riders effective from May 1, 2021 to April 30, 2023, as identified in Section 9.1 of Exhibit 9
B60: 13 | D60: c | F60: Approval of the continuation of certain deferral and variance accounts, as set out in Section 9.0.5 of Exhibit 9
B62: 13 | D62: d | F62: Approval of discontinuation of certain deferral and variance accounts, as set out in Section 9.0.5 of Exhibit 9
B64: 14 | F64: Approval to make its current (i.e., 2020) rates provided in Appendix B of Exhibit 8 interim effective May 1, 2021, if the preceding approvals cannot be issued by the OEB in time to implement final rates effective May 1, 2021
B66: 15 | F66: Approval to establish an account to recover any differences between the interim rates and the actual rates effective May 1, 2021 if the preceding approvals cannot be issued by the OEB in time to implement final rates effective May 1, 2021
B68: 16 | F68: Approval of other items or amounts that may be requested by BHI in the course of the proceeding, and such other relief or entitlements that the OEB may grant

Sheet App.2-AA_Capital Projects
I1: File Number: | J1: =EBNUMBER -> EB-2020-0007
I2: Exhibit:
I3: Tab:
I4: Schedule:
I5: Page:
I7: Date:
A9: Appendix 2-AA
A10: Capital Projects Table
A13: Projects | B13: =C13-1 -> 2014 | C13: =D13-1 -> 2015 | D13: =E13-1 -> 2016 | E13: =F13-1 -> 2017 | F13: =G13-1 -> 2018 | G13: =BridgeYear - 1 -> 2019 | H13: =BridgeYear & " Bridge Year" -> 2020 Bridge Year | I13: =TestYear & " Test Year" -> 2021 Test Year
A14: Reporting Basis
A15: System Access
A16: Dundas St Road Widening (Walkers to Appleby) - Region | B16: 0 | C16: 0 | D16: 0 | E16: 0 | F16: 0 | G16: 21368.7 | H16: 65275.49 | I16: 3035948.333
A17: Waterdown Road Widening - City | B17: 0 | C17: 0 | D17: 0 | E17: 0 | F17: 0 | G17: 0 | H17: 0 | I17: 1500000
A18: Other Third Party Projects | B18: 31729 | C18: 260059 | D18: -8997 | E18: 64115.23 | F18: 118765.28 | G18: 34118.56 | H18: 106600.89 | I18: 392315
A19: General Service - Overhead | B19: 684201.75 | C19: 538027 | D19: 1059226.9 | E19: 900619.52 | F19: 1303011.375 | G19: 1791761.38 | H19: 1019174.65 | I19: 1175000
A20: General Service - Underground | B20: 481727.93 | C20: 987712.42 | D20: 1136888.382 | E20: 1021546.39 | F20: 1266616.845 | G20: 1124720.616 | H20: 700987 | I20: 850000
A21: Transformers – New Connections | B21: 724730.3 | C21: 557945.5 | D21: 464257.5 | E21: 912001.097 | F21: 1041437.565 | G21: 757235.85 | H21: 721000 | I21: 630000
A22: Meters – New Connections | B22: 291469.56 | C22: 281513 | D22: 417231 | E22: 363501.62 | F22: 365274.33 | G22: 147679.36 | H22: 245000 | I22: 325000
A23: Suite Metering | B23: 317630 | C23: 66612 | D23: 117860 | E23: 176415.49 | F23: 134951.05 | G23: 157542.36 | H23: 250000 | I23: 404000
A24: Metering Infrastructure and Systems | B24: 0 | C24: 17000 | D24: 42750 | E24: 37124.08 | F24: 55403.56 | G24: 203128.01 | H24: 122500 | I24: 275000
A25: Subdivisions | B25: -403153 | C25: 115271 | D25: 317933 | E25: 300803.34 | F25: 0 | G25: 478634 | H25: 350000 | I25: 450000
A26: Downtown Core Underground Development | B26: 4075 | C26: -36228 | D26: 145809 | E26: 9384.79 | F26: 23985.66 | G26: 571835.36 | H26: 100000 | I26: 0
A27: Commerical 27.6kV Conversion/Relocation | B27: 0 | C27: 0 | D27: 0 | E27: 643203.65 | F27: 96185.54 | G27: 0 | H27: 0 | I27: 0
A28: Bronte TS CCRA True-up | B28: 0 | C28: 0 | D28: 0 | E28: 0 | F28: 0 | G28: 204100 | H28: 0 | I28: 0
A29: Tremaine TS Breakers | B29: 0 | C29: 0 | D29: 0 | E29: 0 | F29: 1000000 | G29: 1000000 | H29: 0 | I29: 0
A30: Tremaine TS CCRA True-up | B30: 0 | C30: 0 | D30: 0 | E30: 0 | F30: 0 | G30: 568000 | H30: 0 | I30: 0
A31: Sub-Total | B31: =SUM(B16:B30) -> 2132410.54 | C31: 2787911.92 | D31: 3692958.782 | E31: 4428715.207 | F31: 5405631.205 | G31: 7060124.196 | H31: 3680538.03 | I31: 9037263.333
A32: System Renewal
A33: Pole Replacement Program | B33: 714475 | C33: 784306 | D33: 651107 | E33: 653587.75 | F33: 863850.355 | G33: 1241160.03 | H33: 437000.3 | I33: 1050000
A34: Underground Rebuilds | B34: 957007 | C34: 518954 | D34: 398030.6183 | E34: 555072.49 | F34: 494575.9553 | G34: 657537.5043 | H34: 367283.05 | I34: 400000
A35: Switchgear Replacement Program | B35: 0 | C35: 0 | D35: 0 | E35: 0 | F35: 0 | G35: 477.47 | H35: 2105.95 | I35: 350000
A36: Station Transformer Replacement Program | B36: 0 | C36: 657653 | D36: 721917 | E36: 710580.18 | F36: 530698.88 | G36: 324737.74 | H36: 341131 | I36: 275000
A37: MS Feeders Cable Replacement | B37: 0 | C37: 0 | D37: 0 | E37: 0 | F37: 0 | G37: 106483.99 | H37: 519477.56 | I37: 200000
A38: Other Substation Renewal | B38: 48751 | C38: 67345 | D38: 0 | E38: 21521 | F38: 21450 | G38: 5840 | H38: 41355.68 | I38: 190000
A39: Transformer Replacement | B39: 310598.7 | C39: 239119.5 | D39: 198967.5 | E39: 390857.613 | F39: 446330.385 | G39: 324529.65 | H39: 309000 | I39: 270000
A40: Switch Replacement Program | B40: 0 | C40: 0 | D40: 0 | E40: 0 | F40: 0 | G40: 87241.74 | H40: 115000 | I40: 220000
A41: Storm Damage | B41: 32570 | C41: 172581 | D41: 0 | E41: 205820.89 | F41: 683859.89 | G41: 108817.49 | H41: 0 | I41: 0
A42: Sub-Total | B42: =SUM(B33:B41) -> 2063401.7 | C42: 2439958.5 | D42: 1970022.118 | E42: 2537439.923 | F42: 3040765.465 | G42: 2856825.614 | H42: 2132353.54 | I42: 2955000
A43: System Service
A44: Intelligent Switches | B44: 175864 | C44: 247326 | D44: 28630 | E44: 21554.41 | F44: 25514.91 | G44: 75703.08 | H44: 0 | I44: 200000
A45: NE Burlington TS Egress | B45: 1372942 | C45: 622252 | D45: 341261 | E45: 0 | F45: 106089.8 | G45: 944613.86 | H45: 277443.09 | I45: 0
A46: Port Nelson MS Switch Gear | B46: 0 | C46: 0 | D46: 0 | E46: 223451.22 | F46: 0 | G46: 0 | H46: 0 | I46: 0
A47: Sub-Total | B47: =SUM(B44:B46) -> 1548806 | C47: 869578 | D47: 369891 | E47: 245005.63 | F47: 131604.71 | G47: 1020316.94 | H47: 277443.09 | I47: 200000
A48: General Plant
A49: Vehicles >4500kg (Additions/Replacements) | B49: 0 | C49: 772961 | D49: 20892 | E49: 308216 | F49: 448551 | G49: 128163.1 | H49: 280836.9 | I49: 225000
A50: Vehicles < 4500kg (Additions/Replacements) | B50: 75000 | C50: 180044 | D50: 75420 | E50: 325028.77 | F50: 122958.25 | G50: 384151.14 | H50: 80140 | I50: 75000
A51: Buildings | B51: 210877.35 | C51: 396433 | D51: 261307 | E51: 80846 | F51: 518024.73 | G51: 893368.54 | H51: 537744.12 | I51: 295000
A52: Standby Generator, 1340 Brant Street | B52: 0 | C52: 0 | D52: 0 | E52: 0 | F52: 0 | G52: 0 | H52: 0 | I52: 200000
A53: SCADA / GIS / AMI / OMS | B53: 592914 | C53: 366032 | D53: 217263.1 | E53: 194973.35 | F53: 204828.4 | G53: 470950.97 | H53: 574818.03 | I53: 195000
A54: Customer Information System (Ongoing) | B54: 280707 | C54: 203545 | D54: 57154 | E54: 69972.32 | F54: 24430.74 | G54: 165081.49 | H54: 18000 | I54: 55000
A55: Customer Information System (Replacement) | B55: 0 | C55: 0 | D55: 0 | E55: 0 | F55: 0 | G55: 1258141.965 | H55: 1106145 | I55: 215870
A56: Other Computer Hardware & Software | B56: 94442 | C56: 100368 | D56: 410699 | E56: 87734.2 | F56: 349721.73 | G56: 317122.97 | H56: 521352.9 | I56: 188000
A57: Sub-Total | B57: =SUM(B49:B56) -> 1253940.35 | C57: =SUM(C49:C56) -> 2019383 | D57: 1042735.1 | E57: 1066770.64 | F57: 1668514.85 | G57: 3616980.175 | H57: 3119036.95 | I57: 1448870
A58: Miscellaneous | B58: 418418 | C58: 395067 | D58: 297113 | E58: 415863.03 | F58: 452486.08 | G58: 122872.86 | H58: 100749.25 | I58: 349000
A59: Total | B59: =SUMPRODUCT(--($A15:$A58="Sub-Total"), B$15:B$58)+B58 -> 7416976.59 | C59: 8511898.42 | D59: 7372720 | E59: 8693794.43 | F59: 10699002.31 | G59: 14677119.78 | H59: 9310120.86 | I59: 13990133.33
A60: Less Renewable Generation Facility Assets and Other Non-Rate-Regulated Utility Assets (input as negative)
A61: Total | B61: =B59+B60 -> 7416976.59 | C61: =C59+C60 -> 8511898.42 | D61: =D59+D60 -> 7372720 | E61: 8693794.43 | F61: 10699002.31 | G61: 14677119.78 | H61: 9310120.86 | I61: 13990133.33
A63: Notes:
A65: 1 Please provide a breakdown of the major components of each capital project undertaken in each year. Please ensure that all projects below the materiality threshold are included in the miscellaneous line. Add more projects as required.
A66: 2 The applicant should group projects appropriately and avoid presentations that result in classification of significant components of the capital budget in the miscellaneous category.

Sheet App.2-AB_Capital Expenditures
AE1: File Number: | AG1: =EBNUMBER -> EB-2020-0007
AE2: Exhibit:
AE3: Tab:
AE4: Schedule:
A5: TO BE UPDATED AT THE DRAFT RATE ORDER STAGE | AE5: Page:
AE7: Date:
A9: Appendix 2-AB
A10: Table 2 - Capital Expenditure Summary from Chapter 5 Consolidated Distribution System Plan Filing Requirements
A11: First year of Forecast Period:
A12: =TestYear -> 2021
A13: CATEGORY | B13: Historical Period (previous plan1 & actual) | AC13: Forecast Period (planned)
B14: =E14-1 -> 2012 | E14: =H14-1 -> 2013 | H14: =K14-1 -> 2014 | K14: =N14-1 -> 2015 | N14: =Q14-1 -> 2016 | Q14: =T14-1 -> 2017 | T14: =W14-1 -> 2018 | W14: =Z14-1 -> 2019 | Z14: =AC14-1 -> 2020 | AC14: =A12 -> 2021 | AD14: =AC14+1 -> 2022 | AE14: =AD14+1 -> 2023 | AF14: =AE14+1 -> 2024 | AG14: =AF14+1 -> 2025
B15: Plan | C15: Actual | D15: Var | E15: Plan | F15: Actual | G15: Var | H15: Plan | I15: Actual | J15: Var | K15: Plan | L15: Actual | M15: Var | N15: Plan | O15: Actual | P15: Var | Q15: Plan | R15: Actual | S15: Var | T15: Plan | U15: Actual | V15: Var | W15: Plan | X15: Actual | Y15: Var | Z15: Plan | AA15: Actual2 | AB15: Var
B16: $ '000 | D16: % | E16: $ '000 | G16: % | H16: $ '000 | J16: % | K16: $ '000 | M16: % | N16: $ '000 | P16: % | Q16: $ '000 | S16: % | T16: $ '000 | V16: % | W16: $ '000 | Y16: % | Z16: $ '000 | AB16: % | AC16: $ '000
A17: System Access | D17: =IF(ISERROR((C17-B17)/B17),"--",(C17-B17)/B17) -> -- | G17: =IF(ISERROR((F17-E17)/E17),"--",(F17-E17)/E17) -> -- | H17: 8244.469 | I17: 6477.95254 | J17: =IF(ISERROR((I17-H17)/H17),"--",(I17-H17)/H17) -> -0.214266857 | K17: 7396.054 | L17: 4637.42492 | M17: =IF(ISERROR((L17-K17)/K17),"--",(L17-K17)/K17) -> -0.3729866061 | N17: 6925.561 | O17: 8094.777782 | P17: =IF(ISERROR((O17-N17)/N17),"--",(O17-N17)/N17) -> 0.1688262917 | Q17: 6925.561 | R17: 9144.179117 | S17: =IF(ISERROR((R17-Q17)/Q17),"--",(R17-Q17)/Q17) -> 0.3203521154 | T17: 7621.934 | U17: 8443.618355 | V17: =IF(ISERROR((U17-T17)/T17),"--",(U17-T17)/T17) -> 0.1078052309 | W17: 19620 | X17: 13105.25316 | Y17: =IF(ISERROR((X17-W17)/W17),"--",(X17-W17)/W17) -> -0.3320462204 | Z17: 18539.92761 | AB17: =IF(ISERROR((AA17-Z17)/Z17),"--",(AA17-Z17)/Z17) -> -1 | AC17: 29645.59776 | AD17: 10905 | AE17: 9574 | AF17: 8074 | AG17: 8074
A18: System Renewal | D18: =IF(ISERROR((C18-B18)/B18),"--",(C18-B18)/B18) -> -- | G18: =IF(ISERROR((F18-E18)/E18),"--",(F18-E18)/E18) -> -- | H18: 1349.241 | I18: 2359.9117 | J18: =IF(ISERROR((I18-H18)/H18),"--",(I18-H18)/H18) -> 0.7490661046 | K18: 1311.959 | L18: 2760.7915 | M18: =IF(ISERROR((L18-K18)/K18),"--",(L18-K18)/K18) -> 1.104327574 | N18: 1309.651 | O18: 2156.986118 | P18: =IF(ISERROR((O18-N18)/N18),"--",(O18-N18)/N18) -> 0.6469930678 | Q18: 1309.651 | R18: 2777.446363 | S18: =IF(ISERROR((R18-Q18)/Q18),"--",(R18-Q18)/Q18) -> 1.120753058 | T18: 1309.561 | U18: 3229.824155 | V18: =IF(ISERROR((U18-T18)/T18),"--",(U18-T18)/T18) -> 1.466341129 | W18: 1720 | X18: 2931.672104 | Y18: =IF(ISERROR((X18-W18)/W18),"--",(X18-W18)/W18) -> 0.7044605258 | Z18: 2182.35354 | AB18: =IF(ISERROR((AA18-Z18)/Z18),"--",(AA18-Z18)/Z18) -> -1 | AC18: 3080 | AD18: 3290 | AE18: 3015 | AF18: 3015 | AG18: 3015
A19: System Service | D19: -- | G19: -- | H19: 908.54 | I19: 1551.534 | J19: 0.7077222797 | K19: 650.832 | L19: 979.868 | M19: 0.5055621113 | N19: 966.547 | O19: 399.13 | P19: -0.5870557769 | Q19: 966.547 | R19: 288.08451 | S19: -0.7019446442 | T19: 650.832 | U19: 323.6694 | V19: -0.5026836419 | W19: 531.287 | X19: 1041.43316 | Y19: 0.960208249 | Z19: 332.44309 | AB19: -1 | AC19: 375 | AD19: 800 | AE19: 850 | AF19: 800 | AG19: 850
A20: General Plant | D20: -- | G20: -- | H20: 807 | I20: 1416.82835 | J20: 0.7556732962 | K20: 644 | L20: 2061.219 | M20: 2.200650621 | N20: 496 | O20: 1132.2781 | P20: 1.28281875 | Q20: 656.5 | R20: 1165.70744 | S20: 0.7756396649 | T20: 278.9 | U20: 1853.5551 | V20: 5.645948727 | W20: 2140 | X20: 3812.793645 | Y20: 0.7816792734 | Z20: 3173.0882 | AB20: -1 | AC20: 1497.87 | AD20: 2064.5 | AE20: 1852 | AF20: 1169.5 | AG20: 1077
A21: TOTAL EXPENDITURE | B21: =SUM(B17:B20) -> 0 | C21: =SUM(C17:C20) -> 0 | D21: -- | E21: =SUM(E17:E20) -> 0 | F21: =SUM(F17:F20) -> 0 | G21: -- | H21: =SUM(H17:H20) -> 11309.25 | I21: =SUM(I17:I20) -> 11806.22659 | J21: 0.04394425713 | K21: =SUM(K17:K20) -> 10002.845 | L21: =SUM(L17:L20) -> 10439.30342 | M21: 0.04363342829 | N21: =SUM(N17:N20) -> 9697.759 | O21: =SUM(O17:O20) -> 11783.172 | P21: 0.215040712 | Q21: 9858.259 | R21: 13375.41743 | S21: 0.356772776 | T21: 9861.227 | U21: 13850.66701 | V21: 0.4045581762 | W21: 24011.287 | X21: 20891.15207 | Y21: -0.1299445105 | Z21: 24227.81244 | AA21: 0 | AB21: -1 | AC21: 34598.46776 | AD21: 17059.5 | AE21: 15291 | AF21: 13058.5 | AG21: =SUM(AG17:AG20) -> 13016
A22: Capital Contributions | D22: -- | G22: -- | H22: -3579.205 | I22: -4389.25 | J22: 0.2263198112 | L22: -1927.405 | M22: -- | O22: -4410.452 | P22: -- | R22: -4681.623 | S22: -- | U22: -3151.6647 | V22: -- | W22: -11285 | X22: -6214.03228 | Y22: -0.4493546938 | Z22: -14917.69158 | AB22: -1 | AC22: -20608.33443 | AD22: -5898.5 | AE22: -4567.5 | AF22: -4005 | AG22: -4005
A23: Net Capital Expenditures | D23: -- | G23: -- | H23: =H21+H22 -> 7730.045 | I23: =I21+I22 -> 7416.97659 | J23: -0.04050020537 | L23: =L21+L22 -> 8511.89842 | M23: -- | O23: =O21+O22 -> 7372.72 | P23: -- | R23: =R21+R22 -> 8693.79443 | S23: -- | U23: =U21+U22 -> 10699.00231 | V23: -- | W23: =W21+W22 -> 12726.287 | X23: =X21+X22 -> 14677.11979 | Y23: 0.1532915913 | Z23: =Z21+Z22 -> 9310.12086 | AA23: =AA21+AA22 -> 0 | AB23: -1 | AC23: =AC21+AC22 -> 13990.13333 | AD23: 11161 | AE23: 10723.5 | AF23: 9053.5 | AG23: 9011
A24: System O&M | D24: -- | G24: -- | H24: 9234.80513 | I24: 8388.4897 | J24: -0.09164410273 | L24: 9021.618107 | M24: -- | O24: 9336.893673 | P24: -- | R24: 9060.749125 | S24: -- | U24: 9395.431222 | V24: -- | X24: 9532.930046 | Y24: -- | Z24: 9468.182562 | AB24: -1 | AC24: 10266.61184 | AD24: =AC24*1.02 -> 10471.94407 | AE24: =AD24*1.02 -> 10681.38296 | AF24: 10895.01061 | AG24: 11112.91083
A26: Notes to the Table:
A27: 1. Historical “previous plan” data is not required unless a plan has previously been filed. However, use the last OEB-approved, at least on a Total (Capital) Expenditure basis for the last cost of service rebasing year, and the applicant should include their planned budget in each subsequent historical year up to and including the Bridge Year.
A28: 2. Indicate the number of months of 'actual' data included in the last year of the Historical Period (normally a 'bridge' year):
A30: Explanatory Notes on Variances (complete only if applicable)
A31: Notes on shifts in forecast vs. historical budgets by category
A34: Notes on year over year Plan vs. Actual variances for Total Expenditures
A37: Notes on Plan vs. Actual variance trends for individual expenditure categories

Sheet Hidden_CAPEX (hidden)
A1: Utility Name | B1: EB Number | C1: Test Year | D1: Bridge Year | E1: Last Rebasing Year | F1: Category | G1: Year | H1: Plan | I1: Actual
A2: ='LDC Info'!$E$14 -> Burlington Hydro Inc. | B2: =EBNUMBER -> EB-2020-0007 | C2: =TestYear -> 2021 | D2: =BridgeYear -> 2020 | E2: =RebaseYear -> 2014 | F2: System Access | G2: ='App.2-AB_Capital Expenditures'!B14 -> 2012 | H2: ='App.2-AB_Capital Expenditures'!B17 -> 0 | I2: ='App.2-AB_Capital Expenditures'!C17 -> 0
A3: ='LDC Info'!$E$14 -> Burlington Hydro Inc. | B3: EB-2020-0007 | C3: 2021 | D3: 2020 | E3: 2014 | F3: System Renewal | G3: ='App.2-AB_Capital Expenditures'!B14 -> 2012 | H3: ='App.2-AB_Capital Expenditures'!B18 -> 0 | I3: ='App.2-AB_Capital Expenditures'!C18 -> 0
A4: ='LDC Info'!$E$14 -> Burlington Hydro Inc. | B4: EB-2020-0007 | C4: 2021 | D4: 2020 | E4: 2014 | F4: System Service | G4: ='App.2-AB_Capital Expenditures'!B14 -> 2012 | H4: ='App.2-AB_Capital Expenditures'!B19 -> 0 | I4: ='App.2-AB_Capital Expenditures'!C19 -> 0
A5: ='LDC Info'!$E$14 -> Burlington Hydro Inc. | B5: EB-2020-0007 | C5: 2021 | D5: 2020 | E5: 2014 | F5: General Plant | G5: ='App.2-AB_Capital Expenditures'!B14 -> 2012 | H5: ='App.2-AB_Capital Expenditures'!B20 -> 0 | I5: ='App.2-AB_Capital Expenditures'!C20 -> 0
A6: ='LDC Info'!$E$14 -> Burlington Hydro Inc. | B6: EB-2020-0007 | C6: 2021 | D6: 2020 | E6: 2014 | F6: Total Expenditure | G6: ='App.2-AB_Capital Expenditures'!B14 -> 2012 | H6: ='App.2-AB_Capital Expenditures'!B21 -> 0 | I6: ='App.2-AB_Capital Expenditures'!C21 -> 0
A7: ='LDC Info'!$E$14 -> Burlington Hydro Inc. | B7: EB-2020-0007 | C7: 2021 | D7: 2020 | E7: 2014 | F7: Capital Contributions | G7: ='App.2-AB_Capital Expenditures'!B14 -> 2012 | H7: ='App.2-AB_Capital Expenditures'!B22 -> 0 | I7: ='App.2-AB_Capital Expenditures'!C22 -> 0
A8: ='LDC Info'!$E$14 -> Burlington Hydro Inc. | B8: EB-2020-0007 | C8: 2021 | D8: 2020 | E8: 2014 | F8: Net Capital Expenditures | G8: ='App.2-AB_Capital Expenditures'!B14 -> 2012 | H8: ='App.2-AB_Capital Expenditures'!B23 -> 0 | I8: ='App.2-AB_Capital Expenditures'!C23 -> 0
A9: ='LDC Info'!$E$14 -> Burlington Hydro Inc. | B9: EB-2020-0007 | C9: 2021 | D9: 2020 | E9: 2014 | F9: System O&M | G9: ='App.2-AB_Capital Expenditures'!B14 -> 2012 | H9: ='App.2-AB_Capital Expenditures'!B24 -> 0 | I9: ='App.2-AB_Capital Expenditures'!C24 -> 0
A10: ='LDC Info'!$E$14 -> Burlington Hydro Inc. | B10: EB-2020-0007 | C10: 2021 | D10: 2020 | E10: 2014 | F10: System Access | G10: ='App.2-AB_Capital Expenditures'!E14 -> 2013 | H10: ='App.2-AB_Capital Expenditures'!E17 -> 0 | I10: ='App.2-AB_Capital Expenditures'!F17 -> 0
A11: ='LDC Info'!$E$14 -> Burlington Hydro Inc. | B11: EB-2020-0007 | C11: 2021 | D11: 2020 | E11: 2014 | F11: System Renewal | G11: ='App.2-AB_Capital Expenditures'!E14 -> 2013 | H11: ='App.2-AB_Capital Expenditures'!E18 -> 0 | I11: ='App.2-AB_Capital Expenditures'!F18 -> 0
A12: ='LDC Info'!$E$14 -> Burlington Hydro Inc. | B12: EB-2020-0007 | C12: 2021 | D12: 2020 | E12: 2014 | F12: System Service | G12: ='App.2-AB_Capital Expenditures'!E14 -> 2013 | H12: ='App.2-AB_Capital Expenditures'!E19 -> 0 | I12: ='App.2-AB_Capital Expenditures'!F19 -> 0
A13: ='LDC Info'!$E$14 -> Burlington Hydro Inc. | B13: EB-2020-0007 | C13: 2021 | D13: 2020 | E13: 2014 | F13: General Plant | G13: ='App.2-AB_Capital Expenditures'!E14 -> 2013 | H13: ='App.2-AB_Capital Expenditures'!E20 -> 0 | I13: ='App.2-AB_Capital Expenditures'!F20 -> 0
A14: ='LDC Info'!$E$14 -> Burlington Hydro Inc. | B14: EB-2020-0007 | C14: 2021 | D14: 2020 | E14: 2014 | F14: Total Expenditure | G14: ='App.2-AB_Capital Expenditures'!E14 -> 2013 | H14: ='App.2-AB_Capital Expenditures'!E21 -> 0 | I14: ='App.2-AB_Capital Expenditures'!F21 -> 0
A15: ='LDC Info'!$E$14 -> Burlington Hydro Inc. | B15: EB-2020-0007 | C15: 2021 | D15: 2020 | E15: 2014 | F15: Capital Contributions | G15: ='App.2-AB_Capital Expenditures'!E14 -> 2013 | H15: ='App.2-AB_Capital Expenditures'!E22 -> 0 | I15: ='App.2-AB_Capital Expenditures'!F22 -> 0
A16: ='LDC Info'!$E$14 -> Burlington Hydro Inc. | B16: EB-2020-0007 | C16: 2021 | D16: 2020 | E16: 2014 | F16: Net Capital Expenditures | G16: ='App.2-AB_Capital Expenditures'!E14 -> 2013 | H16: ='App.2-AB_Capital Expenditures'!E23 -> 0 | I16: ='App.2-AB_Capital Expenditures'!F23 -> 0
A17: ='LDC Info'!$E$14 -> Burlington Hydro Inc. | B17: EB-2020-0007 | C17: 2021 | D17: 2020 | E17: 2014 | F17: System O&M | G17: ='App.2-AB_Capital Expenditures'!E14 -> 2013 | H17: ='App.2-AB_Capital Expenditures'!E24 -> 0 | I17: ='App.2-AB_Capital Expenditures'!F24 -> 0
A18: ='LDC Info'!$E$14 -> Burlington Hydro Inc. | B18: EB-2020-0007 | C18: 2021 | D18: 2020 | E18: 2014 | F18: System Access | G18: ='App.2-AB_Capital Expenditures'!H14 -> 2014 | H18: ='App.2-AB_Capital Expenditures'!H17 -> 8244.469 | I18: ='App.2-AB_Capital Expenditures'!I17 -> 6477.95254
A19: ='LDC Info'!$E$14 -> Burlington Hydro Inc. | B19: EB-2020-0007 | C19: 2021 | D19: 2020 | E19: 2014 | F19: System Renewal | G19: ='App.2-AB_Capital Expenditures'!H14 -> 2014 | H19: ='App.2-AB_Capital Expenditures'!H18 -> 1349.241 | I19: ='App.2-AB_Capital Expenditures'!I18 -> 2359.9117
A20: ='LDC Info'!$E$14 -> Burlington Hydro Inc. | B20: EB-2020-0007 | C20: 2021 | D20: 2020 | E20: 2014 | F20: System Service | G20: ='App.2-AB_Capital Expenditures'!H14 -> 2014 | H20: ='App.2-AB_Capital Expenditures'!H19 -> 908.54 | I20: ='App.2-AB_Capital Expenditures'!I19 -> 1551.534
A21: ='LDC Info'!$E$14 -> Burlington Hydro Inc. | B21: EB-2020-0007 | C21: 2021 | D21: 2020 | E21: 2014 | F21: General Plant | G21: ='App.2-AB_Capital Expenditures'!H14 -> 2014 | H21: ='App.2-AB_Capital Expenditures'!H20 -> 807 | I21: ='App.2-AB_Capital Expenditures'!I20 -> 1416.82835
A22: ='LDC Info'!$E$14 -> Burlington Hydro Inc. | B22: EB-2020-0007 | C22: 2021 | D22: 2020 | E22: 2014 | F22: Total Expenditure | G22: ='App.2-AB_Capital Expenditures'!H14 -> 2014 | H22: ='App.2-AB_Capital Expenditures'!H21 -> 11309.25 | I22: ='App.2-AB_Capital Expenditures'!I21 -> 11806.22659
A23: ='LDC Info'!$E$14 -> Burlington Hydro Inc. | B23: EB-2020-0007 | C23: 2021 | D23: 2020 | E23: 2014 | F23: Capital Contributions | G23: ='App.2-AB_Capital Expenditures'!H14 -> 2014 | H23: ='App.2-AB_Capital Expenditures'!H22 -> -3579.205 | I23: ='App.2-AB_Capital Expenditures'!I22 -> -4389.25
A24: ='LDC Info'!$E$14 -> Burlington Hydro Inc. | B24: EB-2020-0007 | C24: 2021 | D24: 2020 | E24: 2014 | F24: Net Capital Expenditures | G24: ='App.2-AB_Capital Expenditures'!H14 -> 2014 | H24: ='App.2-AB_Capital Expenditures'!H23 -> 7730.045 | I24: ='App.2-AB_Capital Expenditures'!I23 -> 7416.97659
A25: ='LDC Info'!$E$14 -> Burlington Hydro Inc. | B25: EB-2020-0007 | C25: 2021 | D25: 2020 | E25: 2014 | F25: System O&M | G25: ='App.2-AB_Capital Expenditures'!H14 -> 2014 | H25: ='App.2-AB_Capital Expenditures'!H24 -> 9234.80513 | I25: ='App.2-AB_Capital Expenditures'!I24 -> 8388.4897
A26: ='LDC Info'!$E$14 -> Burlington Hydro Inc. | B26: EB-2020-0007 | C26: 2021 | D26: 2020 | E26: 2014 | F26: System Access | G26: ='App.2-AB_Capital Expenditures'!K14 -> 2015 | H26: ='App.2-AB_Capital Expenditures'!K17 -> 7396.054 | I26: ='App.2-AB_Capital Expenditures'!L17 -> 4637.42492
A27: ='LDC Info'!$E$14 -> Burlington Hydro Inc. | B27: EB-2020-0007 | C27: 2021 | D27: 2020 | E27: 2014 | F27: System Renewal | G27: ='App.2-AB_Capital Expenditures'!K14 -> 2015 | H27: ='App.2-AB_Capital Expenditures'!K18 -> 1311.959 | I27: ='App.2-AB_Capital Expenditures'!L18 -> 2760.7915
A28: ='LDC Info'!$E$14 -> Burlington Hydro Inc. | B28: EB-2020-0007 | C28: 2021 | D28: 2020 | E28: 2014 | F28: System Service | G28: ='App.2-AB_Capital Expenditures'!K14 -> 2015 | H28: ='App.2-AB_Capital Expenditures'!K19 -> 650.832 | I28: ='App.2-AB_Capital Expenditures'!L19 -> 979.868
A29: ='LDC Info'!$E$14 -> Burlington Hydro Inc. | B29: EB-2020-0007 | C29: 2021 | D29: 2020 | E29: 2014 | F29: General Plant | G29: ='App.2-AB_Capital Expenditures'!K14 -> 2015 | H29: ='App.2-AB_Capital Expenditures'!K20 -> 644 | I29: ='App.2-AB_Capital Expenditures'!L20 -> 2061.219
A30: ='LDC Info'!$E$14 -> Burlington Hydro Inc. | B30: EB-2020-0007 | C30: 2021 | D30: 2020 | E30: 2014 | F30: Total Expenditure | G30: ='App.2-AB_Capital Expenditures'!K14 -> 2015 | H30: ='App.2-AB_Capital Expenditures'!K21 -> 10002.845 | I30: ='App.2-AB_Capital Expenditures'!L21 -> 10439.30342
A31: ='LDC Info'!$E$14 -> Burlington Hydro Inc. | B31: EB-2020-0007 | C31: 2021 | D31: 2020 | E31: 2014 | F31: Capital Contributions | G31: ='App.2-AB_Capital Expenditures'!K14 -> 2015 | H31: ='App.2-AB_Capital Expenditures'!K22 -> 0 | I31: ='App.2-AB_Capital Expenditures'!L22 -> -1927.405
A32: ='LDC Info'!$E$14 -> Burlington Hydro Inc. | B32: EB-2020-0007 | C32: 2021 | D32: 2020 | E32: 2014 | F32: Net Capital Expenditures | G32: ='App.2-AB_Capital Expenditures'!K14 -> 2015 | H32: ='App.2-AB_Capital Expenditures'!K23 -> 0 | I32: ='App.2-AB_Capital Expenditures'!L23 -> 8511.89842
A33: ='LDC Info'!$E$14 -> Burlington Hydro Inc. | B33: EB-2020-0007 | C33: 2021 | D33: 2020 | E33: 2014 | F33: System O&M | G33: ='App.2-AB_Capital Expenditures'!K14 -> 2015 | H33: ='App.2-AB_Capital Expenditures'!K24 -> 0 | I33: ='App.2-AB_Capital Expenditures'!L24 -> 9021.618107
A34: ='LDC Info'!$E$14 -> Burlington Hydro Inc. | B34: =EBNUMBER -> EB-2020-0007 | C34: =TestYear -> 2021 | D34: =BridgeYear -> 2020 | E34: =RebaseYear -> 2014 | F34: System Access | G34: ='App.2-AB_Capital Expenditures'!N14 -> 2016 | H34: ='App.2-AB_Capital Expenditures'!N17 -> 6925.561 | I34: ='App.2-AB_Capital Expenditures'!O17 -> 8094.777782
A35: ='LDC Info'!$E$14 -> Burlington Hydro Inc. | B35: EB-2020-0007 | C35: 2021 | D35: 2020 | E35: 2014 | F35: System Renewal | G35: ='App.2-AB_Capital Expenditures'!N14 -> 2016 | H35: ='App.2-AB_Capital Expenditures'!N18 -> 1309.651 | I35: ='App.2-AB_Capital Expenditures'!O18 -> 2156.986118
A36: ='LDC Info'!$E$14 -> Burlington Hydro Inc. | B36: EB-2020-0007 | C36: 2021 | D36: 2020 | E36: 2014 | F36: System Service | G36: ='App.2-AB_Capital Expenditures'!N14 -> 2016 | H36: ='App.2-AB_Capital Expenditures'!N19 -> 966.547 | I36: ='App.2-AB_Capital Expenditures'!O19 -> 399.13
A37: ='LDC Info'!$E$14 -> Burlington Hydro Inc. | B37: EB-2020-0007 | C37: 2021 | D37: 2020 | E37: 2014 | F37: General Plant | G37: ='App.2-AB_Capital Expenditures'!N14 -> 2016 | H37: ='App.2-AB_Capital Expenditures'!N20 -> 496 | I37: ='App.2-AB_Capital Expenditures'!O20 -> 1132.2781
A38: ='LDC Info'!$E$14 -> Burlington Hydro Inc. | B38: EB-2020-0007 | C38: 2021 | D38: 2020 | E38: 2014 | F38: Total Expenditure | G38: ='App.2-AB_Capital Expenditures'!N14 -> 2016 | H38: ='App.2-AB_Capital Expenditures'!N21 -> 9697.759 | I38: ='App.2-AB_Capital Expenditures'!O21 -> 11783.172
A39: ='LDC Info'!$E$14 -> Burlington Hydro Inc. | B39: EB-2020-0007 | C39: 2021 | D39: 2020 | E39: 2014 | F39: Capital Contributions | G39: ='App.2-AB_Capital Expenditures'!N14 -> 2016 | H39: ='App.2-AB_Capital Expenditures'!N22 -> 0 | I39: ='App.2-AB_Capital Expenditures'!O22 -> -4410.452
A40: ='LDC Info'!$E$14 -> Burlington Hydro Inc. | B40: EB-2020-0007 | C40: 2021 | D40: 2020 | E40: 2014 | F40: Net Capital Expenditures | G40: ='App.2-AB_Capital Expenditures'!N14 -> 2016 | H40: ='App.2-AB_Capital Expenditures'!N23 -> 0 | I40: ='App.2-AB_Capital Expenditures'!O23 -> 7372.72
A41: ='LDC Info'!$E$14 -> Burlington Hydro Inc. | B41: EB-2020-0007 | C41: 2021 | D41: 2020 | E41: 2014 | F41: System O&M | G41: ='App.2-AB_Capital Expenditures'!N14 -> 2016 | H41: ='App.2-AB_Capital Expenditures'!N24 -> 0 | I41: ='App.2-AB_Capital Expenditures'!O24 -> 9336.893673
A42: ='LDC Info'!$E$14 -> Burlington Hydro Inc. | B42: EB-2020-0007 | C42: 2021 | D42: 2020 | E42: 2014 | F42: System Access | G42: ='App.2-AB_Capital Expenditures'!Q14 -> 2017 | H42: ='App.2-AB_Capital Expenditures'!Q17 -> 6925.561 | I42: ='App.2-AB_Capital Expenditures'!R17 -> 9144.179117
A43: ='LDC Info'!$E$14 -> Burlington Hydro Inc. | B43: EB-2020-0007 | C43: 2021 | D43: 2020 | E43: 2014 | F43: System Renewal | G43: ='App.2-AB_Capital Expenditures'!Q14 -> 2017 | H43: ='App.2-AB_Capital Expenditures'!Q18 -> 1309.651 | I43: ='App.2-AB_Capital Expenditures'!R18 -> 2777.446363
A44: ='LDC Info'!$E$14 -> Burlington Hydro Inc. | B44: EB-2020-0007 | C44: 2021 | D44: 2020 | E44: 2014 | F44: System Service | G44: ='App.2-AB_Capital Expenditures'!Q14 -> 2017 | H44: ='App.2-AB_Capital Expenditures'!Q19 -> 966.547 | I44: ='App.2-AB_Capital Expenditures'!R19 -> 288.08451
A45: ='LDC Info'!$E$14 -> Burlington Hydro Inc. | B45: EB-2020-0007 | C45: 2021 | D45: 2020 | E45: 2014 | F45: General Plant | G45: ='App.2-AB_Capital Expenditures'!Q14 -> 2017 | H45: ='App.2-AB_Capital Expenditures'!Q20 -> 656.5 | I45: ='App.2-AB_Capital Expenditures'!R20 -> 1165.70744
A46: ='LDC Info'!$E$14 -> Burlington Hydro Inc. | B46: EB-2020-0007 | C46: 2021 | D46: 2020 | E46: 2014 | F46: Total Expenditure | G46: ='App.2-AB_Capital Expenditures'!Q14 -> 2017 | H46: ='App.2-AB_Capital Expenditures'!Q21 -> 9858.259 | I46: ='App.2-AB_Capital Expenditures'!R21 -> 13375.41743
A47: ='LDC Info'!$E$14 -> Burlington Hydro Inc. | B47: EB-2020-0007 | C47: 2021 | D47: 2020 | E47: 2014 | F47: Capital Contributions | G47: ='App.2-AB_Capital Expenditures'!Q14 -> 2017 | H47: ='App.2-AB_Capital Expenditures'!Q22 -> 0 | I47: ='App.2-AB_Capital Expenditures'!R22 -> -4681.623
A48: ='LDC Info'!$E$14 -> Burlington Hydro Inc. | B48: EB-2020-0007 | C48: 2021 | D48: 2020 | E48: 2014 | F48: Net Capital Expenditures | G48: ='App.2-AB_Capital Expenditures'!Q14 -> 2017 | H48: ='App.2-AB_Capital Expenditures'!Q23 -> 0 | I48: ='App.2-AB_Capital Expenditures'!R23 -> 8693.79443
A49: ='LDC Info'!$E$14 -> Burlington Hydro Inc. | B49: EB-2020-0007 | C49: 2021 | D49: 2020 | E49: 2014 | F49: System O&M | G49: ='App.2-AB_Capital Expenditures'!Q14 -> 2017 | H49: ='App.2-AB_Capital Expenditures'!Q24 -> 0 | I49: ='App.2-AB_Capital Expenditures'!R24 -> 9060.749125
A50: ='LDC Info'!$E$14 -> Burlington Hydro Inc. | B50: EB-2020-0007 | C50: 2021 | D50: 2020 | E50: 2014 | F50: System Access | G50: ='App.2-AB_Capital Expenditures'!T14 -> 2018 | H50: ='App.2-AB_Capital Expenditures'!T17 -> 7621.934 | I50: ='App.2-AB_Capital Expenditures'!U17 -> 8443.618355
A51: ='LDC Info'!$E$14 -> Burlington Hydro Inc. | B51: EB-2020-0007 | C51: 2021 | D51: 2020 | E51: 2014 | F51: System Renewal | G51: ='App.2-AB_Capital Expenditures'!T14 -> 2018 | H51: ='App.2-AB_Capital Expenditures'!T18 -> 1309.561 | I51: ='App.2-AB_Capital Expenditures'!U18 -> 3229.824155
A52: ='LDC Info'!$E$14 -> Burlington Hydro Inc. | B52: EB-2020-0007 | C52: 2021 | D52: 2020 | E52: 2014 | F52: System Service | G52: ='App.2-AB_Capital Expenditures'!T14 -> 2018 | H52: ='App.2-AB_Capital Expenditures'!T19 -> 650.832 | I52: ='App.2-AB_Capital Expenditures'!U19 -> 323.6694
A53: ='LDC Info'!$E$14 -> Burlington Hydro Inc. | B53: EB-2020-0007 | C53: 2021 | D53: 2020 | E53: 2014 | F53: General Plant | G53: ='App.2-AB_Capital Expenditures'!T14 -> 2018 | H53: ='App.2-AB_Capital Expenditures'!T20 -> 278.9 | I53: ='App.2-AB_Capital Expenditures'!U20 -> 1853.5551
A54: ='LDC Info'!$E$14 -> Burlington Hydro Inc. | B54: EB-2020-0007 | C54: 2021 | D54: 2020 | E54: 2014 | F54: Total Expenditure | G54: ='App.2-AB_Capital Expenditures'!T14 -> 2018 | H54: ='App.2-AB_Capital Expenditures'!T21 -> 9861.227 | I54: ='App.2-AB_Capital Expenditures'!U21 -> 13850.66701
A55: ='LDC Info'!$E$14 -> Burlington Hydro Inc. | B55: EB-2020-0007 | C55: 2021 | D55: 2020 | E55: 2014 | F55: Capital Contributions | G55: ='App.2-AB_Capital Expenditures'!T14 -> 2018 | H55: ='App.2-AB_Capital Expenditures'!T22 -> 0 | I55: ='App.2-AB_Capital Expenditures'!U22 -> -3151.6647
A56: ='LDC Info'!$E$14 -> Burlington Hydro Inc. | B56: EB-2020-0007 | C56: 2021 | D56: 2020 | E56: 2014 | F56: Net Capital Expenditures | G56: ='App.2-AB_Capital Expenditures'!T14 -> 2018 | H56: ='App.2-AB_Capital Expenditures'!T23 -> 0 | I56: ='App.2-AB_Capital Expenditures'!U23 -> 10699.00231
A57: ='LDC Info'!$E$14 -> Burlington Hydro Inc. | B57: EB-2020-0007 | C57: 2021 | D57: 2020 | E57: 2014 | F57: System O&M | G57: ='App.2-AB_Capital Expenditures'!T14 -> 2018 | H57: ='App.2-AB_Capital Expenditures'!T24 -> 0 | I57: ='App.2-AB_Capital Expenditures'!U24 -> 9395.431222
A58: ='LDC Info'!$E$14 -> Burlington Hydro Inc. | B58: EB-2020-0007 | C58: 2021 | D58: 2020 | E58: 2014 | F58: System Access | G58: ='App.2-AB_Capital Expenditures'!W14 -> 2019 | H58: ='App.2-AB_Capital Expenditures'!W17 -> 19620 | I58: ='App.2-AB_Capital Expenditures'!X17 -> 13105.25316
A59: ='LDC Info'!$E$14 -> Burlington Hydro Inc. | B59: EB-2020-0007 | C59: 2021 | D59: 2020 | E59: 2014 | F59: System Renewal | G59: ='App.2-AB_Capital Expenditures'!W14 -> 2019 | H59: ='App.2-AB_Capital Expenditures'!W18 -> 1720 | I59: ='App.2-AB_Capital Expenditures'!X18 -> 2931.672104
A60: ='LDC Info'!$E$14 -> Burlington Hydro Inc. | B60: EB-2020-0007 | C60: 2021 | D60: 2020 | E60: 2014 | F60: System Service | G60: ='App.2-AB_Capital Expenditures'!W14 -> 2019 | H60: ='App.2-AB_Capital Expenditures'!W19 -> 531.287 | I60: ='App.2-AB_Capital Expenditures'!X19 -> 1041.43316
A61: ='LDC Info'!$E$14 -> Burlington Hydro Inc. | B61: EB-2020-0007 | C61: 2021 | D61: 2020 | E61: 2014 | F61: General Plant | G61: ='App.2-AB_Capital Expenditures'!W14 -> 2019 | H61: ='App.2-AB_Capital Expenditures'!W20 -> 2140 | I61: ='App.2-AB_Capital Expenditures'!X20 -> 3812.793645
A62: ='LDC Info'!$E$14 -> Burlington Hydro Inc. | B62: EB-2020-0007 | C62: 2021 | D62: 2020 | E62: 2014 | F62: Total Expenditure | G62: ='App.2-AB_Capital Expenditures'!W14 -> 2019 | H62: ='App.2-AB_Capital Expenditures'!W21 -> 24011.287 | I62: ='App.2-AB_Capital Expenditures'!X21 -> 20891.15207
A63: ='LDC Info'!$E$14 -> Burlington Hydro Inc. | B63: EB-2020-0007 | C63: 2021 | D63: 2020 | E63: 2014 | F63: Capital Contributions | G63: ='App.2-AB_Capital Expenditures'!W14 -> 2019 | H63: ='App.2-AB_Capital Expenditures'!W22 -> -11285 | I63: ='App.2-AB_Capital Expenditures'!X22 -> -6214.03228
A64: ='LDC Info'!$E$14 -> Burlington Hydro Inc. | B64: EB-2020-0007 | C64: 2021 | D64: 2020 | E64: 2014 | F64: Net Capital Expenditures | G64: ='App.2-AB_Capital Expenditures'!W14 -> 2019 | H64: ='App.2-AB_Capital Expenditures'!W23 -> 12726.287 | I64: ='App.2-AB_Capital Expenditures'!X23 -> 14677.11979
A65: ='LDC Info'!$E$14 -> Burlington Hydro Inc. | B65: EB-2020-0007 | C65: 2021 | D65: 2020 | E65: 2014 | F65: System O&M | G65: ='App.2-AB_Capital Expenditures'!W14 -> 2019 | H65: ='App.2-AB_Capital Expenditures'!W24 -> 0 | I65: ='App.2-AB_Capital Expenditures'!X24 -> 9532.930046
A66: ='LDC Info'!$E$14 -> Burlington Hydro Inc. | B66: =EBNUMBER -> EB-2020-0007 | C66: =TestYear -> 2021 | D66: =BridgeYear -> 2020 | E66: =RebaseYear -> 2014 | F66: System Access | G66: ='App.2-AB_Capital Expenditures'!Z14 -> 2020 | H66: ='App.2-AB_Capital Expenditures'!Z17 -> 18539.92761 | I66: ='App.2-AB_Capital Expenditures'!AA17 -> 0
A67: ='LDC Info'!$E$14 -> Burlington Hydro Inc. | B67: EB-2020-0007 | C67: 2021 | D67: 2020 | E67: 2014 | F67: System Renewal | G67: ='App.2-AB_Capital Expenditures'!Z14 -> 2020 | H67: ='App.2-AB_Capital Expenditures'!Z18 -> 2182.35354 | I67: ='App.2-AB_Capital Expenditures'!AA18 -> 0
A68: ='LDC Info'!$E$14 -> Burlington Hydro Inc. | B68: EB-2020-0007 | C68: 2021 | D68: 2020 | E68: 2014 | F68: System Service | G68: ='App.2-AB_Capital Expenditures'!Z14 -> 2020 | H68: ='App.2-AB_Capital Expenditures'!Z19 -> 332.44309 | I68: ='App.2-AB_Capital Expenditures'!AA19 -> 0
A69: ='LDC Info'!$E$14 -> Burlington Hydro Inc. | B69: EB-2020-0007 | C69: 2021 | D69: 2020 | E69: 2014 | F69: General Plant | G69: ='App.2-AB_Capital Expenditures'!Z14 -> 2020 | H69: ='App.2-AB_Capital Expenditures'!Z20 -> 3173.0882 | I69: ='App.2-AB_Capital Expenditures'!AA20 -> 0
A70: ='LDC Info'!$E$14 -> Burlington Hydro Inc. | B70: EB-2020-0007 | C70: 2021 | D70: 2020 | E70: 2014 | F70: Total Expenditure | G70: ='App.2-AB_Capital Expenditures'!Z14 -> 2020 | H70: ='App.2-AB_Capital Expenditures'!Z21 -> 24227.81244 | I70: ='App.2-AB_Capital Expenditures'!AA21 -> 0
A71: ='LDC Info'!$E$14 -> Burlington Hydro Inc. | B71: EB-2020-0007 | C71: 2021 | D71: 2020 | E71: 2014 | F71: Capital Contributions | G71: ='App.2-AB_Capital Expenditures'!Z14 -> 2020 | H71: ='App.2-AB_Capital Expenditures'!Z22 -> -14917.69158 | I71: ='App.2-AB_Capital Expenditures'!AA22 -> 0
A72: ='LDC Info'!$E$14 -> Burlington Hydro Inc. | B72: EB-2020-0007 | C72: 2021 | D72: 2020 | E72: 2014 | F72: Net Capital Expenditures | G72: ='App.2-AB_Capital Expenditures'!Z14 -> 2020 | H72: ='App.2-AB_Capital Expenditures'!Z23 -> 9310.12086 | I72: ='App.2-AB_Capital Expenditures'!AA23 -> 0
A73: ='LDC Info'!$E$14 -> Burlington Hydro Inc. | B73: EB-2020-0007 | C73: 2021 | D73: 2020 | E73: 2014 | F73: System O&M | G73: ='App.2-AB_Capital Expenditures'!Z14 -> 2020 | H73: ='App.2-AB_Capital Expenditures'!Z24 -> 9468.182562 | I73: ='App.2-AB_Capital Expenditures'!AA24 -> 0
A74: ='LDC Info'!$E$14 -> Burlington Hydro Inc. | B74: EB-2020-0007 | C74: 2021 | D74: 2020 | E74: 2014 | F74: System Access | G74: ='App.2-AB_Capital Expenditures'!AC14 -> 2021 | H74: ='App.2-AB_Capital Expenditures'!AC17 -> 29645.59776
A75: ='LDC Info'!$E$14 -> Burlington Hydro Inc. | B75: EB-2020-0007 | C75: 2021 | D75: 2020 | E75: 2014 | F75: System Renewal | G75: ='App.2-AB_Capital Expenditures'!AC14 -> 2021 | H75: ='App.2-AB_Capital Expenditures'!AC18 -> 3080
A76: ='LDC Info'!$E$14 -> Burlington Hydro Inc. | B76: EB-2020-0007 | C76: 2021 | D76: 2020 | E76: 2014 | F76: System Service | G76: ='App.2-AB_Capital Expenditures'!AC14 -> 2021 | H76: ='App.2-AB_Capital Expenditures'!AC19 -> 375
A77: ='LDC Info'!$E$14 -> Burlington Hydro Inc. | B77: EB-2020-0007 | C77: 2021 | D77: 2020 | E77: 2014 | F77: General Plant | G77: ='App.2-AB_Capital Expenditures'!AC14 -> 2021 | H77: ='App.2-AB_Capital Expenditures'!AC20 -> 1497.87
A78: ='LDC Info'!$E$14 -> Burlington Hydro Inc. | B78: EB-2020-0007 | C78: 2021 | D78: 2020 | E78: 2014 | F78: Total Expenditure | G78: ='App.2-AB_Capital Expenditures'!AC14 -> 2021 | H78: ='App.2-AB_Capital Expenditures'!AC21 -> 34598.46776
A79: ='LDC Info'!$E$14 -> Burlington Hydro Inc. | B79: EB-2020-0007 | C79: 2021 | D79: 2020 | E79: 2014 | F79: Capital Contributions | G79: ='App.2-AB_Capital Expenditures'!AC14 -> 2021 | H79: ='App.2-AB_Capital Expenditures'!AC22 -> -20608.33443
A80: ='LDC Info'!$E$14 -> Burlington Hydro Inc. | B80: EB-2020-0007 | C80: 2021 | D80: 2020 | E80: 2014 | F80: Net Capital Expenditures | G80: ='App.2-AB_Capital Expenditures'!AC14 -> 2021 | H80: ='App.2-AB_Capital Expenditures'!AC23 -> 13990.13333
A81: ='LDC Info'!$E$14 -> Burlington Hydro Inc. | B81: EB-2020-0007 | C81: 2021 | D81: 2020 | E81: 2014 | F81: System O&M | G81: ='App.2-AB_Capital Expenditures'!AC14 -> 2021 | H81: ='App.2-AB_Capital Expenditures'!AC24 -> 10266.61184
A82: ='LDC Info'!$E$14 -> Burlington Hydro Inc. | B82: EB-2020-0007 | C82: 2021 | D82: 2020 | E82: 2014 | F82: System Access | G82: ='App.2-AB_Capital Expenditures'!AD14 -> 2022 | H82: ='App.2-AB_Capital Expenditures'!AD17 -> 10905
A83: ='LDC Info'!$E$14 -> Burlington Hydro Inc. | B83: EB-2020-0007 | C83: 2021 | D83: 2020 | E83: 2014 | F83: System Renewal | G83: ='App.2-AB_Capital Expenditures'!AD14 -> 2022 | H83: ='App.2-AB_Capital Expenditures'!AD18 -> 3290
A84: ='LDC Info'!$E$14 -> Burlington Hydro Inc. | B84: EB-2020-0007 | C84: 2021 | D84: 2020 | E84: 2014 | F84: System Service | G84: ='App.2-AB_Capital Expenditures'!AD14 -> 2022 | H84: ='App.2-AB_Capital Expenditures'!AD19 -> 800
A85: ='LDC Info'!$E$14 -> Burlington Hydro Inc. | B85: EB-2020-0007 | C85: 2021 | D85: 2020 | E85: 2014 | F85: General Plant | G85: ='App.2-AB_Capital Expenditures'!AD14 -> 2022 | H85: ='App.2-AB_Capital Expenditures'!AD20 -> 2064.5
A86: ='LDC Info'!$E$14 -> Burlington Hydro Inc. | B86: EB-2020-0007 | C86: 2021 | D86: 2020 | E86: 2014 | F86: Total Expenditure | G86: ='App.2-AB_Capital Expenditures'!AD14 -> 2022 | H86: ='App.2-AB_Capital Expenditures'!AD21 -> 17059.5
A87: ='LDC Info'!$E$14 -> Burlington Hydro Inc. | B87: EB-2020-0007 | C87: 2021 | D87: 2020 | E87: 2014 | F87: Capital Contributions | G87: ='App.2-AB_Capital Expenditures'!AD14 -> 2022 | H87: ='App.2-AB_Capital Expenditures'!AD22 -> -5898.5
A88: ='LDC Info'!$E$14 -> Burlington Hydro Inc. | B88: EB-2020-0007 | C88: 2021 | D88: 2020 | E88: 2014 | F88: Net Capital Expenditures | G88: ='App.2-AB_Capital Expenditures'!AD14 -> 2022 | H88: ='App.2-AB_Capital Expenditures'!AD23 -> 11161
A89: ='LDC Info'!$E$14 -> Burlington Hydro Inc. | B89: EB-2020-0007 | C89: 2021 | D89: 2020 | E89: 2014 | F89: System O&M | G89: ='App.2-AB_Capital Expenditures'!AD14 -> 2022 | H89: ='App.2-AB_Capital Expenditures'!AD24 -> 10471.94407
A90: ='LDC Info'!$E$14 -> Burlington Hydro Inc. | B90: EB-2020-0007 | C90: 2021 | D90: 2020 | E90: 2014 | F90: System Access | G90: ='App.2-AB_Capital Expenditures'!AE14 -> 2023 | H90: ='App.2-AB_Capital Expenditures'!AE17 -> 9574
A91: ='LDC Info'!$E$14 -> Burlington Hydro Inc. | B91: EB-2020-0007 | C91: 2021 | D91: 2020 | E91: 2014 | F91: System Renewal | G91: ='App.2-AB_Capital Expenditures'!AE14 -> 2023 | H91: ='App.2-AB_Capital Expenditures'!AE18 -> 3015
A92: ='LDC Info'!$E$14 -> Burlington Hydro Inc. | B92: EB-2020-0007 | C92: 2021 | D92: 2020 | E92: 2014 | F92: System Service | G92: ='App.2-AB_Capital Expenditures'!AE14 -> 2023 | H92: ='App.2-AB_Capital Expenditures'!AE19 -> 850
A93: ='LDC Info'!$E$14 -> Burlington Hydro Inc. | B93: EB-2020-0007 | C93: 2021 | D93: 2020 | E93: 2014 | F93: General Plant | G93: ='App.2-AB_Capital Expenditures'!AE14 -> 2023 | H93: ='App.2-AB_Capital Expenditures'!AE20 -> 1852
A94: ='LDC Info'!$E$14 -> Burlington Hydro Inc. | B94: EB-2020-0007 | C94: 2021 | D94: 2020 | E94: 2014 | F94: Total Expenditure | G94: ='App.2-AB_Capital Expenditures'!AE14 -> 2023 | H94: ='App.2-AB_Capital Expenditures'!AE21 -> 15291
A95: ='LDC Info'!$E$14 -> Burlington Hydro Inc. | B95: EB-2020-0007 | C95: 2021 | D95: 2020 | E95: 2014 | F95: Capital Contributions | G95: ='App.2-AB_Capital Expenditures'!AE14 -> 2023 | H95: ='App.2-AB_Capital Expenditures'!AE22 -> -4567.5
A96: ='LDC Info'!$E$14 -> Burlington Hydro Inc. | B96: EB-2020-0007 | C96: 2021 | D96: 2020 | E96: 2014 | F96: Net Capital Expenditures | G96: ='App.2-AB_Capital Expenditures'!AE14 -> 2023 | H96: ='App.2-AB_Capital Expenditures'!AE23 -> 10723.5
A97: ='LDC Info'!$E$14 -> Burlington Hydro Inc. | B97: EB-2020-0007 | C97: 2021 | D97: 2020 | E97: 2014 | F97: System O&M | G97: ='App.2-AB_Capital Expenditures'!AE14 -> 2023 | H97: ='App.2-AB_Capital Expenditures'!AE24 -> 10681.38296
A98: ='LDC Info'!$E$14 -> Burlington Hydro Inc. | B98: =EBNUMBER -> EB-2020-0007 | C98: =TestYear -> 2021 | D98: =BridgeYear -> 2020 | E98: =RebaseYear -> 2014 | F98: System Access | G98: ='App.2-AB_Capital Expenditures'!AF14 -> 2024 | H98: ='App.2-AB_Capital Expenditures'!AF17 -> 8074
A99: ='LDC Info'!$E$14 -> Burlington Hydro Inc. | B99: EB-2020-0007 | C99: 2021 | D99: 2020 | E99: 2014 | F99: System Renewal | G99: ='App.2-AB_Capital Expenditures'!AF14 -> 2024 | H99: ='App.2-AB_Capital Expenditures'!AF18 -> 3015
A100: ='LDC Info'!$E$14 -> Burlington Hydro Inc. | B100: EB-2020-0007 | C100: 2021 | D100: 2020 | E100: 2014 | F100: System Service | G100: ='App.2-AB_Capital Expenditures'!AF14 -> 2024 | H100: ='App.2-AB_Capital Expenditures'!AF19 -> 800
A101: ='LDC Info'!$E$14 -> Burlington Hydro Inc. | B101: EB-2020-0007 | C101: 2021 | D101: 2020 | E101: 2014 | F101: General Plant | G101: ='App.2-AB_Capital Expenditures'!AF14 -> 2024 | H101: ='App.2-AB_Capital Expenditures'!AF20 -> 1169.5
A102: ='LDC Info'!$E$14 -> Burlington Hydro Inc. | B102: EB-2020-0007 | C102: 2021 | D102: 2020 | E102: 2014 | F102: Total Expenditure | G102: ='App.2-AB_Capital Expenditures'!AF14 -> 2024 | H102: ='App.2-AB_Capital Expenditures'!AF21 -> 13058.5
A103: ='LDC Info'!$E$14 -> Burlington Hydro Inc. | B103: EB-2020-0007 | C103: 2021 | D103: 2020 | E103: 2014 | F103: Capital Contributions | G103: ='App.2-AB_Capital Expenditures'!AF14 -> 2024 | H103: ='App.2-AB_Capital Expenditures'!AF22 -> -4005
A104: ='LDC Info'!$E$14 -> Burlington Hydro Inc. | B104: EB-2020-0007 | C104: 2021 | D104: 2020 | E104: 2014 | F104: Net Capital Expenditures | G104: ='App.2-AB_Capital Expenditures'!AF14 -> 2024 | H104: ='App.2-AB_Capital Expenditures'!AF23 -> 9053.5
A105: ='LDC Info'!$E$14 -> Burlington Hydro Inc. | B105: EB-2020-0007 | C105: 2021 | D105: 2020 | E105: 2014 | F105: System O&M | G105: ='App.2-AB_Capital Expenditures'!AF14 -> 2024 | H105: ='App.2-AB_Capital Expenditures'!AF24 -> 10895.01061
A106: ='LDC Info'!$E$14 -> Burlington Hydro Inc. | B106: EB-2020-0007 | C106: 2021 | D106: 2020 | E106: 2014 | F106: System Access | G106: ='App.2-AB_Capital Expenditures'!AG14 -> 2025 | H106: ='App.2-AB_Capital Expenditures'!AG17 -> 8074
A107: ='LDC Info'!$E$14 -> Burlington Hydro Inc. | B107: EB-2020-0007 | C107: 2021 | D107: 2020 | E107: 2014 | F107: System Renewal | G107: ='App.2-AB_Capital Expenditures'!AG14 -> 2025 | H107: ='App.2-AB_Capital Expenditures'!AG18 -> 3015
A108: ='LDC Info'!$E$14 -> Burlington Hydro Inc. | B108: EB-2020-0007 | C108: 2021 | D108: 2020 | E108: 2014 | F108: System Service | G108: ='App.2-AB_Capital Expenditures'!AG14 -> 2025 | H108: ='App.2-AB_Capital Expenditures'!AG19 -> 850
A109: ='LDC Info'!$E$14 -> Burlington Hydro Inc. | B109: EB-2020-0007 | C109: 2021 | D109: 2020 | E109: 2014 | F109: General Plant | G109: ='App.2-AB_Capital Expenditures'!AG14 -> 2025 | H109: ='App.2-AB_Capital Expenditures'!AG20 -> 1077
A110: ='LDC Info'!$E$14 -> Burlington Hydro Inc. | B110: EB-2020-0007 | C110: 2021 | D110: 2020 | E110: 2014 | F110: Total Expenditure | G110: ='App.2-AB_Capital Expenditures'!AG14 -> 2025 | H110: ='App.2-AB_Capital Expenditures'!AG21 -> 13016
A111: ='LDC Info'!$E$14 -> Burlington Hydro Inc. | B111: EB-2020-0007 | C111: 2021 | D111: 2020 | E111: 2014 | F111: Capital Contributions | G111: ='App.2-AB_Capital Expenditures'!AG14 -> 2025 | H111: ='App.2-AB_Capital Expenditures'!AG22 -> -4005
A112: ='LDC Info'!$E$14 -> Burlington Hydro Inc. | B112: EB-2020-0007 | C112: 2021 | D112: 2020 | E112: 2014 | F112: Net Capital Expenditures | G112: ='App.2-AB_Capital Expenditures'!AG14 -> 2025 | H112: ='App.2-AB_Capital Expenditures'!AG23 -> 9011
A113: ='LDC Info'!$E$14 -> Burlington Hydro Inc. | B113: EB-2020-0007 | C113: 2021 | D113: 2020 | E113: 2014 | F113: System O&M | G113: ='App.2-AB_Capital Expenditures'!AG14 -> 2025 | H113: ='App.2-AB_Capital Expenditures'!AG24 -> 11112.91083

Sheet App.2-AC_Customer Engagement
B1: File Number: | C1: =EBNUMBER -> EB-2020-0007
B2: Exhibit:
B3: Tab:
B4: Schedule:
B5: Page:
B7: Date:
A9: Appendix 2-AC
A10: Customer Engagement Activities Summary
A12: Provide a list of customer engagement activities | B12: Provide a list of customer needs and preferences identified through each engagement activity | C12: Actions taken to respond to identified needs and preferences. If no action was taken, explain why.
A13: ENHANCED CUSTOMER ENGAGEMENT - Cost of Service Rate Application 2021-2025 | B13: BHI engaged Innovative Research Group (IRG) to support enhanced customer engagement outreach for its 2021 Cost of Service Rate Application
A14: PHASE 1: Customer Engagement Outcomes and Priorities - Low Volume Customers Exploratory Focus Groups - Held on May 16, 2019 (2 focus group sessions: for small business and residential customers) | B14: The objective of the focus groups was to obtain information and insights on the customer journey, comparative customer experiences and touchpoints, and thoughts on customer outcomes and the criteria for measuring identified outcomes. 1) Customer Knowledge - Knowledge about BHI is largely limited to customer’s direct experience with the utility, and seems to be a direct extension from what they see on their bill. As such, there was some uncertainty across both groups about BHI’s specific role within Ontario’s electricity system, particularly concerning the ownership of infrastructure and local authority on price and time-of-use. 2) Customer Journey - Customers’ touchpoints with BHI are limited. Beyond paying their bill, participants call BHI to set up their account or to discuss their bills. The website is used to check and monitor outages. Participants expect BHI to be there when they call on them, but expect them to otherwise be largely invisible. Generally, participants are very satisfied with the service they receive from BHI. 3) Emerging Issues - There were several emerging issues that participants said BHI should plan for. Among these, responding to climate change, increased adoption of electric vehicles (EVs), and adapting to changing technology were more frequently cited. 4) Identified Priorities - Participants were asked to rank priorities they thought BHI should focus on. Ranked at the top were incentive to lower usage, increased customer service and support, and investment in new infrastructure and technology. | C14: 1) Customer Knowledge - An enhanced webpage has been added to the new website that lays out 'Burlington Hydro's Role in Ontario's Electricity System'. Information on rates and how that breaks down is a standard page on the website and has been for many years. BHI offers a free service that helps customers manage their usage and which provides individual data on their own consumption - TOU Toolkit, transitioning to My Account later in 2020. 2) Customer Journey - The company continually monitors its communication and customer service channels to ensure it is meeting customer expectations. The addition of an after-hours answering service and a planned Chat feature for its website later in 2020, are recent examples of how BHI continues to upgrade its services. 3) Emerging Issues - BHI has taken a number of measures in response to emerging issues: a. Responding to Climate Change - BHI is an active participant/stakeholder on the City of Burlington's Climate Action Plan (CAP) b. Adoption of EVs - BHI has been actively involved in piloting and offering EV charging station services. That work continues in all spaces: residential, condo, municipal property, and businesses. c. Adapting to Changing Technology - BHI is responding to the challenges of disruptive technologies through upgrades to its Geographic Information System (GIS), Outage Management System (OMS), Customer Information System (CIS), Cyber Security framework, distributed generation pilot, etc. and as an LDC partner of the GridSmartCity Cooperative partnership with McMaster University's Integrated Community Energy (ICE) Harvesting System Project, among others. 4) Identified Priorities - Although the IESO has taken over most CDM programming, BHI continues to provide conservation tips to its customers (newsletters, website conservation portal, social media), delivering Affordability Fund program, Pool Saver CDM program; continue to improve customer service offerings; and investments are being made in infrastructure and technology (see DSP).
A15: PHASE 1: Telephone Reference Survey - Residential Ratepayer Questionnaire (Field date June 3 to 25, 2019) PHASE 1: Online Reference Survey - Residential Ratepayer Questionnaire (Launched June 5 to 21, 2019) Total customers engaged in Phase I: 1,810 customers Feeds into: Needs and Preferences Planning Placement | B15: As part of its Phase I Customer Engagement, BHI surveyed its residential and small business customers. Among each customer type, parallel telephone and online surveys were conducted. - clear majority of BHI low-volume customers are satisfied with current service they receive. When asked how BHI can improve service, top responses were “nothing”, followed by “lower or reduce rates”. - customers don’t just expect BHI to focus on price & reliability, all priorities are important. In fact, all low-volume customers selected “ensuring reliable electrical service” as the most important priority that BHI should focus on. - price, reliability, and finding efficiencies are the top three priorities for both residential and small business customers. When ranked relative to other BHI priorities, price moves to the top of the list for both low-volume rate classes. - top reliability concern is reducing the length of time to restore power during extreme weather events, followed closely by reducing the overall length of outages, followed by reducing the overall number of outages. - despite price concerns, low-volume customers are generally willing to consider paying more to invest in aging infrastructure, equip staff with equipment and IT systems, proactively invest in system capacity, and modernize the grid knowing that it could eventually save money. - low-volume customers are most supportive of BHI investment in aging infrastructure in order to maintain reliability, even if that results in small rate increases. - majority of customers support BHI making the necessary investments to ensure its staff have the equipment and IT systems that are needed to manage the system efficiently and reliably. - majority of customers support BHI proactively investing in system capacity in order to ensure that customers in high growth areas do not experience a decrease in reliability. - beyond containing cost increases and maintaining reliability, investments in new technology appear to be a core priority for low-volume customers if it can eventually save customer money down the road. | C15: Survey responses were summarized in the “Customer Engagement: Needs and Preferences Planning Placemat.” The Placemat provided a summary of the findings from the Phase I surveys, including both needs and preferences. It was shared with BHI planners and helped ensure that customer feedback was incorporated into the planning process at the outset. Specifically, BHI planners used the Placemat to develop the draft 2021 to 2025 investment plan used in Phase 2 of the customer engagement.
A16: PHASE II - Draft Customer Engagement Workbook - Focus Group Sessions December 11, 2019 | B16: As part of Phase 2 engagement BHI gathered input on its draft plan to ensure it was making spending decisions that mattered to customers. Two focus group sessions consisting of residential and small business customers took place on December 11, 2019 to assess and provide feedback on its draft Workbook. - It was noted that there was “no content missing” nor were they left with any “unanswered questions”. The diagnostics strongly indicated that the Phase II workbook was positively perceived and covered the information that was expected. - It was felt that “just the right amount” of information was provided. - In terms of planning future and ongoing customer engagement efforts, the workbook “diagnostics” indicated that BHI had found the right balance between the complexity and accessibility of the information provided. | C16: Using the input from the Phase I customer engagement, BHI planners developed a draft plan that included an estimated baseline cost and identified a number of investment areas where pacing could be accelerated, or slowed down, in order to align with customer needs and expectations. The Phase II customer engagement focused on presenting these investment trade-offs to customers and gathering feedback on BHI draft plan. Besides some slight tweaking of language in the draft Workbook, no substantial changes to the final workbook were made based on the positive feedback from the focus groups.
A17: PHASE II - Distribution of Customer Engagement Workbook - Residential and Small Business Voluntary (accessing workbook independently from BHI website) - 397 residential and small business customers completed the workbook [January 16 to February 21,2020] Representative (workbook sent to customers with email addresses that BHI had on file) - 4,400 residential and small business customers completed the workbook [January 8 to February 21, 2020] | B17: Phase II of BHI’s customer engagement focused on customer preferences on pacing and balancing outcomes. An online “workbook” survey was deployed to all customers with an email address on file, as well as promoted through a generic link to ensure that all customers who wanted to participate in the utility’s engagement had an opportunity to do so. While customers feel that BHI should focus on reliability and delivering electricity at a reasonable rate, there is also a general willingness to invest in the grid. The majority of residential and small business customers are willing to consider paying more to: - Invest in maintaining reliability; - Equip staff with equipment and IT systems; - Proactively invest in system capacity and modernizing the grid knowing that it could eventually save money. Feedback on specific investment alternative included: - Replacing poles in poor condition - more than 85% of customers across all rate classes support the proposed or an accelerated approach to replacing poles in poor condition. - Proactively replacing breakers, switchgears, and relays - more than 90% of all customers in all rate classes support a move to proactive replacement from the status quo reactive approach. - MS feeder cable replacement - more than 88% of customers across all rate classes support the proposed or an accelerated approach to replacing MS feeder cables in poor condition. - Replacing older power transformers - while a strong majority of all customers support BHI’s proposed approach to replacing older power transformers, it received the least amount of support of the eight investments. - Preparing for community growth - strong majorities in each rate class support the approach that is currently included in the utility’s draft plan. Overall, customers are prepared to pay for the level of investment included in BHI’s draft plan. | C17: Ultimately, customers believe that BHI had found the right balance between the level of investment proposed in the draft plan, and the associated rate impacts presented. They concurred with BHI's approach. Throughout this engagement, customers consistently noted that they would be supportive of incremental investments to be more proactive in terms of system renewal, and other investments that provide benefit to customers both today and in the future. BHI took the following actions to respond to identified needs and preferences: - Taking a more proactive approach regarding the pacing of its pole replacement program compared to historical levels. - Introducing a new switchgear replacement program to address the high number of units assessed in Very Poor condition, consistent with customer feedback. - Introducing a new MS feeder cable replacement program to address the high number of cables assessed in Very Poor condition, consistent with customer feedback. - Reduced the number for transformer replacements in the 2021 draft plan to mitigate the bill impact of an emergency replacement in 2020, as customers were least supportive of the proposed pacing. - Modified the pacing of the NE Burlington TS Egress project, to mitigate bill impacts given other capital priorities and system needs.
A18: PHASE II - Large Customer Workshop - GS>50 kW (January 22, 2020 event) Large Customer Workbook Distribution by Email Blast - 486 emails sent to GS>50 kW customers to complete the workbook. | B18: The GS>50kW portion of Phase II featured a two-staged approach which employed both qualitative and quantitative research methods. This two-staged approach was designed to allow these larger business customers multiple opportunities to provide feedback, both in-person at the workshop, and as part of a broadly distributed online workbook. Diagnostics strongly indicate that the Phase II workbook was positively perceived by nearly all customers and covered the information that was expected. Feedback was generally consistent with Phase 2 of the residential and small business stream. | C18: Ultimately, like their residential and small business customers, GS>50 kW customers believe that BHI had found the right balance between the level of investment proposed in the draft plan, and the associated rate impacts presented. They concurred with BHI's approach. Throughout this engagement, customers consistently noted that they would be supportive of incremental investments to be more proactive in terms of system renewal, and other investments that provide benefit to customers both today and in the future. See Phase 2 of the residential and small business stream for actions to respond to identified needs and preferences.
A19: ONGOING CUSTOMER ENGAGEMENT
A20: Annual Customer Satisfaction Survey - Residential and Small Business customers | B20: BHI has engaged UtilityPULSE to conduct yearly Customer Satisfaction Surveys for over a decade. The primary objective of the survey is to provide information that supports discussions about improving customer care at every level of BHI – in 2019, survey results were based on 430 one-on-one telephone interviews, representing a 13% response rate of 3,271 households and businesses reached. Each customer response/score in the annual survey is carefully analyzed and is an important indicator/influencer of what needs to be reviewed in BHI processes and/or services. The survey includes a Customer Centric Engagement Index. The goal is to help customers: - Feel valued as a customer; - Appreciate being connected to a respected and trusted company; and, - Have confidence the company will adapt well to changes in customer expectations In 2019 survey, BHI Customer Centric Engagement Index was 88%, 5 percentages higher than the Ontario average. BHI's Overall Customer Satisfaction Scores have consistently out-performed the Ontario average, by up to 12 percentage points. 2019 marked the highest percentage satisfaction over the past 6 years: - 2014 - 92% of BHI customers are overall satisfied with BHI's performance and services; - 2015 - 90% - 2016 - 86% - 2017 - 91% - 2018 - 94% - 2019 - 96% | C20: For many years, BHI had analyzed customer survey responses and made improvements to better meet customer expectations as identified in the surveys. Although overall satisfaction scores have remained high, there is always room for improvement. Based primarily on customer service priorities, a number of services/products have been introduced to respond to identified customer preferences and expectations, including, among others: - BHI website improvements to provide enhanced content (Conservation, Outage, and Safety portals), a new website in 2020 that is more intuitive and navigable, on-line, self-serve forms and applications, e-billing service, TOU management - Social media presence on Twitter, YouTube, LinkedIn. Twitter has been a popular tool during power outages, but also to provide timely conservation and safety information. - An Outage Management System (OMS) has enabled improved outage response and communication with customers during outages, including a web-based outage map that pinpoints the extent of the outage in real time, gives estimated restoration times, and provides insight into the cause of the outage. - A mobile application that provides access to the outage map and other web-based services, all from the convenience of a smart phone or tablet. - An after-hours and backup customer service call centre, available 24/7
A21: Large Customer Satisfaction Survey - 2018 and 2019 | B21: In both 2018 and 2019, BHI engaged UtilityPULSE to conduct a Large Customer Satisfaction Survey. The survey contains feedback from 50 one-on-one telephone interviews with those who have the responsibility to interact with BHI. Based on the responses of Large Customer respondents in the 2019 survey, the following top 5 initiatives were given high priority ratings within the next 5 years: 1. Reducing response times to outages; 2. Maintaining and upgrading equipment; 3. Investing more in the electricity grid to reduce outages; 4. Providing expertise to commercial customers regarding changes in energy technology; and, 5. Investing more in tree trimming to help reduce the number of outages. 2018 - 95% of BHI large customers are overall satisfied with BHI's performance and services 2019 - 96% of BHI large customers are overall satisfied with BHI's performance and services | C21: The greatest emphasis centred on reducing outages and response times to those outages. Large customers want more invested in the electricity grid to reduce outages and more investment in tree trimming activities, again as a means to reduce outages. As in the COS large customer engagement, GS>50kW consistently noted that they would be supportive of investments being more proactive for system renewal, and investments that provide benefit to customers today and in the future. Actions that are already taking place, and will help in reducing outages or shortening the duration of outages include: - Tremaine transformer station (TS) first delivered power to BHI in 2014. Since that time, BHI has continued to extend egress feeders further into the city to relieve excess loading from other transformer station locations and provide for more flexible operation by Control Room Operators during power outages. - As part of BHI’s ongoing commitment to provide reliable service, a comprehensive tree trimming program is in place. A rotating 3-year maintenance schedule is aimed at mitigating outages that are caused by tree limb contacts. - An array of tools designed to extend spatial mapping visibility to field crews has been enabled. Line crews now have access to a new GIS application ‘CrewOps’, which is integrated with BHI's OMS, allowing field users to view mapping of the electrical network, current outages/incidents, and dispatched trouble calls. - Large commercial customers increasingly look to BHI for advice. The need to adopt a robust “major account management” methodology for supporting them has been acknowledged with plans to develop an approach to create stronger working bonds. This is currently under development.
A22: Bi-annual Public Awareness of Safety Survey Telephone survey undertaken in 2016, 2018, and 2020 | B22: 2016, 2018 and 2020 BHI engaged UtilityPULSE to conduct its bi-annual survey to assess public awareness of the dangers/risks associated with electricity. The survey compiles data to measure the level of awareness of key electrical safety precautions among the public within the electricity distributor’s service territory. Results are based on a telephone survey (Random Digit Dialing) among 400 Members of the General Public,18 years of age or older, within the LDC’s geographic service territory. The 2020 survey and previous years’ surveys of the public in BHI’s service territory about electrical safety show many respondents do have good knowledge or have received some information pertaining to the 6 core measurement questions. BHI’s Public Safety Awareness Index Score is 83%. | C22: A number of enhancements have been made to BHI’s safety communications to better educate the public on electrical safety awareness since 2016: - In 2016, BHI developed a portal dedicated to electrical safety on its website – The Power to be Safe. This important section of the BHI public website features Lessons for Life / Family Safety / Teacher and Youth Safety, and more. - In 2019, closer ties bringing together subject matter on the Safety and Outage portals was interlinked on BHI’s new website. - In 2017, a series of six videos featuring Lucky the Squirrel were introduced and posted on the BHI website and thru a series of social media tweets. - Since 2014, BHI has issued safety themed newsletters posted on the website and featured as giveaways at community events – power to be safe, power outage safety and power outage safety on farms. - BHI continues to offer its popular electrical safety program to elementary students – the Power to Be Safe Roadshow has impacted over 33,000 Burlington students over the past five years.
A23: Customer Service Interactions | B23: Knowledgeable customer service representatives engage with BHI customers on a daily basis through a number of direct customer service interactions – by telephone, email, mail, fax, and face-to-face (by appointment). Although on-line services are a growing preference for many customers, many continue to prefer to speak directly with a customer service representative (CSR). From 2014 to 2019 296,241 calls were handled by the Customer Service department. 59,309 pieces of customer correspondence were undertaken and delivered. As severe storms become more frequent - with a greater potential to cause widespread power outages – BHI customers have come to expect more immediate information about restoration efforts in their neighbourhoods. Core Customer Service Quality Attributes (2020) - Deals professionally with customer problems - 88% satisfaction rating (4percentage pts above ON avg) - Customer-focused and treats customers as if they are valued - 83% satisfaction rating (3 percentage pts above ON avg) - Is a company that is easy to do business with - 88% satisfaction rating (5 percentage pts above ON avg) | C23: Time is an important commodity to people. This is reflected in a package of upgrades aimed at improving the customer experience: - An after-hours call service to manage outage calls 24/7. The service aligns with customer expectations of being able to reach BHI at any time of day. - BHI is replacing its aging CIS with a system that will allow CSRs to more easily and quickly access account and operational information for customers, and improve customer self-serve options. - BHI’s OMS provides the technology to give CSRs direct access to outage information, which is then shared in real time with customers looking for answers. - Better managing high telephone volumes - A new phone system has been installed with greater capacity to accept increased call volumes, and which features a new call back function. Other services and upgrades in the works include: - Implementation of automated inbound email queuing and distribution that will increase response time to customer emails. - A revised ViewMyBill and TOU Toolkit are being re-deployed under one portal – MyAccount. BHI’s customers have provided feedback that the necessity to have to sign in to two services is not very convenient. This is being addressed and will be fully implemented by the end of 2020. - Customers have asked that email notification for paperless billing should include the amount owing. With a new CIS being deployed, BHI is now able to include this and other basic information when emailing e-billing notifications. - Implementation of a real time chat portal on the BHI website that links directly to a CSR is planned for late 2020/21. This will provide another layer to how customers are able to communicate with customer service.
A24: Community Outreach | B24: Community outreach is an important aspect of how BHI engages with its customers throughout the year. Post event de-briefing sessions help to encapsulate what current customer interests and concerns are – from electricity pricing and managing bills, to programs and advice on how to conserve power, among others. It has helped to better understand, and take action on what customers value most. A good example is the repeated requests received for more conservation tips and power outage safety information. It has been among considerations included in BHI’s decision to develop dedicated portals with expanded content on safety, outages, and conservation on its website; create instructional safety videos; and publish content rich, theme-driven customer newsletters, inserts and social media posts. Part of the Credibility and Trust Rating (2019 Customer Satisfaction Survey): BHI is actively involved in the industry, in the community and in things that affect the customer. Overall score for BHI is 88% (4 percentage pts above ON avg). | C24: BHI's outreach programs include: - Participation in local events such as Home Shows and community festivals provide unique outreach opportunities to engage with customers and their families (Children’s Festival, Halton Forest Festival, Green Up Clean Up, Joseph Brant Day, among others). - Participating in community-hosted events (normally business focused) has also provided meaningful outreach opportunities - with Rotary Clubs, the Chamber of Commerce, community and city organizations. These events also present a chance to speak about the broader electricity market, and the roles and responsibilities of other significant players in the sector – the Ontario Energy Board, the IESO, OPG and the ESA. - Public Open Houses have celebrated and highlighted office and trades operations, as well as the broader spectrum of the electricity sector, through interactive displays, hand-outs, demonstrations and one-on-one engagement (2015 and 2016). If permissible, BHI will participate in the Open Doors Burlington event in the fall of 2020. - Creating powerline and electrical safety awareness in its community begins with the education of its children. The BHI ‘Power to Be Safe’ Roadshow is an interactive, content-packed presentation, designed especially for young students. From 2014 to 2019, over 33,000 elementary school children participated in the popular program. As a Climate Action Plan Stakeholder Committee member, BHI is providing its expertise to help contribute to the development of a plan that focuses on deep energy building retrofits, renewable energy and electric mobility, among other program areas. BHI is among a number of community companies and institutions supporting this initiative and working with local government to provide subject-matter expertise.
A25: Online and Digital Tools | B25: Providing customers with clear, easy-to-access digital services and information has had significant impacts on how BHI is engaging with customers. New technology and advances in on-line communications have enhanced access to digital tools and real-time data that respond to customer preferences for those who prefer self-serve web-based options, or getting information via a website or social media platform. BHI’s satisfaction survey results have shown that the Convenience of Services in terms of online self-serve services is important to its customers. BHI has scored lower in this category than it would like to see, particularly as it regards: - Online self-serve option for managing your account; and, - Online self-serve options for requesting services. | C25: Successful Paperless Billing campaigns ran in 2016/17 and 2019/20 where with each new registration $5 was donated to planting trees in community parks and supporting Joe Brant Museum's LEED standard transformation building, respectively. The combined campaigns resulted in 5,010 new customers registered for paperless billing. BHI has responded to customer requests for more self-serve options on-line, and it has recently launched a new and more intuitive website that is easier to navigate and brings high profile issues front and center on the homepage – most recently BHI’s COVID-19 response. -The website is often the first point of contact for many of BHI’s customers. BHI follows what webpages customers are most likely to access and can deduce subject areas of most interest. BHI also closely monitors data through analytics to keep on the pulse of what customers are most interested. In fact, this is highlighted on BHI’s new website and identified as ‘Scroll through our most visited pages’. - In 2020/21 greater emphasis will be made on the selection and expansion of business customer request forms. Currently, over 15 self-serve online forms for both residential and businesses can be accessed from the BHI website – from applications for new services to deposit waiver forms, and more. - BHI's e-billing service (ViewMyBill) and electricity bill management tools (TOU Toolkit) respond to the desire for greater convenience and self-serve access. 25,426 customers are ViewMyBill customers, representing 38% of BHI’s customer base (as of June 1, 2020). These services will be wrapped up under one dashboard portal – MyAccount – in 2020. This is something that customers have been requesting for some time. The new service will allow customers to manage their electricity accounts and access consumption themselves through a single, new dashboard. -BHI’s web-based Outage Maps provides up-to-date information on power interruptions, map locality, estimated time of restoration, and the reason for the outage. It continues to keep inbound calls to customer service down, particularly during major power outages. It is a mainstay of engaging with customers digitally during power interruptions. In 2019, there were 589,045 visits to BHI’s website, of which 250,184 were to the Outage Map webpage. - BHI’s Twitter account was launched during the Ice Storm of 2013 and has been an important tool to engage with customers about safety, conservation and outages ever since. As of June 1, 2020, BHI had 7,431 followers. This number grows exponentially, by the 10s of thousands, with re-tweets by the City and local media, among other sources. Twitter analytics are also closely monitored to identify which tweets are of greatest interest/significance to customers.
A45: Note: Use "ALT-ENTER" to go to the next line within a cell

Sheet App.2-B_Acctg Instructions
A1: General Instructions to MIFRS Appendices
A2: Types of Schedules to File
A4: The purpose of this tab is to provide general instructions. The specific instructions to each appendix are listed in footnotes of each appendix.
A6: The typical applicant is expected to have made capitalization and depreciation policy changes under CGAAP as permitted by the OEB on January 1, 2012 or mandated by the OEB by January 1, 2013, and adopted IFRS for reporting purposes on January 1, 2015 (transition date January 1, 2014). Most distributors filing for 2021 rates have rebased with these accounting changes reflected in a prior rebasing application. If that is the case, information relating to pre-accounting policy changes is not generally required. Most distributors may have rebased under MIFRS. If that is the case, information related to the accounting standard used prior to IFRS is not generally required. The information to be provided by applicants will depend on when the accounting policy changes were made and when they last rebased. In general, applicants should provide the following information in the appendices:
E9: Reflecting Accounting Policy Changes in Current Application | G9: Reflected Accounting Policy Changes in Prior Application3 | H9: Rebased under MIFRS in Prior Application3
E10: Accounting Policy Changes in 2012 and Adopted IFRS in 2015 | F10: Accounting Policy Changes in 2013 and Adopted IFRS in 2015 | G10: Adopted IFRS in 2015 | H10: IFRS Since 2015
B11: 2021 | C11: Test | E11: MIFRS | F11: MIFRS | G11: MIFRS | H11: MIFRS
A12: Information to be filed in 2019 CoS Application | B12: 2020 | C12: Bridge | E12: MIFRS | F12: MIFRS | G12: MIFRS | H12: MIFRS
B13: 2019 | C13: Bridge | E13: MIFRS | F13: MIFRS | G13: MIFRS | H13: MIFRS
B14: 2018 | C14: Bridge | E14: MIFRS | F14: MIFRS | G14: MIFRS | H14: MIFRS
B15: 2017 | C15: Historical | E15: MIFRS | F15: MIFRS | G15: MIFRS | H15: MIFRS
B16: 2016 | C16: Historical | E16: MIFRS | F16: MIFRS | G16: MIFRS | H16: MIFRS
B17: 2015 | C17: Historical | E17: MIFRS and Revised CGAAP1 | F17: MIFRS and Revised CGAAP1 | G17: MIFRS and Revised CGAAP1 | H17: N/A
B18: 2014 | C18: Historical | E18: Revised CGAAP | F18: CGAAP and Revised CGAAP2 | G18: N/A | H18: N/A
B19: 2013 | C19: Historical | E19: CGAAP and Revised CGAAP2 | F19: N/A | G19: N/A | H19: N/A
A21: 1) For the transition year (2014), the applicant may file two appendices, one under Revised CGAAP and one under MIFRS, depending on the materiality of impacts. See the specific instructions under each appendix below for further details.
A22: 2) For applicants that are reflecting accounting policy changes for the first time in a rebasing application, the applicant must file two appendices in the year that the applicant implemented changes to its capitalization and depreciation policies (2012 or 2013), one before and one after the policy changes.
A23: 3) Applicants should provide CGAAP and Revised CGAAP schedules (i.e. as indicated in the first two columns of the above table) to support balances in Account 1576 if the account has yet to be disposed of.
A26: Appendix 2-BA - Fixed Asset Schedule
A28: Applicants are to provide Appendix 2-BA in accordance with the years and corresponding accounting standards noted in the above table to provide a year over year continuity in fixed assets.
A29: If this is the first application where the applicant is rebasing under MIFRS, the applicant should file two appendices, one under Revised CGAAP and one under MIFRS for the transition year (2014), if the change between Revised CGAAP and MIFRS is material. If the change from the accounting standards is not material, the applicant may choose to only provide one appendix under MIFRS. However, the applicant must also indicate the fixed asset net book value balance under Revised CGAAP, the total dollar value of the change and explain why it is not material.
A33: The applicant must establish the continuity of historical cost for gross assets and accumulated depreciation by asset class by ensuring that the opening balance in the year agrees to the closing balance in the prior year.
A36: Appendix 2-Cx - Depreciation and Amortization
A38: Applicants are to provide Appendix 2-C in accordance with the years and corresponding accounting standards listed in the above table.
A39: Appendix 2-C is to be used under all of the scenarios presented in the table above. In the appendix, the applicant will need to indicate which scenario applies. The appendix is to be duplicated for each year and for each accounting standard required as per the above table.
A40: Depreciation accounting policy changes were mandated by the OEB by January 1, 2013. In general, no further changes to an applicant's depreciation policy (i.e. assets' service lives) are expected after the OEB mandated changes by January 1, 2013, unless a change is determined to be necessary in accordance with the depreciation review required under IFRS. If the applicant has made any changes to its depreciation policy subsequent to the OEB mandated changes, for the year of the change, applicants must quantify the change in depreciation. If there are significant changes to multiple asset classes, the applicant must complete Appendix 2-C before and after the change. Applicants must also explain the nature of the change, the reason for the change, quantify the impact of the change.
A42: Appendix 2-E - Account 1575, IFRS-CGAAP Transitional PP&E Amounts (2-EA), Account 1576, Accounting Changes Under CGAAP (2-EB, 2-EC) CONTACT OEB STAFF IF TAB REQUIRED
A44: 1) For an applicant that has a balance in Account 1576 to dispose:
A45: · | B45: If an applicant changed capitalization and depreciation policies effective January 1, 2012, the applicant must complete Appendix 2-EB
A46: · | B46: If an applicant changed capitalization and depreciation policies effective January 1, 2013, the applicant must complete Appendix 2-EC
A48: 2) For an applicant that has a balance in Account 1575 to dispose:
A49: · | B49: The applicant must complete 2-EA
A50: If the applicant did not make any further PP&E accounting policy changes beyond the capitalization and depreciation policy changes as mandated by the OEB by January 1, 2013 (i.e. no further changes made on transition to IFRS), the applicant must indicate this and does not need to complete Appendix 2-EA.
A54: Appendix 2-Y - Summary of Impacts to Revenue Requirement from Transition to MIFRS CONTACT OEB STAFF IF TAB REQUIRED
A56: Applicants must complete Appendix 2-Y if this is the first rebasing application under MIFRS. An applicant must provide a summary of the dollar impacts of MIFRS to each component of the revenue requirement (e.g. rate base, operating costs, etc.), including the overall impact on the proposed revenue requirement. Accordingly, the applicant must identify financial differences and resulting revenue requirement impacts arising from the adoption of MIFRS as compared to CGAAP. If the applicant is reflecting the changes in capitalization and depreciation policies for the first time in a rebasing application as well, then a comparison between MIFRS and CGAAP before the change in accounting policies should be completed. If the applicant changed capitalization and depreciation policies and reflected these changes in a prior rebasing application, then a comparison between MIFRS and CGAAP after the change in accounting policies should be completed.

Sheet App.2-BA_Fixed Asset Cont
N1: File Number: | O1: =EBNUMBER -> EB-2020-0007
N2: Exhibit:
N3: Tab:
N4: Schedule:
N5: Page:
N7: Date:
A9: Appendix 2-BA
A10: Fixed Asset Continuity Schedule 1
E12: Accounting Standard | F12: CGAAP
E13: Year | F13: 2014
D15: Cost | K15: Accumulated Depreciation
A16: CCA Class 2 | B16: OEB Account 3 | C16: Description 3 | D16: Opening Balance | E16: Additions 4 | F16: Disposals 6 | G16: ICM | H16: Closing Balance | J16: Opening Balance | K16: Additions | L16: Disposals 6 | M16: ICM | N16: Closing Balance | O16: Net Book Value
B17: 1609 | C17: Capital Contributions Paid | D17: 4113602 | E17: 0 | F17: 0 | H17: =D17+E17+F17+G17 -> 4113602 | J17: -34280.02 | K17: -68560.08 | L17: 0 | N17: =J17+K17+L17+M17 -> -102840.1 | O17: =H17+N17 -> 4010761.9
A18: 12 | B18: 1611 | C18: Computer Software (Formally known as Account 1925) | D18: 6009904.11 | E18: 907888.59 | F18: 0 | H18: =D18+E18+F18+G18 -> 6917792.7 | J18: -3977066.74 | K18: -362141.02 | L18: 0 | N18: =J18+K18+L18+M18 -> -4339207.76 | O18: =H18+N18 -> 2578584.94
A19: CEC | B19: 1612 | C19: Land Rights (Formally known as Account 1906) | D19: 189350.5 | E19: 0 | F19: 0 | H19: 189350.5 | J19: -29342.76 | K19: -2828.3 | L19: 0 | N19: -32171.06 | O19: =H19+N19 -> 157179.44
A20: N/A | B20: 1805 | C20: Land | D20: 202702.95 | E20: 0 | F20: 0 | H20: 202702.95 | J20: 0 | K20: 0 | L20: 0 | N20: 0 | O20: =H20+N20 -> 202702.95
A21: 47 | B21: 1808 | C21: Buildings | D21: 2296844.26 | E21: 14760 | F21: 0 | H21: 2311604.26 | J21: -1213873.09 | K21: -63004.5 | L21: 0 | N21: -1276877.59 | O21: =H21+N21 -> 1034726.67
A22: 13 | B22: 1810 | C22: Leasehold Improvements | D22: 0 | E22: 0 | F22: 0 | H22: 0 | J22: 0 | K22: 0 | L22: 0 | N22: 0 | O22: 0
A23: 47 | B23: 1815 | C23: Transformer Station Equipment >50 kV | D23: 0 | E23: 0 | F23: 0 | H23: 0 | J23: 0 | K23: 0 | L23: 0 | N23: 0 | O23: 0
A24: 47 | B24: 1820 | C24: Distribution Station Equipment <50 kV | D24: 13764570.04 | E24: 170119.31 | F24: 0 | H24: 13934689.35 | J24: -9167948.95 | K24: -240185.53 | L24: 0 | N24: -9408134.48 | O24: 4526554.87
A25: 47 | B25: 1825 | C25: Storage Battery Equipment | D25: 0 | E25: 0 | F25: 0 | H25: 0 | J25: 0 | K25: 0 | L25: 0 | N25: 0 | O25: 0
A26: 47 | B26: 1830 | C26: Poles, Towers & Fixtures | D26: 35328520.45 | E26: 1674041.05 | F26: 0 | H26: 37002561.5 | J26: -15412382.78 | K26: -620102.62 | L26: 0 | N26: -16032485.4 | O26: 20970076.1
A27: 47 | B27: 1835 | C27: Overhead Conductors & Devices | D27: 42892385.81 | E27: 1801804.38 | F27: 0 | H27: 44694190.19 | J27: -24488265.23 | K27: -533978.79 | L27: 0 | N27: -25022244.02 | O27: 19671946.17
A28: 47 | B28: 1840 | C28: Underground Conduit | D28: 17184911.4 | E28: 1745521.77 | F28: 0 | H28: 18930433.17 | J28: -8021540.39 | K28: -192209.57 | L28: 0 | N28: -8213749.96 | O28: 10716683.21
A29: 47 | B29: 1845 | C29: Underground Conductors & Devices | D29: 27873551.4 | E29: 1077893.18 | F29: 0 | H29: 28951444.58 | J29: -14773074.24 | K29: -563721.17 | L29: 0 | N29: -15336795.41 | O29: 13614649.17
A30: 47 | B30: 1850 | C30: Line Transformers | D30: 49306544.71 | E30: 1502177.48 | F30: 0 | H30: 50808722.19 | J30: -28031170.37 | K30: -716423.35 | L30: 0 | N30: -28747593.72 | O30: 22061128.47
A31: 47 | B31: 1855 | C31: Services (Overhead & Underground) | D31: 32565941.63 | E31: 1853440.11 | F31: 0 | H31: 34419381.74 | J31: -18519563.49 | K31: -293358.97 | L31: 0 | N31: -18812922.46 | O31: 15606459.28
A32: 47 | B32: 1860 | C32: Meters | D32: 18891512.77 | E32: 528332.9 | F32: 0 | H32: 19419845.67 | J32: -7755594.35 | K32: -924574.56 | L32: 0 | N32: -8680168.91 | O32: 10739676.76
A33: 47 | B33: 1860 | C33: Meters (Smart Meters) | H33: 0 | N33: 0 | O33: 0
A34: N/A | B34: 1905 | C34: Land | D34: 96299.71 | E34: 0 | F34: 0 | H34: 96299.71 | J34: 0 | K34: 0 | L34: 0 | N34: 0 | O34: 96299.71
A35: 47 | B35: 1908 | C35: Buildings & Fixtures | D35: 8484358.06 | E35: 214098.86 | F35: 0 | H35: 8698456.92 | J35: -4137510.25 | K35: -241844.58 | L35: 0 | N35: -4379354.83 | O35: 4319102.09
A36: 13 | B36: 1910 | C36: Leasehold Improvements | D36: 0 | E36: 0 | F36: 0 | H36: 0 | J36: 0 | K36: 0 | L36: 0 | N36: 0 | O36: 0
A37: 8 | B37: 1915 | C37: Office Furniture & Equipment (10 years) | D37: 1483403.09 | E37: 50889.76 | F37: -4097.98 | H37: 1530194.87 | J37: -1191904.94 | K37: -55872.63 | L37: 4097.98 | N37: -1243679.59 | O37: 286515.28
A38: 8 | B38: 1915 | C38: Office Furniture & Equipment (5 years) | H38: 0 | N38: 0 | O38: 0
A39: 10 | B39: 1920 | C39: Computer Equipment - Hardware | D39: 934035.4 | E39: 47480.48 | F39: 0 | H39: 981515.88 | J39: -697077.97 | K39: -75357.04 | L39: 0 | N39: -772435.01 | O39: 209080.87
A40: 45 | B40: 1920 | C40: Computer Equip.-Hardware(Post Mar. 22/04) | H40: 0 | N40: 0 | O40: 0
A41: 50 | B41: 1920 | C41: Computer Equip.-Hardware(Post Mar. 19/07) | H41: 0 | N41: 0 | O41: 0
A42: 10 | B42: 1930 | C42: Transportation Equipment | D42: 3748211.8 | E42: 75000 | F42: 0 | H42: 3823211.8 | J42: -2831633.33 | K42: -78102.12 | L42: 0 | N42: -2909735.45 | O42: 913476.35
A43: 8 | B43: 1935 | C43: Stores Equipment | D43: 292425.13 | E43: 0 | F43: 0 | H43: 292425.13 | J43: -292425.13 | K43: 0 | L43: 0 | N43: -292425.13 | O43: 0
A44: 8 | B44: 1940 | C44: Tools, Shop & Garage Equipment | D44: 1368455.22 | E44: 105315.6 | F44: 0 | H44: 1473770.82 | J44: -1247895.54 | K44: -30653.11 | L44: 0 | N44: -1278548.65 | O44: 195222.17
A45: 8 | B45: 1945 | C45: Measurement & Testing Equipment | D45: 381931.48 | E45: 1395 | F45: 0 | H45: 383326.48 | J45: -357503.99 | K45: -5292.02 | L45: 0 | N45: -362796.01 | O45: 20530.47
A46: 8 | B46: 1950 | C46: Power Operated Equipment | D46: 0 | E46: 0 | F46: 0 | H46: 0 | J46: 0 | K46: 0 | L46: 0 | N46: 0 | O46: 0
A47: 8 | B47: 1955 | C47: Communications Equipment | D47: 191860.82 | E47: 0 | F47: 0 | H47: 191860.82 | J47: -191860.82 | K47: 0 | L47: 0 | N47: -191860.82 | O47: 0
A48: 8 | B48: 1955 | C48: Communication Equipment (Smart Meters) | H48: 0 | N48: 0 | O48: 0
A49: 8 | B49: 1960 | C49: Miscellaneous Equipment | D49: 0 | E49: 0 | F49: 0 | H49: 0 | J49: 0 | K49: 0 | L49: 0 | N49: 0 | O49: 0
A50: 47 | B50: 1970 | C50: Load Management Controls Customer Premises | D50: 0 | E50: 0 | F50: 0 | H50: 0 | J50: 0 | K50: 0 | L50: 0 | N50: 0 | O50: 0
A51: 47 | B51: 1975 | C51: Load Management Controls Utility Premises | D51: 0 | E51: 0 | F51: 0 | H51: 0 | J51: 0 | K51: 0 | L51: 0 | N51: 0 | O51: 0
A52: 47 | B52: 1980 | C52: System Supervisor Equipment | D52: 3957642.06 | E52: 68661.93 | F52: 0 | H52: 4026303.99 | J52: -3203655.65 | K52: -67670.87 | L52: 0 | N52: -3271326.52 | O52: 754977.47
A53: 47 | B53: 1985 | C53: Miscellaneous Fixed Assets | D53: 0 | E53: 0 | F53: 0 | H53: 0 | J53: 0 | K53: 0 | L53: 0 | N53: 0 | O53: 0
A54: 47 | B54: 1990 | C54: Other Tangible Property | D54: 0 | E54: 0 | F54: 0 | H54: 0 | J54: 0 | K54: 0 | L54: 0 | N54: 0 | O54: 0
A55: 47 | B55: 1995 | C55: Contributions & Grants | D55: -29277060.49 | E55: -4389250.68 | F55: 0 | H55: -33666311.17 | J55: 6533217.06 | K55: 609892.97 | L55: 0 | N55: 7143110.03 | O55: -26523201.14
A56: 47 | B56: 2440 | C56: Deferred Revenue5 | D56: 0 | E56: -675132.22 | F56: 0 | H56: -675132.22 | J56: 0 | K56: 0 | L56: 0 | N56: 0 | O56: =H56+N56 -> -675132.22
B57: 2005 | C57: Property Under Finance Lease7 | D57: 0 | E57: 0 | F57: 0 | H57: 0 | J57: 0 | K57: 0 | L57: 0 | N57: 0 | O57: 0
C58: Sub-Total | D58: =SUM(D17:D57) -> 242281904.3 | E58: =SUM(E17:E57) -> 6774437.5 | F58: =SUM(F17:F57) -> -4097.98 | H58: =SUM(H17:H57) -> 249052243.8 | J58: =SUM(J17:J57) -> -139042353 | K58: =SUM(K17:K57) -> -4525987.86 | L58: =SUM(L17:L57) -> 4097.98 | N58: =SUM(N17:N57) -> -143564242.8 | O58: =SUM(O17:O57) -> 105488001
C59: Less Socialized Renewable Energy Generation Investments (input as negative) | H59: 0 | N59: 0 | O59: =H59+N59 -> 0
C60: Less Other Non Rate-Regulated Utility Assets (input as negative) | H60: 0 | N60: 0 | O60: 0
C61: Total PP&E | D61: =SUM(D58:D60) -> 242281904.3 | E61: =SUM(E58:E60) -> 6774437.5 | F61: =SUM(F58:F60) -> -4097.98 | H61: =SUM(H58:H60) -> 249052243.8 | J61: =SUM(J58:J60) -> -139042353 | K61: =SUM(K58:K60) -> -4525987.86 | L61: =SUM(L58:L60) -> 4097.98 | N61: =SUM(N58:N60) -> -143564242.8 | O61: =SUM(O58:O60) -> 105488001
C62: Depreciation Expense adj. from gain or loss on the retirement of assets (pool of like assets), if applicable6
C63: Total | K63: =K61+K62 -> -4525987.86
J65: Less: Fully Allocated Depreciation
A66: 10 | C66: Transportation | J66: Transportation | L66: -78102.12
A67: 12 | C67: Admin - Software | J67: Admin - Software | L67: -260.04
A68: 12 | C68: IT - Software | J68: IT - Software | L68: -55437.58
A69: 12 | C69: Eng. - Software | J69: Eng. - Software | L69: -262990.3
J70: Net Depreciation | L70: =K63-L66-L67-L69-L68 -> -4129197.82
E72: Accounting Standard | F72: MIFRS
E73: Year | F73: 2014
D75: Cost | K75: Accumulated Depreciation
A76: CCA Class 2 | B76: OEB Account 3 | C76: Description 3 | D76: Opening Balance | E76: Additions 4 | F76: Disposals 6 | G76: ICM | H76: Closing Balance | J76: Opening Balance | K76: Additions | L76: Disposals 6 | M76: ICM | N76: Closing Balance | O76: Net Book Value
B77: 1609 | C77: Capital Contributions Paid | D77: 4113602 | E77: 0 | F77: 0 | H77: =D77+E77+F77+G77 -> 4113602 | J77: -34280.02 | K77: -68560.08 | L77: 0 | N77: =J77+K77+L77+M77 -> -102840.1 | O77: =H77+N77 -> 4010761.9
A78: 12 | B78: 1611 | C78: Computer Software (Formally known as Account 1925) | D78: 6009904.11 | E78: 907888.59 | F78: 0 | H78: =D78+E78+F78+G78 -> 6917792.7 | J78: -3977066.74 | K78: -362141.02 | L78: 0 | N78: =J78+K78+L78+M78 -> -4339207.76 | O78: =H78+N78 -> 2578584.94
A79: CEC | B79: 1612 | C79: Land Rights (Formally known as Account 1906) | D79: 189350.5 | E79: 0 | F79: 0 | H79: 189350.5 | J79: -29342.76 | K79: -2828.3 | L79: 0 | N79: -32171.06 | O79: 157179.44
A80: N/A | B80: 1805 | C80: Land | D80: 202702.95 | E80: 0 | F80: 0 | H80: 202702.95 | J80: 0 | K80: 0 | L80: 0 | N80: 0 | O80: 202702.95
A81: 47 | B81: 1808 | C81: Buildings | D81: 2296844.26 | E81: 14760 | F81: 0 | H81: 2311604.26 | J81: -1213873.09 | K81: -63004.5 | L81: 0 | N81: -1276877.59 | O81: 1034726.67
A82: 13 | B82: 1810 | C82: Leasehold Improvements | D82: 0 | E82: 0 | F82: 0 | H82: 0 | J82: 0 | K82: 0 | L82: 0 | N82: 0 | O82: 0
A83: 47 | B83: 1815 | C83: Transformer Station Equipment >50 kV | D83: 0 | E83: 0 | F83: 0 | H83: 0 | J83: 0 | K83: 0 | L83: 0 | N83: 0 | O83: 0
A84: 47 | B84: 1820 | C84: Distribution Station Equipment <50 kV | D84: 13764570.04 | E84: 170119.31 | F84: 0 | H84: 13934689.35 | J84: -9167948.95 | K84: -240185.53 | L84: 0 | N84: -9408134.48 | O84: 4526554.87
A85: 47 | B85: 1825 | C85: Storage Battery Equipment | D85: 0 | E85: 0 | F85: 0 | H85: 0 | J85: 0 | K85: 0 | L85: 0 | N85: 0 | O85: 0
A86: 47 | B86: 1830 | C86: Poles, Towers & Fixtures | D86: 35328520.45 | E86: 1674041.05 | F86: 0 | H86: 37002561.5 | J86: -15412382.78 | K86: -620102.62 | L86: 0 | N86: -16032485.4 | O86: 20970076.1
A87: 47 | B87: 1835 | C87: Overhead Conductors & Devices | D87: 42892385.81 | E87: 1801804.38 | F87: 0 | H87: 44694190.19 | J87: -24488265.23 | K87: -533978.79 | L87: 0 | N87: -25022244.02 | O87: 19671946.17
A88: 47 | B88: 1840 | C88: Underground Conduit | D88: 17184911.4 | E88: 1745521.77 | F88: 0 | H88: 18930433.17 | J88: -8021540.39 | K88: -192209.57 | L88: 0 | N88: -8213749.96 | O88: 10716683.21
A89: 47 | B89: 1845 | C89: Underground Conductors & Devices | D89: 27873551.4 | E89: 1077893.18 | F89: 0 | H89: 28951444.58 | J89: -14773074.24 | K89: -563721.17 | L89: 0 | N89: -15336795.41 | O89: 13614649.17
A90: 47 | B90: 1850 | C90: Line Transformers | D90: 49306544.71 | E90: 1502177.48 | F90: 0 | H90: 50808722.19 | J90: -28031170.37 | K90: -716423.35 | L90: 0 | N90: -28747593.72 | O90: 22061128.47
A91: 47 | B91: 1855 | C91: Services (Overhead & Underground) | D91: 32565941.63 | E91: 1853440.11 | F91: 0 | H91: 34419381.74 | J91: -18519563.49 | K91: -293358.97 | L91: 0 | N91: -18812922.46 | O91: 15606459.28
A92: 47 | B92: 1860 | C92: Meters | D92: 18891512.77 | E92: 528332.9 | F92: 0 | H92: 19419845.67 | J92: -7755594.35 | K92: -924574.56 | L92: 0 | N92: -8680168.91 | O92: 10739676.76
A93: 47 | B93: 1860 | C93: Meters (Smart Meters) | H93: 0 | N93: 0 | O93: 0
A94: N/A | B94: 1905 | C94: Land | D94: 96299.71 | E94: 0 | F94: 0 | H94: 96299.71 | J94: 0 | K94: 0 | L94: 0 | N94: 0 | O94: 96299.71
A95: 47 | B95: 1908 | C95: Buildings & Fixtures | D95: 8484358.06 | E95: 214098.86 | F95: 0 | H95: 8698456.92 | J95: -4137510.25 | K95: -241844.58 | L95: 0 | N95: -4379354.83 | O95: 4319102.09
A96: 13 | B96: 1910 | C96: Leasehold Improvements | D96: 0 | E96: 0 | F96: 0 | H96: 0 | J96: 0 | K96: 0 | L96: 0 | N96: 0 | O96: 0
A97: 8 | B97: 1915 | C97: Office Furniture & Equipment (10 years) | D97: 1483403.09 | E97: 50889.76 | F97: -4097.98 | H97: 1530194.87 | J97: -1191904.94 | K97: -55872.63 | L97: 4097.98 | N97: -1243679.59 | O97: 286515.28
A98: 8 | B98: 1915 | C98: Office Furniture & Equipment (5 years) | H98: 0 | N98: 0 | O98: 0
A99: 10 | B99: 1920 | C99: Computer Equipment - Hardware | D99: 934035.4 | E99: 47480.48 | F99: 0 | H99: 981515.88 | J99: -697077.97 | K99: -75357.04 | L99: 0 | N99: -772435.01 | O99: 209080.87
A100: 45 | B100: 1920 | C100: Computer Equip.-Hardware(Post Mar. 22/04) | H100: 0 | N100: 0 | O100: 0
A101: 50 | B101: 1920 | C101: Computer Equip.-Hardware(Post Mar. 19/07) | H101: 0 | N101: 0 | O101: 0
A102: 10 | B102: 1930 | C102: Transportation Equipment | D102: 3748211.8 | E102: 75000 | F102: 0 | H102: 3823211.8 | J102: -2831633.33 | K102: -78102.12 | L102: 0 | N102: -2909735.45 | O102: 913476.35
A103: 8 | B103: 1935 | C103: Stores Equipment | D103: 292425.13 | E103: 0 | F103: 0 | H103: 292425.13 | J103: -292425.13 | K103: 0 | L103: 0 | N103: -292425.13 | O103: 0
A104: 8 | B104: 1940 | C104: Tools, Shop & Garage Equipment | D104: 1368455.22 | E104: 105315.6 | F104: 0 | H104: 1473770.82 | J104: -1247895.54 | K104: -30653.11 | L104: 0 | N104: -1278548.65 | O104: 195222.17
A105: 8 | B105: 1945 | C105: Measurement & Testing Equipment | D105: 381931.48 | E105: 1395 | F105: 0 | H105: 383326.48 | J105: -357503.99 | K105: -5292.02 | L105: 0 | N105: -362796.01 | O105: 20530.47
A106: 8 | B106: 1950 | C106: Power Operated Equipment | D106: 0 | E106: 0 | F106: 0 | H106: 0 | J106: 0 | K106: 0 | L106: 0 | N106: 0 | O106: 0
A107: 8 | B107: 1955 | C107: Communications Equipment | D107: 191860.82 | E107: 0 | F107: 0 | H107: 191860.82 | J107: -191860.82 | K107: 0 | L107: 0 | N107: -191860.82 | O107: 0
A108: 8 | B108: 1955 | C108: Communication Equipment (Smart Meters) | H108: 0 | N108: 0 | O108: 0
A109: 8 | B109: 1960 | C109: Miscellaneous Equipment | D109: 0 | E109: 0 | F109: 0 | H109: 0 | J109: 0 | K109: 0 | L109: 0 | N109: 0 | O109: 0
A110: 47 | B110: 1970 | C110: Load Management Controls Customer Premises | D110: 0 | E110: 0 | F110: 0 | H110: 0 | J110: 0 | K110: 0 | L110: 0 | N110: 0 | O110: 0
A111: 47 | B111: 1975 | C111: Load Management Controls Utility Premises | D111: 0 | E111: 0 | F111: 0 | H111: 0 | J111: 0 | K111: 0 | L111: 0 | N111: 0 | O111: 0
A112: 47 | B112: 1980 | C112: System Supervisor Equipment | D112: 3957642.06 | E112: 68661.93 | F112: 0 | H112: 4026303.99 | J112: -3203655.65 | K112: -67670.87 | L112: 0 | N112: -3271326.52 | O112: 754977.47
A113: 47 | B113: 1985 | C113: Miscellaneous Fixed Assets | D113: 0 | E113: 0 | F113: 0 | H113: 0 | J113: 0 | K113: 0 | L113: 0 | N113: 0 | O113: 0
A114: 47 | B114: 1990 | C114: Other Tangible Property | D114: 0 | E114: 0 | F114: 0 | H114: 0 | J114: 0 | K114: 0 | L114: 0 | N114: 0 | O114: 0
A115: 47 | B115: 1995 | C115: Contributions & Grants | D115: -29277060.49 | E115: -4389250.68 | F115: 0 | H115: -33666311.17 | J115: 6533217.06 | K115: 609892.97 | L115: 0 | N115: 7143110.03 | O115: -26523201.14
A116: 47 | B116: 2440 | C116: Deferred Revenue5 | D116: 0 | E116: -675132.22 | F116: 0 | H116: -675132.22 | J116: 0 | K116: 0 | L116: 0 | N116: 0 | O116: -675132.22
B117: 2005 | C117: Property Under Finance Lease7 | D117: 0 | E117: 0 | F117: 0 | H117: 0 | J117: 0 | K117: 0 | L117: 0 | N117: 0 | O117: 0
C118: Sub-Total | D118: =SUM(D77:D117) -> 242281904.3 | E118: =SUM(E77:E117) -> 6774437.5 | F118: =SUM(F77:F117) -> -4097.98 | H118: =SUM(H77:H117) -> 249052243.8 | J118: =SUM(J77:J117) -> -139042353 | K118: =SUM(K77:K117) -> -4525987.86 | L118: =SUM(L77:L117) -> 4097.98 | N118: =SUM(N77:N117) -> -143564242.8 | O118: =SUM(O77:O117) -> 105488001
C119: Less Socialized Renewable Energy Generation Investments (input as negative) | H119: =D119+E119+F119+G119 -> 0 | N119: =J119+K119+L119+M119 -> 0 | O119: =H119+N119 -> 0
C120: Less Other Non Rate-Regulated Utility Assets (input as negative) | H120: 0 | N120: 0 | O120: =H120+N120 -> 0
C121: Total PP&E | D121: =SUM(D118:D120) -> 242281904.3 | E121: =SUM(E118:E120) -> 6774437.5 | F121: =SUM(F118:F120) -> -4097.98 | H121: =SUM(H118:H120) -> 249052243.8 | J121: =SUM(J118:J120) -> -139042353 | K121: =SUM(K118:K120) -> -4525987.86 | L121: =SUM(L118:L120) -> 4097.98 | N121: =SUM(N118:N120) -> -143564242.8 | O121: =SUM(O118:O120) -> 105488001
C122: Depreciation Expense adj. from gain or loss on the retirement of assets (pool of like assets), if applicable6
C123: Total | K123: =K121+K122 -> -4525987.86
J125: Less: Fully Allocated Depreciation
A126: 10 | C126: Transportation | J126: Transportation | L126: 0
A127: 12 | C127: Admin - Software | J127: Admin - Software | L127: 0
A128: 12 | C128: IT - Software | J128: IT - Software | L128: 0
A129: 12 | C129: Eng. - Software | J129: Eng. - Software | L129: 0
J130: Net Depreciation | L130: =K123-L126-L127-L129-L128 -> -4525987.86
E132: Accounting Standard | F132: MIFRS
E133: Year | F133: 2015
D135: Cost | K135: Accumulated Depreciation
A136: CCA Class 2 | B136: OEB Account 3 | C136: Description 3 | D136: Opening Balance | E136: Additions 4 | F136: Disposals 6 | G136: ICM | H136: Closing Balance | J136: Opening Balance | K136: Additions | L136: Disposals 6 | M136: ICM | N136: Closing Balance | O136: Net Book Value
B137: 1609 | C137: Capital Contributions Paid | D137: 4113602 | E137: 0 | F137: 0 | H137: =D137+E137+F137+G137 -> 4113602 | J137: -102840.1 | K137: -68560.08 | L137: 0 | N137: =J137+K137+L137+M137 -> -171400.18 | O137: =H137+N137 -> 3942201.82
A138: 12 | B138: 1611 | C138: Computer Software (Formally known as Account 1925) | D138: 6917792.7 | E138: 604965.17 | F138: 0 | H138: 7522757.87 | J138: -4339207.76 | K138: -445045.65 | L138: 0 | N138: -4784253.41 | O138: =H138+N138 -> 2738504.46
A139: CEC | B139: 1612 | C139: Land Rights (Formally known as Account 1906) | D139: 189350.5 | E139: 0 | F139: 0 | H139: 189350.5 | J139: -32171.06 | K139: -2828.3 | L139: 0 | N139: -34999.36 | O139: =H139+N139 -> 154351.14
A140: N/A | B140: 1805 | C140: Land | D140: 202702.95 | E140: 0 | F140: 0 | H140: 202702.95 | J140: 0 | K140: 0 | L140: 0 | N140: 0 | O140: =H140+N140 -> 202702.95
A141: 47 | B141: 1808 | C141: Buildings | D141: 2311604.26 | E141: 15205 | F141: 0 | H141: 2326809.26 | J141: -1276877.59 | K141: -63367.15 | L141: 0 | N141: -1340244.74 | O141: =H141+N141 -> 986564.52
A142: 13 | B142: 1810 | C142: Leasehold Improvements | D142: 0 | E142: 0 | F142: 0 | H142: 0 | J142: 0 | K142: 0 | L142: 0 | N142: 0 | O142: 0
A143: 47 | B143: 1815 | C143: Transformer Station Equipment >50 kV | D143: 0 | E143: 0 | F143: 0 | H143: 0 | J143: 0 | K143: 0 | L143: 0 | N143: 0 | O143: 0
A144: 47 | B144: 1820 | C144: Distribution Station Equipment <50 kV | D144: 13934689.35 | E144: 121543.67 | F144: 0 | H144: 14056233.02 | J144: -9408134.48 | K144: -266711.64 | L144: 0 | N144: -9674846.12 | O144: 4381386.9
A145: 47 | B145: 1825 | C145: Storage Battery Equipment | D145: 0 | E145: 0 | F145: 0 | H145: 0 | J145: 0 | K145: 0 | L145: 0 | N145: 0 | O145: 0
A146: 47 | B146: 1830 | C146: Poles, Towers & Fixtures | D146: 37002561.5 | E146: 1280206.19 | F146: -80040.59 | H146: 38202727.1 | J146: -16032485.4 | K146: -670611.95 | L146: 21286.78 | N146: -16681810.57 | O146: 21520916.53
A147: 47 | B147: 1835 | C147: Overhead Conductors & Devices | D147: 44694190.19 | E147: 1505381.96 | F147: -121108.56 | H147: 46078463.59 | J147: -25022244.02 | K147: -563216.46 | L147: 40682.6 | N147: -25544777.88 | O147: 20533685.71
A148: 47 | B148: 1840 | C148: Underground Conduit | D148: 18930433.17 | E148: 867879.48 | F148: -18645.76 | H148: 19779666.89 | J148: -8213749.96 | K148: -233753.6 | L148: 1976.14 | N148: -8445527.42 | O148: 11334139.47
A149: 47 | B149: 1845 | C149: Underground Conductors & Devices | D149: 28951444.58 | E149: 1119845.91 | F149: -11780.44 | H149: 30059510.05 | J149: -15336795.41 | K149: -612568.89 | L149: 1888.29 | N149: -15947476.01 | O149: 14112034.04
A150: 47 | B150: 1850 | C150: Line Transformers | D150: 50808722.19 | E150: 1822242.68 | F150: -291945.13 | H150: 52339019.74 | J150: -28747593.72 | K150: -778419.14 | L150: 150650.04 | N150: -29375362.82 | O150: 22963656.92
A151: 47 | B151: 1855 | C151: Services (Overhead & Underground) | D151: 34419381.74 | E151: 831138.14 | F151: -45680.73 | H151: 35204839.15 | J151: -18812922.46 | K151: -348379.03 | L151: 11600.02 | N151: -19149701.47 | O151: 16055137.68
A152: 47 | B152: 1860 | C152: Meters | D152: 19419845.67 | E152: 552119.25 | F152: 0 | H152: 19971964.92 | J152: -8680168.91 | K152: -942615.04 | L152: 0 | N152: -9622783.95 | O152: 10349180.97
A153: 47 | B153: 1860 | C153: Meters (Smart Meters) | H153: 0 | N153: 0 | O153: 0
A154: N/A | B154: 1905 | C154: Land | D154: 96299.71 | E154: 0 | F154: 0 | H154: 96299.71 | J154: 0 | K154: 0 | L154: 0 | N154: 0 | O154: 96299.71
A155: 47 | B155: 1908 | C155: Buildings & Fixtures | D155: 8698456.92 | E155: 381228.64 | F155: 0 | H155: 9079685.56 | J155: -4379354.83 | K155: -262837.94 | L155: 0 | N155: -4642192.77 | O155: 4437492.79
A156: 13 | B156: 1910 | C156: Leasehold Improvements | D156: 0 | E156: 0 | F156: 0 | H156: 0 | J156: 0 | K156: 0 | L156: 0 | N156: 0 | O156: 0
A157: 8 | B157: 1915 | C157: Office Furniture & Equipment (10 years) | D157: 1530194.87 | E157: 23366.05 | F157: 0 | H157: 1553560.92 | J157: -1243679.59 | K157: -58170.37 | L157: 0 | N157: -1301849.96 | O157: 251710.96
A158: 8 | B158: 1915 | C158: Office Furniture & Equipment (5 years) | H158: 0 | N158: 0 | O158: 0
A159: 10 | B159: 1920 | C159: Computer Equipment - Hardware | D159: 981515.88 | E159: 60448.94 | F159: 0 | H159: 1041964.82 | J159: -772435.01 | K159: -71212.81 | L159: 0 | N159: -843647.82 | O159: 198317
A160: 45 | B160: 1920 | C160: Computer Equip.-Hardware(Post Mar. 22/04) | H160: 0 | N160: 0 | O160: 0
A161: 50 | B161: 1920 | C161: Computer Equip.-Hardware(Post Mar. 19/07) | H161: 0 | N161: 0 | O161: 0
A162: 10 | B162: 1930 | C162: Transportation Equipment | D162: 3823211.8 | E162: 928570.4 | F162: -471426.4 | H162: 4280355.8 | J162: -2909735.45 | K162: -131072.07 | L162: 360517.21 | N162: -2680290.31 | O162: 1600065.49
A163: 8 | B163: 1935 | C163: Stores Equipment | D163: 292425.13 | E163: 0 | F163: 0 | H163: 292425.13 | J163: -292425.13 | K163: 0 | L163: 0 | N163: -292425.13 | O163: 0
A164: 8 | B164: 1940 | C164: Tools, Shop & Garage Equipment | D164: 1473770.82 | E164: 12101.71 | F164: 0 | H164: 1485872.53 | J164: -1278548.65 | K164: -33917.29 | L164: 0 | N164: -1312465.94 | O164: 173406.59
A165: 8 | B165: 1945 | C165: Measurement & Testing Equipment | D165: 383326.48 | E165: 6368.04 | F165: 0 | H165: 389694.52 | J165: -362796.01 | K165: -4778.48 | L165: 0 | N165: -367574.49 | O165: 22120.03
A166: 8 | B166: 1950 | C166: Power Operated Equipment | D166: 0 | E166: 0 | F166: 0 | H166: 0 | J166: 0 | K166: 0 | L166: 0 | N166: 0 | O166: 0
A167: 8 | B167: 1955 | C167: Communications Equipment | D167: 191860.82 | E167: 0 | F167: 0 | H167: 191860.82 | J167: -191860.82 | K167: 0 | L167: 0 | N167: -191860.82 | O167: 0
A168: 8 | B168: 1955 | C168: Communication Equipment (Smart Meters) | H168: 0 | N168: 0 | O168: 0
A169: 8 | B169: 1960 | C169: Miscellaneous Equipment | D169: 0 | E169: 24433.51 | F169: 0 | H169: 24433.51 | J169: 0 | K169: -820.28 | L169: 0 | N169: -820.28 | O169: 23613.23
A170: 47 | B170: 1970 | C170: Load Management Controls Customer Premises | D170: 0 | E170: 0 | F170: 0 | H170: 0 | J170: 0 | K170: 0 | L170: 0 | N170: 0 | O170: 0
A171: 47 | B171: 1975 | C171: Load Management Controls Utility Premises | D171: 0 | E171: 0 | F171: 0 | H171: 0 | J171: 0 | K171: 0 | L171: 0 | N171: 0 | O171: 0
A172: 47 | B172: 1980 | C172: System Supervisor Equipment | D172: 4026303.99 | E172: 96201.56 | F172: 0 | H172: 4122505.55 | J172: -3271326.52 | K172: -70392.88 | L172: 0 | N172: -3341719.4 | O172: 780786.15
A173: 47 | B173: 1985 | C173: Miscellaneous Fixed Assets | D173: 0 | E173: 0 | F173: 0 | H173: 0 | J173: 0 | K173: 0 | L173: 0 | N173: 0 | O173: 0
A174: 47 | B174: 1990 | C174: Other Tangible Property | D174: 0 | E174: 0 | F174: 0 | H174: 0 | J174: 0 | K174: 0 | L174: 0 | N174: 0 | O174: 0
A175: 47 | B175: 1995 | C175: Contributions & Grants | D175: -33666311.17 | E175: 4389250.68 | F175: 0 | H175: -29277060.49 | J175: 7143110.03 | K175: 656205.61 | L175: 0 | N175: 7799315.64 | O175: -21477744.85
A176: 47 | B176: 2440 | C176: Deferred Revenue5 | D176: -675132.22 | E176: -5664568.59 | F176: 0 | H176: -6339700.81 | J176: 0 | K176: 161982.49 | L176: 0 | N176: 161982.49 | O176: -6177718.32
B177: 2005 | C177: Property Under Finance Lease7 | D177: 0 | E177: 0 | F177: 0 | H177: 0 | J177: 0 | K177: 0 | L177: 0 | N177: 0 | O177: 0
C178: Sub-Total | D178: =SUM(D137:D177) -> 249052243.8 | E178: =SUM(E137:E177) -> 8977928.39 | F178: =SUM(F137:F177) -> -1040627.61 | H178: =SUM(H137:H177) -> 256989544.6 | J178: =SUM(J137:J177) -> -143564242.8 | K178: =SUM(K137:K177) -> -4811090.95 | L178: =SUM(L137:L177) -> 588601.08 | N178: =SUM(N137:N177) -> -147786732.7 | O178: =SUM(O137:O177) -> 109202811.9
C179: Less Socialized Renewable Energy Generation Investments (input as negative) | H179: =D179+E179+F179+G179 -> 0 | N179: =J179+K179+L179+M179 -> 0 | O179: =H179+N179 -> 0
C180: Less Other Non Rate-Regulated Utility Assets (input as negative) | H180: 0 | N180: 0 | O180: =H180+N180 -> 0
C181: Total PP&E | D181: =SUM(D178:D180) -> 249052243.8 | E181: =SUM(E178:E180) -> 8977928.39 | F181: =SUM(F178:F180) -> -1040627.61 | H181: =SUM(H178:H180) -> 256989544.6 | J181: =SUM(J178:J180) -> -143564242.8 | K181: =SUM(K178:K180) -> -4811090.95 | L181: =SUM(L178:L180) -> 588601.08 | N181: =SUM(N178:N180) -> -147786732.7 | O181: =SUM(O178:O180) -> 109202811.9
C182: Depreciation Expense adj. from gain or loss on the retirement of assets (pool of like assets), if applicable6
C183: Total | K183: =K181+K182 -> -4811090.95
J185: Less: Reclassify Loss-Disposal of Pooled Assets/Def.Rev.Amortization
A186: 47 | C186: Distribution Assets | J186: Reclass Loss on Disposals | L186: 55847.87
A187: 47 | C187: Distribution Assets | J187: Deferred Revenue (a/c 4245) | L187: 161982.49
J189: Net Depreciation | L189: =K183-L186-L187-L188 -> -5028921.31
E191: Accounting Standard | F191: MIFRS
E192: Year | F192: 2016
D194: Cost | K194: Accumulated Depreciation
A195: CCA Class 2 | B195: OEB Account 3 | C195: Description 3 | D195: Opening Balance | E195: Additions 4 | F195: Disposals 6 | G195: ICM | H195: Closing Balance | J195: Opening Balance | K195: Additions | L195: Disposals 6 | M195: ICM | N195: Closing Balance | O195: Net Book Value
B196: 1609 | C196: Capital Contributions Paid | D196: 4113602 | E196: 0 | F196: 0 | H196: =D196+E196+F196+G196 -> 4113602 | J196: -171400.18 | K196: -68560.08 | L196: 0 | N196: =J196+K196+L196+M196 -> -239960.26 | O196: =H196+N196 -> 3873641.74
A197: 12 | B197: 1611 | C197: Computer Software (Formally known as Account 1925) | D197: 7522757.87 | E197: 630654.25 | F197: 0 | H197: 8153412.12 | J197: -4784253.41 | K197: -524312.02 | L197: 0 | N197: -5308565.43 | O197: =H197+N197 -> 2844846.69
A198: CEC | B198: 1612 | C198: Land Rights (Formally known as Account 1906) | D198: 189350.5 | E198: 0 | F198: 0 | H198: 189350.5 | J198: -34999.36 | K198: -2828.3 | L198: 0 | N198: -37827.66 | O198: =H198+N198 -> 151522.84
A199: N/A | B199: 1805 | C199: Land | D199: 202702.95 | E199: 0 | F199: 0 | H199: 202702.95 | J199: 0 | K199: 0 | L199: 0 | N199: 0 | O199: =H199+N199 -> 202702.95
A200: 47 | B200: 1808 | C200: Buildings | D200: 2326809.26 | E200: 87058 | F200: 0 | H200: 2413867.26 | J200: -1340244.74 | K200: -65107.95 | L200: 0 | N200: -1405352.69 | O200: =H200+N200 -> 1008514.57
A201: 13 | B201: 1810 | C201: Leasehold Improvements | D201: 0 | E201: 0 | F201: 0 | H201: 0 | J201: 0 | K201: 0 | L201: 0 | N201: 0 | O201: 0
A202: 47 | B202: 1815 | C202: Transformer Station Equipment >50 kV | D202: 0 | E202: 0 | F202: 0 | H202: 0 | J202: 0 | K202: 0 | L202: 0 | N202: 0 | O202: 0
A203: 47 | B203: 1820 | C203: Distribution Station Equipment <50 kV | D203: 14056233.02 | E203: 57179.23 | F203: 0 | H203: 14113412.25 | J203: -9674846.12 | K203: -273820.17 | L203: 3320.81 | N203: -9945345.48 | O203: 4168066.77
A204: 47 | B204: 1825 | C204: Storage Battery Equipment | D204: 0 | E204: 0 | F204: 0 | H204: 0 | J204: 0 | K204: 0 | L204: 0 | N204: 0 | O204: 0
A205: 47 | B205: 1830 | C205: Poles, Towers & Fixtures | D205: 38202727.1 | E205: 1231971.66 | F205: -5825.76 | H205: 39428873 | J205: -16681810.57 | K205: -686731.54 | L205: 17868.46 | N205: -17350673.65 | O205: 22078199.35
A206: 47 | B206: 1835 | C206: Overhead Conductors & Devices | D206: 46078463.59 | E206: 2069225.97 | F206: -9196.11 | H206: 48138493.45 | J206: -25544777.88 | K206: -599474.63 | L206: 4709.46 | N206: -26139543.05 | O206: 21998950.4
A207: 47 | B207: 1840 | C207: Underground Conduit | D207: 19779666.89 | E207: 707045.25 | F207: 0 | H207: 20486712.14 | J207: -8445527.42 | K207: -226824.42 | L207: 20053.25 | N207: -8652298.59 | O207: 11834413.55
A208: 47 | B208: 1845 | C208: Underground Conductors & Devices | D208: 30059510.05 | E208: 1660262.8 | F208: -2716.47 | H208: 31717056.38 | J208: -15947476.01 | K208: -612347.11 | L208: 36308.19 | N208: -16523514.93 | O208: 15193541.45
A209: 47 | B209: 1850 | C209: Line Transformers | D209: 52339019.74 | E209: 1913833.5 | F209: -42586.27 | H209: 54210266.97 | J209: -29375362.82 | K209: -799512.59 | L209: 48553.34 | N209: -30126322.07 | O209: 24083944.9
A210: 47 | B210: 1855 | C210: Services (Overhead & Underground) | D210: 35204839.15 | E210: 2325471.01 | F210: -1628.08 | H210: 37528682.08 | J210: -19149701.47 | K210: -341423.39 | L210: 33314.88 | N210: -19457809.98 | O210: 18070872.1
A211: 47 | B211: 1860 | C211: Meters | D211: 19971964.92 | E211: 607792.6 | F211: 0 | H211: 20579757.52 | J211: -9622783.95 | K211: -959827.91 | L211: 3740.53 | N211: -10578871.33 | O211: 10000886.19
A212: 47 | B212: 1860 | C212: Meters (Smart Meters) | H212: 0 | N212: 0 | O212: 0
A213: N/A | B213: 1905 | C213: Land | D213: 96299.71 | E213: 0 | F213: 0 | H213: 96299.71 | J213: 0 | K213: 0 | L213: 0 | N213: 0 | O213: 96299.71
A214: 47 | B214: 1908 | C214: Buildings & Fixtures | D214: 9079685.56 | E214: 182883.02 | F214: 0 | H214: 9262568.58 | J214: -4642192.77 | K214: -266661.29 | L214: 0 | N214: -4908854.06 | O214: 4353714.52
... 320 more rows

Sheet Appendix 2-BB Service Life
N1: File Number: | P1: ='LDC Info'!E16 -> EB-2020-0007
N2: Exhibit:
N3: Tab:
N4: Schedule:
N5: Page:
N7: Date:
A9: Appendix 2-BB
A10: Service Life Comparison
A11: Table F-1 from Kinetrics Report1
C15: Asset Details | F15: Useful Life | J15: USoA Account Number | K15: USoA Account Description | L15: Current | N15: Proposed | P15: Outside Range of Min, Max TUL?
A16: Parent* | B16: # | C16: Category| Component | Type | F16: MIN UL | G16: TUL | H16: MAX UL | L16: Years | M16: Rate | N16: Years | O16: Rate | P16: Below Min TUL | Q16: Above Max TUL
A17: OH | B17: 1 | C17: Fully Dressed Wood Poles | D17: Overall | F17: 35 | G17: 45 | H17: 75 | J17: 1830 | K17: Poles, Towers and Fixtures | L17: 40 | M17: =IF(ISERROR(1/L17), "", 1/L17) -> 0.025 | N17: =L17 -> 40 | O17: =IF(ISERROR(1/N17), "", 1/N17) -> 0.025 | P17: =IF(ISBLANK(N17),"",IF(N17<F17,"Yes","No")) -> No | Q17: =IF(ISBLANK(N17),"",IF(N17>H17,"Yes","No")) -> No
D18: Cross Arm | E18: Wood | F18: 20 | G18: 40 | H18: 55 | J18: 1830 | K18: Poles, Towers and Fixtures | L18: 40 | M18: =IF(ISERROR(1/L18), "", 1/L18) -> 0.025 | N18: =L18 -> 40 | O18: =IF(ISERROR(1/N18), "", 1/N18) -> 0.025 | P18: =IF(ISBLANK(N18),"",IF(N18<F18,"Yes","No")) -> No | Q18: =IF(ISBLANK(N18),"",IF(N18>H18,"Yes","No")) -> No
E19: Steel | F19: 30 | G19: 70 | H19: 95 | J19: 1830 | K19: Poles, Towers and Fixtures | L19: 40 | M19: =IF(ISERROR(1/L19), "", 1/L19) -> 0.025 | N19: =L19 -> 40 | O19: 0.025 | P19: No | Q19: No
B20: 2 | C20: Fully Dressed Concrete Poles | D20: Overall | F20: 50 | G20: 60 | H20: 80 | J20: 1830 | K20: Poles, Towers and Fixtures | L20: 60 | M20: =IF(ISERROR(1/L20), "", 1/L20) -> 0.01666666667 | N20: =L20 -> 60 | O20: 0.01666666667 | P20: No | Q20: No
D21: Cross Arm | E21: Wood | F21: 20 | G21: 40 | H21: 55 | J21: 1830 | K21: Poles, Towers and Fixtures | L21: 40 | M21: 0.025 | N21: 40 | O21: =IF(ISERROR(1/N21), "", 1/N21) -> 0.025 | P21: =IF(ISBLANK(N21),"",IF(N21<F21,"Yes","No")) -> No | Q21: =IF(ISBLANK(N21),"",IF(N21>H21,"Yes","No")) -> No
E22: Steel | F22: 30 | G22: 70 | H22: 95 | J22: 1830 | K22: Poles, Towers and Fixtures | L22: 40 | M22: =IF(ISERROR(1/L22), "", 1/L22) -> 0.025 | N22: =L22 -> 40 | O22: 0.025 | P22: No | Q22: No
B23: 3 | C23: Fully Dressed Steel Poles | D23: Overall | F23: 60 | G23: 60 | H23: 80
D24: Cross Arm | E24: Wood | F24: 20 | G24: 40 | H24: 55
E25: Steel | F25: 30 | G25: 70 | H25: 95
B26: 4 | C26: OH Line Switch | F26: 30 | G26: 45 | H26: 55 | J26: 1835 | K26: Overhead Conductors and Devices | L26: 40 | M26: 0.025 | N26: =L26 -> 40 | O26: 0.025 | P26: No | Q26: No
B27: 5 | C27: OH Line Switch Motor | F27: 15 | G27: 25 | H27: 25 | J27: 1835 | K27: Overhead Conductors and Devices | L27: 20 | M27: 0.05 | N27: =L27 -> 20 | O27: 0.05 | P27: No | Q27: No
B28: 6 | C28: OH Line Switch RTU | F28: 15 | G28: 20 | H28: 20 | J28: 1835 | K28: Overhead Conductors and Devices | L28: 20 | M28: 0.05 | N28: 20 | O28: 0.05 | P28: No | Q28: No
B29: 7 | C29: OH Integral Switches | F29: 35 | G29: 45 | H29: 60 | J29: 1835 | K29: Overhead Conductors and Devices | L29: 40 | M29: 0.025 | N29: 40 | O29: 0.025 | P29: No | Q29: No
B30: 8 | C30: OH Conductors | F30: 50 | G30: 60 | H30: 75 | J30: 1835 | K30: Overhead Conductors and Devices | L30: 60 | M30: 0.01666666667 | N30: 60 | O30: 0.01666666667 | P30: No | Q30: No
B31: 9 | C31: OH Transformers & Voltage Regulators | F31: 30 | G31: 40 | H31: 60 | J31: 1850 | K31: Line Transformers | L31: 40 | M31: 0.025 | N31: 40 | O31: 0.025 | P31: No | Q31: No
B32: 10 | C32: OH Shunt Capacitor Banks | F32: 25 | G32: 30 | H32: 40
B33: 11 | C33: Reclosers | F33: 25 | G33: 40 | H33: 55
A34: TS & MS | B34: 12 | C34: Power Transformers | D34: Overall | F34: 30 | G34: 45 | H34: 60 | J34: 1850 | K34: Line Transformers | L34: 40 | M34: 0.025 | N34: =L34 -> 40 | O34: 0.025 | P34: No | Q34: No
D35: Bushing | F35: 10 | G35: 20 | H35: 30
D36: Tap Changer | F36: 20 | G36: 30 | H36: 60
B37: 13 | C37: Station Service Transformer | F37: 30 | G37: 45 | H37: 55 | J37: 1820 | K37: Distribution Station Equipment - Normally Primary Below 50 kV | L37: 40 | M37: 0.025 | N37: =L37 -> 40 | O37: 0.025 | P37: No | Q37: No
B38: 14 | C38: Station Grounding Transformer | F38: 30 | G38: 40 | H38: 40
B39: 15 | C39: Station DC System | D39: Overall | F39: 10 | G39: 20 | H39: 30
D40: Battery Bank | F40: 10 | G40: 15 | H40: 15 | J40: 1820 | K40: Distribution Station Equipment - Normally Primary Below 50 kV | L40: 20 | M40: 0.05 | N40: 20 | O40: 0.05 | P40: No | Q40: Yes
D41: Charger | F41: 20 | G41: 20 | H41: 30 | J41: =J40 -> 1820 | K41: Distribution Station Equipment - Normally Primary Below 50 kV | L41: 20 | M41: 0.05 | N41: 20 | O41: 0.05 | P41: No | Q41: No
B42: 16 | C42: Station Metal Clad Switchgear | D42: Overall | F42: 30 | G42: 40 | H42: 60 | J42: =J41 -> 1820 | K42: Distribution Station Equipment - Normally Primary Below 50 kV | L42: 40 | M42: 0.025 | N42: 40 | O42: 0.025 | P42: No | Q42: No
D43: Removable Breaker | F43: 25 | G43: 40 | H43: 60
B44: 17 | C44: Station Independent Breakers | F44: 35 | G44: 45 | H44: 65
B45: 18 | C45: Station Switch | F45: 30 | G45: 50 | H45: 60
B46: 19 | C46: Electromechanical Relays | F46: 25 | G46: 35 | H46: 50
B47: 20 | C47: Solid State Relays | F47: 10 | G47: 30 | H47: 45 | J47: 1980 | K47: System Supervisory Equipment | L47: 30 | M47: 0.03333333333 | N47: =L47 -> 30 | O47: 0.03333333333 | P47: No | Q47: No
B48: 21 | C48: Digital & Numeric Relays | F48: 15 | G48: 20 | H48: 20
B49: 22 | C49: Rigid Busbars | F49: 30 | G49: 55 | H49: 60
B50: 23 | C50: Steel Structure | F50: 35 | G50: 50 | H50: 90
A51: UG | B51: 24 | C51: Primary Paper Insulated Lead Covered (PILC) Cables | F51: 60 | G51: 65 | H51: 75
B52: 25 | C52: Primary Ethylene-Propylene Rubber (EPR) Cables | F52: 20 | G52: 25 | H52: 25 | J52: 1845 | K52: Underground Conductors and Devices | L52: 40 | M52: 0.025 | N52: =L52 -> 40 | O52: 0.025 | P52: No | Q52: Yes
B53: 26 | C53: Primary Non-Tree Retardant (TR) Cross Linked Polyethylene (XLPE) Cables Direct Buried | F53: 20 | G53: 25 | H53: 30 | J53: 1845 | K53: Underground Conductors and Devices | L53: 40 | M53: 0.025 | N53: =L53 -> 40 | O53: 0.025 | P53: No | Q53: Yes
B54: 27 | C54: Primary Non-TR XLPE Cables in Duct | F54: 20 | G54: 25 | H54: 30 | J54: 1845 | K54: Underground Conductors and Devices | L54: 40 | M54: 0.025 | N54: 40 | O54: 0.025 | P54: No | Q54: Yes
B55: 30 | C55: Secondary PILC Cables | F55: 70 | G55: 75 | H55: 80
B56: 31 | C56: Secondary Cables Direct Buried | F56: 25 | G56: 35 | H56: 40 | J56: 1855 | K56: Services | L56: 60 | M56: 0.01666666667 | N56: =L56 -> 60 | O56: 0.01666666667 | P56: No | Q56: Yes
B57: 32 | C57: Secondary Cables in Duct | F57: 35 | G57: 40 | H57: 60 | J57: 1855 | K57: Services | L57: 60 | M57: 0.01666666667 | N57: =L57 -> 60 | O57: 0.01666666667 | P57: No | Q57: No
B58: 33 | C58: Network Tranformers | D58: Overall | F58: 20 | G58: 35 | H58: 50
D59: Protector | F59: 20 | G59: 35 | H59: 40
B60: 34 | C60: Pad-Mounted Transformers | F60: 25 | G60: 40 | H60: 45 | J60: 1850 | K60: Line Transformers | L60: 40 | M60: 0.025 | N60: =L60 -> 40 | O60: 0.025 | P60: No | Q60: No
B61: 35 | C61: Submersible/Vault Transformers | F61: 25 | G61: 35 | H61: 45 | J61: 1850 | K61: Line Transformers | L61: 40 | M61: 0.025 | N61: =L61 -> 40 | O61: 0.025 | P61: No | Q61: No
B62: 36 | C62: UG Foundation | F62: 35 | G62: 55 | H62: 70 | J62: 1840 | K62: Underground Conduit | L62: 60 | M62: 0.01666666667 | N62: =L62 -> 60 | O62: 0.01666666667 | P62: No | Q62: No
B63: 37 | C63: UG Vaults | D63: Overall | F63: 40 | G63: 60 | H63: 80
D64: Roof | F64: 20 | G64: 30 | H64: 45
B65: 38 | C65: UG Vault Switches | F65: 20 | G65: 35 | H65: 50 | J65: 1845 | K65: Underground Conductors and Devices | L65: 30 | M65: 0.03333333333 | N65: =L65 -> 30 | O65: 0.03333333333 | P65: No | Q65: No
B66: 39 | C66: Pad-Mounted Switchgear | F66: 20 | G66: 30 | H66: 45 | J66: 1845 | K66: Underground Conductors and Devices | L66: 30 | M66: 0.03333333333 | N66: =L66 -> 30 | O66: 0.03333333333 | P66: No | Q66: No
B67: 40 | C67: Ducts | F67: 30 | G67: 50 | H67: 85 | J67: 1840 | K67: Underground Conduit | L67: 60 | M67: 0.01666666667 | N67: =L67 -> 60 | O67: 0.01666666667 | P67: No | Q67: No
B68: 41 | C68: Concrete Encased Duct Banks | F68: 35 | G68: 55 | H68: 80 | J68: 1840 | K68: Underground Conduit | L68: 60 | M68: 0.01666666667 | N68: =L68 -> 60 | O68: 0.01666666667 | P68: No | Q68: No
B69: 42 | C69: Cable Chambers | F69: 50 | G69: 60 | H69: 80 | J69: 1840 | K69: Underground Conduit | L69: 60 | M69: 0.01666666667 | N69: 60 | O69: 0.01666666667 | P69: No | Q69: No
A70: S | B70: 43 | C70: Remote SCADA | F70: 15 | G70: 20 | H70: 30 | J70: 1980 | K70: System Supervisory Equipment | L70: 20 | M70: =IF(ISERROR(1/L70), "", 1/L70) -> 0.05 | N70: =L70 -> 20 | O70: =IF(ISERROR(1/N70), "", 1/N70) -> 0.05 | P70: =IF(ISBLANK(N70),"",IF(N70<F70,"Yes","No")) -> No | Q70: =IF(ISBLANK(N70),"",IF(N70>H70,"Yes","No")) -> No
C71: SCADA - Transducer | F71: no guidelines | J71: 1980 | K71: System Supervisory Equipment | L71: 10 | M71: 0.1 | N71: =L71 -> 10
B75: Table F-2 from Kinetrics Report1
C77: Asset Details | F77: Useful Life Range | J77: USoA Account Number | K77: USoA Account Description | L77: Current | N77: Proposed | P77: Outside Range of Min, Max TUL?
B78: # | C78: Category| Component | Type | L78: Years | M78: Rate | N78: Years | O78: Rate | P78: Below Min Range | Q78: Above Max Range
B79: 1 | C79: Office Equipment | F79: 5 | G79: 15 | J79: 1915 | K79: Office Furniture and Equipment | L79: 10 | M79: =IF(ISERROR(1/L79), "", 1/L79) -> 0.1 | N79: =L79 -> 10 | O79: =IF(ISERROR(1/N79), "", 1/N79) -> 0.1 | P79: =IF(ISBLANK(N79),"",IF(N79<F79,"Yes","No")) -> No | Q79: =IF(ISBLANK(N79),"",IF(N79>G79,"Yes","No")) -> No
B80: 2 | C80: Vehicles | D80: Trucks & Buckets | F80: 5 | G80: 15 | J80: 1930 | K80: Transportation Equipment | L80: 15 | M80: =IF(ISERROR(1/L80), "", 1/L80) -> 0.06666666667 | N80: =L80 -> 15 | O80: =IF(ISERROR(1/N80), "", 1/N80) -> 0.06666666667 | P80: =IF(ISBLANK(N80),"",IF(N80<F80,"Yes","No")) -> No | Q80: =IF(ISBLANK(N80),"",IF(N80>G80,"Yes","No")) -> No
D81: Trailers | F81: 5 | G81: 20 | J81: 1930 | K81: Transportation Equipment | L81: 20 | M81: 0.05 | N81: 20 | O81: 0.05 | P81: No | Q81: No
D82: Automobiles | F82: no guidelines | J82: 1930 | K82: Transportation Equipment | L82: 8 | M82: =IF(ISERROR(1/L82), "", 1/L82) -> 0.125 | N82: =L82 -> 8 | O82: =IF(ISERROR(1/N82), "", 1/N82) -> 0.125
D83: Vans | F83: 5 | G83: 10 | J83: 1930 | K83: Transportation Equipment | L83: 12 | M83: 0.08333333333 | N83: 12 | O83: 0.08333333333 | P83: No | Q83: Yes
B84: 3 | C84: Administrative Buildings | F84: 50 | G84: 75 | J84: 1908 | K84: Buildings and Fixtures | L84: 5-50 | N84: 5-50 | P84: No | Q84: No
B85: 4 | C85: Leasehold Improvements | F85: Lease dependent | P85: =IF(ISBLANK(N85),"",IF(N85<F85,"Yes","No")) ->  | Q85: =IF(ISBLANK(N85),"",IF(N85>G85,"Yes","No")) -> 
B86: 5 | C86: Station Buildings | D86: Station Buildings | F86: 50 | G86: 75 | J86: 1808 | K86: Buildings and Fixtures | L86: 50 | M86: 0.02 | N86: 50 | O86: 0.02 | P86: No | Q86: No
D87: Parking | F87: 25 | G87: 30 | J87: 1808 | K87: Buildings and Fixtures | L87: 30 | M87: 0.03333333333 | N87: 30 | O87: 0.03333333333 | P87: =IF(ISBLANK(N87),"",IF(N87<F87,"Yes","No")) -> No | Q87: =IF(ISBLANK(N87),"",IF(N87>G87,"Yes","No")) -> No
D88: Fence | F88: 25 | G88: 60 | J88: 1808 | K88: Buildings and Fixtures | L88: 25 | M88: 0.04 | N88: 25 | O88: 0.04 | P88: No | Q88: No
D89: Roof | F89: 20 | G89: 30 | J89: 1808 | K89: Buildings and Fixtures | L89: 20 | M89: 0.05 | N89: 20 | O89: 0.05 | P89: No | Q89: No
B90: 6 | C90: Computer Equipment | D90: Hardware | F90: 3 | G90: 5 | J90: 1920 | K90: Computer Equipment - Hardware | L90: 5 | M90: 0.2 | N90: 5 | O90: 0.2 | P90: No | Q90: No
D91: Software | F91: 2 | G91: 5 | J91: 1611 | K91: Computer Software | L91: 5-15 | M91: 2.255757822e-05 | N91: 5 | O91: 0.2 | P91: No | Q91: No
B92: 7 | C92: Equipment | D92: Power Operated | F92: 5 | G92: 10
D93: Stores | F93: 5 | G93: 10 | J93: 1935 | K93: Stores Equipment | L93: 10 | M93: 0.1 | N93: 10 | O93: 0.1 | P93: No | Q93: No
D94: Tools, Shop, Garage Equipment | F94: 5 | G94: 10 | J94: 1940 | K94: Tools, Shop and Garage Equipment | L94: 10 | M94: 0.1 | N94: 10 | O94: 0.1 | P94: No | Q94: No
D95: Measurement & Testing Equipment | F95: 5 | G95: 10 | J95: 1945 | K95: Measurement and Testing Equipment | L95: 10 | M95: 0.1 | N95: 10 | O95: 0.1 | P95: No | Q95: No
B96: 8 | C96: Communication | D96: Towers | F96: 60 | G96: 70 | J96: 1955 | K96: Communication Equipment | L96: 60 | M96: 0.01666666667 | N96: 60 | O96: 0.01666666667 | P96: =IF(ISBLANK(N96),"",IF(N96<F96,"Yes","No")) -> No | Q96: =IF(ISBLANK(N96),"",IF(N96>G96,"Yes","No")) -> No
D97: Wireless | F97: 2 | G97: 10 | J97: 1955 | K97: Communication Equipment | L97: 10 | M97: 0.1 | N97: 10 | O97: 0.1 | P97: No | Q97: No
B98: 9 | C98: Residential Energy Meters | F98: 25 | G98: 35 | J98: 1860 | K98: Meters | L98: 25 | M98: 0.04 | N98: 25 | O98: 0.04 | P98: No | Q98: No
B99: 10 | C99: Industrial/Commercial Energy Meters | F99: 25 | G99: 35 | J99: 1860 | K99: Meters | L99: 20 | M99: 0.05 | N99: 20 | O99: 0.05 | P99: Yes | Q99: No
B100: 11 | C100: Wholesale Energy Meters | F100: 15 | G100: 30 | J100: 1860 | K100: Meters | L100: 20 | M100: 0.05 | N100: 20 | O100: 0.05 | P100: No | Q100: No
B101: 12 | C101: Current & Potential Transformer (CT & PT) | F101: 35 | G101: 50 | J101: 1860 | K101: Meters | L101: 45 | M101: 0.02222222222 | N101: =L101 -> 45 | O101: 0.02222222222 | P101: No | Q101: No
B102: 13 | C102: Smart Meters | F102: 5 | G102: 15 | J102: 1860 | K102: Meters | L102: 15 | M102: 0.06666666667 | N102: =L102 -> 15 | O102: 0.06666666667 | P102: No | Q102: No
B103: 14 | C103: Repeaters - Smart Metering | F103: 10 | G103: 15 | J103: 1860 | K103: Meters | L103: 15 | M103: 0.06666666667 | N103: 15 | O103: 0.06666666667 | P103: No | Q103: No
B104: 15 | C104: Data Collectors - Smart Metering | F104: 15 | G104: 20 | J104: 1860 | K104: Meters | L104: 15 | M104: 0.06666666667 | N104: 15 | O104: 0.06666666667 | P104: No | Q104: No
A107: * TS & MS = Transformer and Municipal Stations UG = Underground Systems S = Monitoring and Control Systems
A109: Note 1: | B109: Tables F-1 and F-2 above are to be used as a reference in order to complete columns J, K, L and N.
B110: See pages 17-19 of Kinetrics Report

Sheet App.2-C_DepExp
A9: Appendix 2-C | Y9: CGAAP
A10: Depreciation and Amortization Expense | Y10: Revised CGAAP
Y11: MIFRS
A12: This appendix is to be completed in conjunction with the accounting instructions in Appendix 2-B
A14: Scenario that applies | C14: Applicable Years and Accounting Standard | R14: Year Reflected in Schedule Below | S14: Accounting Standard Reflected in Schedule Below | Y14: 2012
A15: Rebasing for the first time with depreciation policy changes made in 2012. | C15: ="This appendix must be duplicated and completed for the years 2012 to " & TestYear & ". The appendix for 2012 is to be completed under CGAAP (prior to changes in depreciation policies)." &" The appendix for 2012 to 2014 must be completed under Revised CGAAP (after changes in depreciation policies). The appendix for 2014 to " & TestYear & " is to be completed under MIFRS (2014 if changes to MIFRS are material)." -> This appendix must be duplicated and completed for the years 2012 to 2021. The appendix for 2012 is to be completed under CGAAP (prior to changes in depreciation policies). The appendix for 2012 to 2014 must be completed under Revised CGAAP (after changes in depreciation policies). The appendix for 2014 to 2021 is to be completed under MIFRS (2014 if changes to MIFRS are material). | Y15: 2013
A16: Rebasing for the first time with depreciation policy changes made in 2013. | C16: ="This appendix must be duplicated and completed for the years 2013 to " & TestYear & ". The appendix for 2013 is to be completed under CGAAP (prior to changes in depreciation policies)."&" The appendix for 2013 to 2014 must be completed under Revised CGAAP (after changes in depreciation policies). The appendix for 2014 to " & TestYear & " is to be completed under MIFRS (2014 if changes to MIFRS are material)." -> This appendix must be duplicated and completed for the years 2013 to 2021. The appendix for 2013 is to be completed under CGAAP (prior to changes in depreciation policies). The appendix for 2013 to 2014 must be completed under Revised CGAAP (after changes in depreciation policies). The appendix for 2014 to 2021 is to be completed under MIFRS (2014 if changes to MIFRS are material). | Y16: 2014
A17: Already rebased with depreciation policy changes in a prior rate application and rebasing MIFRS for the first time. | C17: This appendix must be completed for 2014 to the test year. The appendix for 2014 is to be completed under Revised CGAAP (after changes in depreciation policies). The appendix for 2014 to the test year is to be completed under MIFRS (2014 if changes to MIFRS are material). | Y17: 2015
A18: Already rebased under MIFRS in a prior rate application | C18: ="This appendix must be completed under MIFRS for each year for the earlier of: 1) all historical years back to its last rebasing; or 2) at least three years of historical actuals, in addition to Bridge Year and Test Year forecasts." -> This appendix must be completed under MIFRS for each year for the earlier of: 1) all historical years back to its last rebasing; or 2) at least three years of historical actuals, in addition to Bridge Year and Test Year forecasts. | Y18: 2016
Y19: 2017
C20: Book Values | J20: Service Lives | N20: Depreciation Expense | Y20: 2018
A21: Account | B21: Description | C21: Opening Net Book Value of Existing Assets as at Date of Policy Change (Jan. 1) 1 | D21: Less Fully Depreciated 7 | E21: Net Amount of Existing Assets Before Policy Change to be Depreciated | F21: Opening Gross Book Value of Assets Acquired After Policy Change 2 | G21: Less Fully Depreciated 8 | H21: Net Amount of Assets Acquired After Policy Change to be Depreciated | I21: Current Year Additions | J21: Average Remaining Life of Assets Existing Before Policy Change 3 | K21: Depreciation Rate Assets Acquired After Policy Change | L21: Life of Assets Acquired After Policy Change 4 | M21: Depreciation Rate on New Additions | N21: Depreciation Expense on Assets Existing Before Policy Change | O21: Depreciation Expense on Assets Acquired After Policy Change | P21: Depreciation Expense on Current Year Additions 5 | Q21: Total Current Year Depreciation Expense | R21: Depreciation Expense per Appendix 2-BA Fixed Assets, Column J | S21: Variance 6
C22: a | D22: b | E22: c = a-b | F22: d | G22: e | H22: f = d- e | I22: g | J22: h | K22: i = 1/h | L22: j | M22: k = 1/j | N22: l = c/h | O22: m = f/j | P22: n = g*0.5/j | Q22: o = l+m+n | R22: p | S22: q = p-o
A23: 1609 | B23: Capital Contributions Paid | E23: =C23-D23 -> 0 | H23: =F23-G23 -> 0 | K23: =IF(J23=0,0,1/J23) -> 0 | M23: =IF(L23=0,0,1/L23) -> 0 | N23: =IF(J23=0,0,+E23/J23) -> 0 | O23: =IF(L23=0,0,+H23/L23) -> 0 | P23: =IF(L23=0,0,+(I23*0.5)/L23) -> 0 | Q23: =IF(ISERROR(+N23+O23+P23), 0, +N23+O23+P23) -> 0 | S23: =IF(ISERROR(+R23-Q23), 0, +R23-Q23) -> 0
A24: 1611 | B24: Computer Software (Formally known as Account 1925) - Software: Administration | E24: =C24-D24 -> 0 | H24: =F24-G24 -> 0 | K24: =IF(J24=0,0,1/J24) -> 0 | M24: =IF(L24=0,0,1/L24) -> 0 | N24: =IF(J24=0,0,+E24/J24) -> 0 | O24: =IF(L24=0,0,+H24/L24) -> 0 | P24: =IF(L24=0,0,+(I24*0.5)/L24) -> 0 | Q24: =IF(ISERROR(+N24+O24+P24), 0, +N24+O24+P24) -> 0 | S24: 0
A25: 1611 | B25: Computer Software (Formally known as Account 1925) - Software: Engineering Admin. | E25: 0 | H25: 0 | K25: 0 | M25: 0 | N25: 0 | O25: 0 | P25: 0 | Q25: 0 | S25: 0
A26: 1611 | B26: Computer Software (Formally known as Account 1925) - Software: Meter Maintenance | E26: 0 | H26: 0 | K26: 0 | M26: 0 | N26: 0 | O26: 0 | P26: 0 | Q26: 0 | S26: 0
A27: 1611 | B27: Computer Software (Formally known as Account 1925) - Software:I/S Admin. | E27: 0 | H27: 0 | K27: 0 | M27: 0 | N27: 0 | O27: 0 | P27: 0 | Q27: 0 | S27: 0
A28: 1611 | B28: Computer Software (Formally known as Account 1925) - Software: Control | E28: 0 | H28: 0 | K28: 0 | M28: 0 | N28: 0 | O28: 0 | P28: 0 | Q28: 0 | S28: 0
A29: 1611 | B29: Computer Software (Formally known as Account 1925) - Software: Smart Meters | E29: 0 | H29: 0 | K29: 0 | M29: 0 | N29: 0 | O29: 0 | P29: 0 | Q29: 0 | S29: 0
A30: 1612 | B30: Land Rights (Formally known as Account 1906) | E30: 0 | H30: 0 | K30: 0 | M30: 0 | N30: 0 | O30: 0 | P30: 0 | Q30: 0 | S30: 0
A31: 1805 | B31: Land | E31: 0 | H31: 0 | K31: 0 | M31: 0 | N31: 0 | O31: 0 | P31: 0 | Q31: 0 | S31: 0
A32: 1808 | B32: Buildings | E32: 0 | H32: 0 | K32: 0 | M32: 0 | N32: 0 | O32: 0 | P32: 0 | Q32: 0 | S32: 0
A33: 1810 | B33: Leasehold Improvements | E33: 0 | H33: 0 | K33: 0 | M33: 0 | N33: 0 | O33: 0 | P33: 0 | Q33: 0 | S33: 0
A34: 1815 | B34: Transformer Station Equipment >50 kV | E34: 0 | H34: 0 | K34: 0 | M34: 0 | N34: 0 | O34: 0 | P34: 0 | Q34: 0 | S34: 0
A35: 1820 | B35: Distribution Station Equipment <50 kV - Substation Equipment | E35: 0 | H35: 0 | K35: 0 | M35: 0 | N35: 0 | O35: 0 | P35: 0 | Q35: 0 | S35: 0
A36: 1820 | B36: Distribution Station Equipment <50 kV - Substation Battery Bank/Chargers | E36: 0 | H36: 0 | K36: 0 | M36: 0 | N36: 0 | O36: 0 | P36: 0 | Q36: 0 | S36: 0
A37: 1820 | B37: Distribution Station Equipment <50 kV | E37: 0 | H37: 0 | K37: 0 | M37: 0 | N37: 0 | O37: 0 | P37: 0 | Q37: 0 | S37: 0
A38: 1825 | B38: Storage Battery Equipment | E38: 0 | H38: 0 | K38: 0 | M38: 0 | N38: 0 | O38: 0 | P38: 0 | Q38: 0 | S38: 0
A39: 1830 | B39: Poles, Towers & Fixtures | E39: 0 | H39: 0 | K39: 0 | M39: 0 | N39: 0 | O39: 0 | P39: 0 | Q39: 0 | S39: 0
A40: 1835 | B40: Overhead Conductors & Devices - Primary devices | E40: 0 | H40: 0 | K40: 0 | M40: 0 | N40: 0 | O40: 0 | P40: 0 | Q40: 0 | S40: 0
A41: 1835 | B41: Overhead Conductors & Devices - Primary conductors | E41: 0 | H41: 0 | K41: 0 | M41: 0 | N41: 0 | O41: 0 | P41: 0 | Q41: 0 | S41: 0
A42: 1835 | B42: Overhead Conductors & Devices - Primary switch motors, arrestors | E42: 0 | H42: 0 | K42: 0 | M42: 0 | N42: 0 | O42: 0 | P42: 0 | Q42: 0 | S42: 0
A43: 1840 | B43: Underground Conduit | E43: 0 | H43: 0 | K43: 0 | M43: 0 | N43: 0 | O43: 0 | P43: 0 | Q43: 0 | S43: 0
A44: 1845 | B44: Underground Conductors & Devices - Primary conductors | E44: 0 | H44: 0 | K44: 0 | M44: 0 | N44: 0 | O44: 0 | P44: 0 | Q44: 0 | S44: 0
A45: 1845 | B45: Underground Conductors & Devices - Primary devices | E45: 0 | H45: 0 | K45: 0 | M45: 0 | N45: 0 | O45: 0 | P45: 0 | Q45: 0 | S45: 0
A46: 1850 | B46: Line Transformers | E46: 0 | H46: 0 | K46: 0 | M46: 0 | N46: 0 | O46: 0 | P46: 0 | Q46: 0 | S46: 0
A47: 1855 | B47: Services (Overhead & Underground) - Underground Secondary | E47: 0 | H47: 0 | K47: 0 | M47: 0 | N47: 0 | O47: 0 | P47: 0 | Q47: 0 | S47: 0
A48: 1855 | B48: Services (Overhead & Underground) - Overhead Secondary | E48: 0 | H48: 0 | K48: 0 | M48: 0 | N48: 0 | O48: 0 | P48: 0 | Q48: 0 | S48: 0
A49: 1855 | B49: Services (Overhead & Underground) - Underground Structure | E49: 0 | H49: 0 | K49: 0 | M49: 0 | N49: 0 | O49: 0 | P49: 0 | Q49: 0 | S49: 0
A50: 1855 | B50: Services (Overhead & Underground) - Overhead Structure | E50: 0 | H50: 0 | K50: 0 | M50: 0 | N50: 0 | O50: 0 | P50: 0 | Q50: 0 | S50: 0
A51: 1860 | B51: Meters - Residential | E51: 0 | H51: 0 | K51: 0 | M51: 0 | N51: 0 | O51: 0 | P51: 0 | Q51: 0 | S51: 0
A52: 1860 | B52: Meters - Industrial and Wholesale | E52: 0 | H52: 0 | K52: 0 | M52: 0 | N52: 0 | O52: 0 | P52: 0 | Q52: 0 | S52: 0
A53: 1860 | B53: Meters - CT and PT | E53: 0 | H53: 0 | K53: 0 | M53: 0 | N53: 0 | O53: 0 | P53: 0 | Q53: 0 | S53: 0
A54: 1860 | B54: Meters - Smart Meters - Repeaters, Data Concentrators | E54: 0 | H54: 0 | K54: 0 | M54: 0 | N54: 0 | O54: 0 | P54: 0 | Q54: 0 | S54: 0
A55: 1860 | B55: Meters - Smart Meters - Regulatory | E55: 0 | H55: 0 | K55: 0 | M55: 0 | N55: 0 | O55: 0 | P55: 0 | Q55: 0 | S55: =IF(ISERROR(+R55-Q55), 0, +R55-Q55) -> 0
A56: 1860 | B56: Meters - Quadlogic Meters | E56: 0 | H56: 0 | K56: 0 | M56: 0 | N56: 0 | O56: 0 | P56: 0 | Q56: 0 | S56: 0
A57: 1860 | B57: Meters - Cellular Meters | E57: 0 | H57: 0 | K57: 0 | M57: 0 | N57: 0 | O57: 0 | P57: 0 | Q57: 0 | S57: 0
A58: 1860 | B58: Meters (Smart Meters) | E58: 0 | H58: 0 | K58: 0 | M58: 0 | N58: 0 | O58: 0 | P58: 0 | Q58: 0 | S58: 0
A59: 1905 | B59: Land | E59: 0 | H59: 0 | K59: 0 | M59: 0 | N59: 0 | O59: 0 | P59: 0 | Q59: 0 | S59: 0
A60: 1908 | B60: Buildings & Fixtures - Office Building | E60: 0 | H60: 0 | K60: 0 | M60: 0 | N60: 0 | O60: 0 | P60: 0 | Q60: 0 | S60: 0
A61: 1908 | B61: Buildings & Fixtures - Service Buildings | E61: 0 | H61: 0 | K61: 0 | M61: 0 | N61: 0 | O61: 0 | P61: 0 | Q61: 0 | S61: 0
A62: 1910 | B62: Leasehold Improvements | E62: 0 | H62: 0 | K62: 0 | M62: 0 | N62: 0 | O62: 0 | P62: 0 | Q62: 0 | S62: 0
A63: 1915 | B63: Office Furniture & Equipment (10 years) | E63: 0 | H63: 0 | K63: 0 | M63: 0 | N63: 0 | O63: 0 | P63: 0 | Q63: 0 | S63: 0
A64: 1915 | B64: Office Furniture & Equipment (5 years) | E64: 0 | H64: =F64-G64 -> 0 | K64: 0 | M64: 0 | N64: 0 | O64: 0 | P64: 0 | Q64: 0 | S64: 0
A65: 1920 | B65: Computer Equipment - Hardware | E65: 0 | H65: 0 | K65: 0 | M65: 0 | N65: 0 | O65: 0 | P65: 0 | Q65: 0 | S65: 0
A66: 1920 | B66: Computer Equip.-Hardware(Post Mar. 22/04) | E66: 0 | H66: 0 | K66: 0 | M66: 0 | N66: 0 | O66: 0 | P66: 0 | Q66: 0 | S66: 0
A67: 1920 | B67: Computer Equip.-Hardware(Post Mar. 19/07) | E67: 0 | H67: 0 | K67: 0 | M67: 0 | N67: 0 | O67: 0 | P67: 0 | Q67: 0 | S67: 0
A68: 1930 | B68: Transportation Equipment - Trailers | E68: 0 | H68: 0 | K68: 0 | M68: 0 | N68: 0 | O68: 0 | P68: 0 | Q68: 0 | S68: 0
A69: 1930 | B69: Transportation Equipment - Automobiles | E69: 0 | H69: 0 | K69: 0 | M69: 0 | N69: 0 | O69: 0 | P69: 0 | Q69: 0 | S69: 0
A70: 1930 | B70: Transportation Equipment - Trucks | E70: 0 | H70: 0 | K70: =IF(J70=0,0,1/J70) -> 0 | M70: 0 | N70: 0 | O70: 0 | P70: 0 | Q70: 0 | S70: 0
A71: 1930 | B71: Transportation Equipment - Trucks | E71: 0 | F71: 0 | H71: 0 | K71: 0 | M71: 0 | N71: 0 | O71: 0 | P71: 0 | Q71: 0 | S71: 0
A72: 1935 | B72: Stores Equipment | E72: 0 | H72: 0 | K72: 0 | M72: 0 | N72: 0 | O72: 0 | P72: 0 | Q72: 0 | S72: 0
A73: 1940 | B73: Tools, Shop & Garage Equipment | E73: 0 | H73: 0 | K73: 0 | M73: 0 | N73: 0 | O73: 0 | P73: 0 | Q73: 0 | S73: 0
A74: 1945 | B74: Measurement & Testing Equipment | E74: 0 | H74: 0 | K74: 0 | M74: 0 | N74: 0 | O74: 0 | P74: 0 | Q74: 0 | S74: 0
A75: 1950 | B75: Power Operated Equipment | E75: 0 | H75: 0 | K75: 0 | M75: 0 | N75: 0 | O75: 0 | P75: 0 | Q75: 0 | S75: 0
A76: 1955 | B76: Communications Equipment | E76: 0 | H76: 0 | K76: 0 | M76: 0 | N76: 0 | O76: 0 | P76: 0 | Q76: 0 | S76: 0
A77: 1955 | B77: Communication Equipment (Smart Meters) | E77: 0 | H77: 0 | K77: 0 | M77: 0 | N77: 0 | O77: 0 | P77: 0 | Q77: 0 | S77: 0
A78: 1960 | B78: Miscellaneous Equipment | E78: 0 | H78: 0 | K78: 0 | M78: 0 | N78: =IF(J78=0,0,+E78/J78) -> 0 | O78: =IF(L78=0,0,+H78/L78) -> 0 | P78: =IF(L78=0,0,+(I78*0.5)/L78) -> 0 | Q78: =IF(ISERROR(+N78+O78+P78), 0, +N78+O78+P78) -> 0 | S78: 0
A79: 1970 | B79: Load Management Controls Customer Premises | E79: 0 | H79: 0 | K79: 0 | M79: =IF(L79=0,0,1/L79) -> 0 | N79: 0 | O79: 0 | P79: 0 | Q79: 0 | S79: 0
A80: 1975 | B80: Load Management Controls Utility Premises | E80: 0 | H80: 0 | K80: 0 | M80: 0 | N80: 0 | O80: 0 | P80: 0 | Q80: 0 | S80: 0
A81: 1980 | B81: System Supervisor Equipment - Scada System | E81: 0 | H81: 0 | K81: 0 | M81: 0 | N81: 0 | O81: 0 | P81: 0 | Q81: 0 | S81: 0
A82: 1980 | B82: System Supervisor Equipment - RTU | E82: 0 | H82: 0 | K82: 0 | M82: 0 | N82: 0 | O82: 0 | P82: 0 | Q82: 0 | S82: 0
A83: 1980 | B83: System Supervisor Equipment - Relays | E83: 0 | H83: 0 | K83: 0 | M83: 0 | N83: 0 | O83: 0 | P83: 0 | Q83: 0 | S83: 0
A84: 1980 | B84: System Supervisor Equipment - Battery | E84: 0 | H84: 0 | K84: 0 | M84: 0 | N84: 0 | O84: 0 | P84: 0 | Q84: 0 | S84: 0
A85: 1985 | B85: Miscellaneous Fixed Assets | E85: 0 | H85: 0 | K85: 0 | M85: 0 | N85: 0 | O85: 0 | P85: 0 | Q85: 0 | S85: 0
A86: 1990 | B86: Other Tangible Property | E86: 0 | H86: 0 | K86: 0 | M86: 0 | N86: 0 | O86: 0 | P86: 0 | Q86: 0 | S86: 0
A87: 1995 | B87: Contributions & Grants - Overhead Primary - Structures | E87: 0 | H87: 0 | K87: 0 | M87: 0 | N87: 0 | O87: 0 | P87: 0 | Q87: 0 | S87: =IF(ISERROR(+R87-Q87), 0, +R87-Q87) -> 0
A88: 1995 | B88: Contributions & Grants - Overhead Primary - Devices | E88: =C88-D88 -> 0 | H88: 0 | K88: 0 | M88: 0 | N88: 0 | O88: 0 | P88: 0 | Q88: 0 | S88: 0
A89: 1995 | B89: Contributions & Grants - Overhead Primary - Conductors | E89: 0 | H89: 0 | K89: 0 | M89: 0 | N89: 0 | O89: 0 | P89: 0 | Q89: 0 | S89: 0
A90: 1995 | B90: Contributions & Grants - Overhead Primary - Switch Controllers, Arresters | E90: 0 | H90: 0 | K90: 0 | M90: 0 | N90: 0 | O90: 0 | P90: 0 | Q90: 0 | S90: 0
A91: 1995 | B91: Contributions & Grants - Underground Primary - Conduit | E91: 0 | H91: 0 | K91: 0 | M91: 0 | N91: 0 | O91: 0 | P91: 0 | Q91: 0 | S91: 0
A92: 1995 | B92: Contributions & Grants - Underground Primary - Conductor | E92: 0 | H92: 0 | K92: 0 | M92: 0 | N92: 0 | O92: 0 | P92: 0 | Q92: 0 | S92: 0
A93: 1995 | B93: Contributions & Grants - Underground Primary - Devices | E93: 0 | H93: 0 | K93: 0 | M93: 0 | N93: 0 | O93: 0 | P93: 0 | Q93: 0 | S93: 0
A94: 1995 | B94: Contributions & Grants - Transformers | E94: 0 | H94: 0 | K94: 0 | M94: 0 | N94: 0 | O94: 0 | P94: 0 | Q94: 0 | S94: 0
A95: 1995 | B95: Contributions & Grants - Underground Secondary - Cables | E95: 0 | H95: 0 | K95: 0 | M95: 0 | N95: 0 | O95: 0 | P95: 0 | Q95: 0 | S95: 0
A96: 1995 | B96: Contributions & Grants - Overhead Secondary - Wire | E96: 0 | H96: 0 | K96: 0 | M96: 0 | N96: 0 | O96: 0 | P96: 0 | Q96: 0 | S96: 0
A97: 1995 | B97: Contributions & Grants - Meters - Residential | E97: 0 | H97: 0 | K97: 0 | M97: 0 | N97: 0 | O97: 0 | P97: 0 | Q97: 0 | S97: 0
A98: 1995 | B98: Contributions & Grants - Meters - Industrial/Wholesale | E98: 0 | H98: 0 | K98: 0 | M98: 0 | N98: 0 | O98: 0 | P98: 0 | Q98: 0 | S98: 0
A99: 1995 | B99: Contributions & Grants - Meters - Current/Potential Transformers | E99: 0 | H99: 0 | K99: 0 | M99: 0 | N99: 0 | O99: 0 | P99: 0 | Q99: 0 | S99: 0
A100: 1995 | B100: Contributions & Grants - Smart Meters | E100: 0 | H100: 0 | K100: 0 | M100: 0 | N100: 0 | O100: 0 | P100: 0 | Q100: 0 | S100: 0
A101: 2005 | B101: Property Under Finance Lease | E101: =C101-D101 -> 0 | H101: 0 | K101: 0 | M101: 0 | N101: 0 | O101: =IF(L101=0,0,+H101/L101) -> 0 | P101: =IF(L101=0,0,+(I101*0.5)/L101) -> 0 | Q101: =IF(ISERROR(+N101+O101+P101), 0, +N101+O101+P101) -> 0 | S101: 0
B102: Total | C102: =SUM(C23:C101) -> 0 | D102: =SUM(D23:D101) -> 0 | E102: =SUM(E23:E101) -> 0 | F102: 0 | G102: 0 | H102: 0 | I102: =SUM(I23:I101) -> 0 | N102: =SUM(N23:N101) -> 0 | O102: =SUM(O23:O101) -> 0 | P102: 0 | Q102: 0 | R102: 0 | S102: =SUM(S23:S101) -> 0
A105: General: | B105: Applicants are to complete this appendix to show the reasonability of the depreciation expense that is included in rate base via. Accumulated depreciation and the revenue requirement.
B106: Applicants must provide a breakdown of depreciation and amortization expense in the above format for all relevant accounts. Balances presented in the table should exclude asset retirement obligations (AROs) and the related depreciation and accretion expense. These should be disclosed separately consistent with the Notes of historical Audited Financial Statements.
A109: Notes:
A110: 1 | B110: This is the net book value of assets that existed as at the date of the utility's change in depreciation policies (i.e. as at Jan. 1, 2012 or Jan. 1, 2013). These assets are to be depreciated at the average remaining service life. This amount will not change in years subsequent to the date of the utility's change in depreciation policies. This column is expected to be used until the assets that existed as at the date of the utility's change in depreciation policies are fully depreciated.
A111: 2 | B111: This is the opening gross book value of assets that have been acquired after the date of the utility's change in depreciation policies (i.e. additions starting in 2012/2013 for those who changed policies Jan. 1, 2012/2013). These assets are to be depreciated at the revised service life. The amount is expected to be equal to the opening gross book value of the prior year plus the prior year's additions.
A112: 3 | B112: A recalculation should be performed to determine the average remaining life of opening balance of assets (i.e. excluding current year's additions) under the change in policies under CGAAP. For example, Asset A had a useful life of 20 years under CGAAP without the change in policies. On January 1 of the year of policy changes, Asset A was 3 years depreciated. As a result, Asset A would have a remaining service life of 17 years (20 years less 3 years) as at January 1 of the year of policy changes. Due to making the change in policies under CGAAP, management re-assessed the asset useful lives and concluded that the revised useful life of Asset A is now 30 years. Therefore, the average remaining useful life of the opening balance of Asset A is determined to be 27 years (30 years less 3 years) under the revised CGAAP as at January 1 of the year of policy changes.
A113: 4 | B113: The useful life used should be consistent with the OEB's regulatory accounting policies as set out in the Accounting Procedures Handbook for Electricity Distributors, effective Jan. 1, 2012 and also with the Report of the Board, Transition to International Financial Reporting Standards, EB-2008-0408, and the Kinectrics Report.
A114: 5 | B114: OEB policy of the "half-year" rule - the applicant must ensure that additions in the year attract a half-year depreciation expense in the first year. Deviations from this standard practice must be supported in the application.
A115: 6 | B115: The applicant must provide an explanation of material variances in evidence.
A116: 7 | B116: This should include assets in column A (excel column C) that become fully depreciated since the date of the policy change. The amount input in b (excel column D) should equal the net book value of the asset as at the date of depreciation policy change
A117: 8 | B117: This should include assets in column D (excel column F) that have become fully depreciated. The amount input in e (excel column G) should equal the gross book value of the asset

Sheet App.2-D_Overhead
G1: File Number: | H1: =EBNUMBER -> EB-2020-0007
G2: Exhibit:
G3: Tab:
G4: Schedule:
G5: Page:
G7: Date:
A9: Appendix 2-D
A10: Overhead Expense
A12: Applicants are to provide a breakdown of OM&A before capitalization in the below table. OM&A before capitalization may be broken down by cost center, program, drivers or another format best suited to focus on capitalized vs. uncapitalized OM&A.
A14: OM&A Before Capitalization
B15: =F15-4 -> 2017 | C15: =F15-3 -> 2018 | D15: =F15-2 -> 2019 | E15: =F15-1 -> 2020 | F15: =TestYear -> 2021
B16: Historical Year | C16: Historical Year | D16: Historical Year | E16: Bridge Year | F16: Test Year
A17: Operations and Maintenance | B17: 11143968.95 | C17: 11443472.04 | D17: 11682635.84 | E17: 11399554.23 | F17: 12637338.29
A18: Billing and Collecting | B18: 2246596.434 | C18: 2648911.713 | D18: 2278861.763 | E18: 2877786.132 | F18: 2999028.353
A19: Community Relations | B19: 35026 | C19: 25392 | D19: 15271 | E19: 31803 | F19: 36800
A20: Administrative and General (includes donations) | B20: 6821621.445 | C20: 6736612.999 | D20: 7261481.611 | E20: 7384732.245 | F20: 8195335.212
A27: Total OM&A Before Capitalization (B) | B27: =SUM(B17:B26) -> 20247212.82 | C27: =SUM(C17:C26) -> 20854388.75 | D27: =SUM(D17:D26) -> 21238250.21 | E27: =SUM(E17:E26) -> 21693875.61 | F27: =SUM(F17:F26) -> 23868501.85
A29: Applicants are to provide a breakdown of capitalized OM&A in the below table. Capitalized OM&A may be broken down using the categories listed in the table below if possible. Otherwise, applicants are to provide its own break down of capitalized OM&A.
A31: Capitalized OM&A | G31: Directly | H31: Explanation for Change in Overhead Capitalized
B32: =F32-4 -> 2017 | C32: =F32-3 -> 2018 | D32: =F32-2 -> 2019 | E32: =F32-1 -> 2020 | F32: =TestYear -> 2021 | G32: Attributable?
B33: Historical Year | C33: Historical Year | D33: Historical Year | E33: Bridge Year | F33: Test Year | G33: (Yes/No)
A34: Direct Labour - Operations/Maintenance/Engineering | B34: 1271892.65 | C34: 1239021.66 | D34: 1374617.88 | E34: 1254251.934 | F34: 1590900.391 | G34: Yes | H34: Directly attributable to labour costs charged to capital
A35: Employee Benefits - Operations/Maintenance/Engineering | B35: 627334.51 | C35: 626966.66 | D35: 590921.91 | E35: 499183.1591 | F35: 579826.0612 | G35: Yes | H35: Directly attributable to labour costs charged to capital
A36: Fleet | B36: 183992.66 | C36: 182052.5 | D36: 184166 | E36: =ROUND(E34*14.18667%,2) -> 177936.58 | F36: 200000 | G36: Yes | H36: Directly attributable to labour costs charged to capital
A40: Total Capitalized OM&A (A) | B40: =SUM(B34:B39) -> 2083219.82 | C40: =SUM(C34:C39) -> 2048040.82 | D40: =SUM(D34:D39) -> 2149705.79 | E40: =SUM(E34:E39) -> 1931371.673 | F40: =SUM(F34:F39) -> 2370726.452
A42: % of Capitalized OM&A (=A/B) | B42: =IF(ISERROR(B40/B27),"0%",B40/B27) -> 0.1028892143 | C42: =IF(ISERROR(C40/C27),"0%",C40/C27) -> 0.09820670575 | D42: =IF(ISERROR(D40/D27),"0%",D40/D27) -> 0.1012185923 | E42: =IF(ISERROR(E40/E27),"0%",E40/E27) -> 0.08902842938 | F42: =IF(ISERROR(F40/F27),"0%",F40/F27) -> 0.09932447652
A45: Total OM&A After Capitalization (B-A) | B45: =B27-B40 -> 18163993 | C45: =C27-C40 -> 18806347.93 | D45: 19088544.42 | E45: 19762503.94 | F45: 21497775.4

Sheet App.2-EA_Account 1575 (2015) (hidden)
H1: File Number: | I1: =EBNUMBER -> EB-2020-0007
H2: Exhibit:
H3: Tab:
H4: Schedule:
H5: Page:
H7: Date:
A9: Appendix 2-EA
A10: Account 1575 - IFRS-CGAAP Transitional PP&E Amounts
A11: 2015 Adopters of IFRS for Financial Reporting Purposes
A13: For applicants that adopted IFRS on January 1, 2015 for financial reporting purposes
B17: 2014 | C17: =TestYear-3 -> 2018 | D17: =TestYear-2 -> 2019 | E17: =CONCATENATE(TestYear-1," Bridge Year") -> 2020 Bridge Year | F17: =CONCATENATE(TestYear," Rebasing Year") -> 2021 Rebasing Year
A18: Reporting Basis | B18: CGAAP | C18: CGAAP | D18: CGAAP | E18: MIFRS | F18: MIFRS
B19: Actual | C19: Actual | D19: Actual | E19: Forecast | F19: Forecast
D20: $ | E20: $
A21: PP&E Values under CGAAP
A22: Opening net PP&E - Note 1 | C22: =+B25 -> 0 | D22: =+C25 -> 0 | E22: =+D25 -> 0
A23: Net Additions - Note 4
A24: Net Depreciation (amounts should be negative) - Note 4
A25: Closing net PP&E (1) | B25: =SUM(B22:B24) -> 0 | C25: =SUM(C22:C24) -> 0 | D25: =SUM(D22:D24) -> 0 | E25: =SUM(E22:E24) -> 0
A27: PP&E Values under MIFRS (Starts from 2014, the transition year)
A28: Opening net PP&E - Note 1 | C28: =+B31 -> 0 | D28: =+C31 -> 0 | E28: =+D31 -> 0
A29: Net Additions - Note 4
A30: Net Depreciation (amounts should be negative) - Note 4
A31: Closing net PP&E (2) | B31: =SUM(B28:B30) -> 0 | C31: =SUM(C28:C30) -> 0 | D31: =SUM(D28:D30) -> 0 | E31: =SUM(E28:E30) -> 0
A33: Difference in Closing net PP&E, former CGAAP vs. revised CGAAP | B33: =B25-B31 -> 0 | C33: =C25-C31 -> 0 | D33: =D25-D31 -> 0 | E33: =E25-E31 -> 0
A36: Effect on Deferral and Variance Account Rate Riders
A37: Closing balance in Account 1575 | F37: =IF(ISERROR(E33), 0, E33) -> 0 | H37: WACC
A38: Return on Rate Base Associated with Account 1575 balance at WACC - Note 2 | F38: =E33*I37*I38 -> 0 | G38: # of years of rate rider disposition period
A39: Amount included in Deferral and Variance Account Rate Rider Calculation | F39: =F37+F38 -> 0
A41: Notes:
A42: 1 For an applicant that adopted IFRS on January 1, 2015, the PP&E values as of January 1, 2014 under both CGAAP and MIFRS should be the same.
A43: 2 Return on rate base associated with deferred balance is calculated as:
A44: the deferral account closing balance as of 2017 x WACC X # of years of rate rider disposition period
A45: * Please note that the calculation should be adjusted once WACC is updated and finalized in the rate application.
A46: 3 The PP&E deferral account is cleared by including the total balance in the deferral and variance account rate rider calculation.
A47: 4 Net additions are additions net of disposals; Net depreciation is additions to depreciation net of disposals.

Sheet App.2-EB_Account 1576 (2012) (hidden)
K1: File Number: | L1: =EBNUMBER -> EB-2020-0007
K2: Exhibit:
K3: Tab:
K4: Schedule:
K5: Page:
K7: Date:
A9: Appendix 2-EB
A10: Account 1576 - Accounting Changes under CGAAP
A11: 2012 Changes in Accounting Policies under CGAAP
A13: For applicants with a balance in Account 1576 and made capitalization and depreciation expense accounting policy changes under CGAAP effective January 1, 2012. This is the first time the applicant is rebasing with changes in these accounting policies.
B17: Prior Years Rebasing | C17: 2012 | D17: 2013 | E17: 2014 | F17: 2015 | G17: 2016 | H17: 2017 | I17: 2018 Rebasing Year
A18: Reporting Basis | B18: CGAAP | C18: CGAAP | D18: CGAAP | E18: CGAAP | F18: MIFRS - Note 5 | G18: MIFRS | H18: MIFRS | I18: MIFRS
B19: Forecast | C19: Actual | D19: Actual | E19: Actual | F19: Actual | G19: Actual | H19: Forecast | I19: Forecast
C20: $ | D20: $ | E20: $ | F20: $ | G20: $ | H20: $
A21: PP&E Values under former CGAAP
A22: Opening net PP&E - Note 1 | D22: =+C25 -> 0 | E22: =+D25 -> 0 | F22: =+E25 -> 0 | G22: =+F25 -> 0 | H22: =+G25 -> 0
A23: Net Additions - Note 4
A24: Net Depreciation (amounts should be negative) - Note 4
A25: Closing net PP&E (1) | C25: =C22+C23+C24 -> 0 | D25: 0 | E25: 0 | F25: 0 | G25: 0 | H25: 0
A27: PP&E Values under revised CGAAP (Starts from 2012)
A28: Opening net PP&E - Note 1 | D28: =+C31 -> 0 | E28: =+D31 -> 0 | F28: =+E31 -> 0 | G28: =+F31 -> 0 | H28: =+G31 -> 0
A29: Net Additions - Note 4
A30: Net Depreciation (amounts should be negative) - Note 4
A31: Closing net PP&E (2) | C31: =SUM(C28:C30) -> 0 | D31: 0 | E31: 0 | F31: 0 | G31: 0 | H31: 0
A33: Difference in Closing net PP&E, former CGAAP vs. revised CGAAP | C33: =C25-C31 -> 0 | D33: 0 | E33: 0 | F33: 0 | G33: 0 | H33: 0
A36: Effect on Deferral and Variance Account Rate Riders
A37: Closing balance in Account 1576 | I37: =IF(ISERROR(H33), 0, H33) -> 0 | K37: WACC
A38: Return on Rate Base Associated with Account 1576 balance at WACC - Note 2 | I38: =H33*L37*L38 -> 0 | J38: # of years of rate rider disposition period
A39: Amount included in Deferral and Variance Account Rate Rider Calculation | I39: =I37+I38 -> 0
A41: Notes:
A42: 1 For an applicant that made the capitalization and depreciation expense accounting policy changes on January 1, 2012, the PP&E values as of January 1, 2012 under both former CGAAP and revised CGAAP should be the same.
A43: 2 Return on rate base associated with Account 1576 balance is calculated as:
A44: the variance account ending balance as of 2017 x WACC X # of years of rate rider disposition period
A45: * Please note that the calculation should be adjusted once WACC is updated and finalized in the rate application.
A46: 3 Account 1576 is cleared by including the total balance in the deferral and variance account rate rider calculation.
A47: 4 Net additions are additions net of disposals; Net depreciation is additions to depreciation net of disposals.
A48: 5 Differences due to the adoption of MIFRS are to be shown separately in Account 1575 in Appendix 2-EA as Accounts 1575 and 1576 cannot be used interchangably.

Sheet App.2-EC_Account 1576 (2013) (hidden)
J1: File Number: | K1: =EBNUMBER -> EB-2020-0007
J2: Exhibit:
J3: Tab:
J4: Schedule:
J5: Page:
J7: Date:
A9: Appendix 2-EC
A10: Account 1576 - Accounting Changes under CGAAP
A11: 2013 Changes in Accounting Policies under CGAAP
A13: For applicants with a balance in Account 1576 and made capitalization and depreciation expense accounting policy changes under CGAAP effective January 1, 2013. This is the first time the applicant is rebasing with changes in these accounting policies.
B17: Prior Years Rebasing | C17: 2013 | D17: 2014 | E17: 2015 | F17: 2016 | G17: 2017 | H17: 2018 Rebasing Year
A18: Reporting Basis | B18: CGAAP | C18: CGAAP | D18: CGAAP | E18: MIFRS - Note 5 | F18: MIFRS | G18: MIFRS | H18: MIFRS
B19: Actual | C19: Actual | D19: Actual | E19: Actual | F19: Actual | G19: Forecast | H19: Forecast
C20: $ | D20: $ | F20: $
A21: PP&E Values under former CGAAP
A22: Opening net PP&E - Note 1 | D22: =+C25 -> 0 | E22: =+D25 -> 0 | F22: =+E25 -> 0 | G22: =+F25 -> 0
A23: Net Additions - Note 4
A24: Net Depreciation (amounts should be negative) - Note 4
A25: Closing net PP&E (1) | C25: =C22+C23+C24 -> 0 | D25: =D22+D23+D24 -> 0 | E25: =E22+E23+E24 -> 0 | F25: =F22+F23+F24 -> 0 | G25: =G22+G23+G24 -> 0
A27: PP&E Values under revised CGAAP (Starts from 2012)
A28: Opening net PP&E - Note 1 | D28: =+C31 -> 0 | E28: =+D31 -> 0 | F28: =+E31 -> 0 | G28: =+F31 -> 0
A29: Net Additions - Note 4
A30: Net Depreciation (amounts should be negative) - Note 4
A31: Closing net PP&E (2) | C31: =SUM(C28:C30) -> 0 | D31: =SUM(D28:D30) -> 0 | E31: =SUM(E28:E30) -> 0 | F31: =SUM(F28:F30) -> 0 | G31: =SUM(G28:G30) -> 0
A33: Difference in Closing net PP&E, former CGAAP vs. revised CGAAP | C33: =C25-C31 -> 0 | D33: =D25-D31 -> 0 | E33: =E25-E31 -> 0 | F33: =F25-F31 -> 0 | G33: =G25-G31 -> 0
A36: Effect on Deferral and Variance Account Rate Riders
A37: Closing balance in Account 1576 | H37: =IF(ISERROR(G33), 0, G33) -> 0 | J37: WACC
A38: Return on Rate Base Associated with Account 1576 balance at WACC - Note 2 | H38: =G33*K37*K38 -> 0 | I38: # of years of rate rider disposition period
A39: Amount included in Deferral and Variance Account Rate Rider Calculation | H39: =H37+H38 -> 0
A41: Notes:
A42: 1 For an applicant that made the capitalization and depreciation expense accounting policy changes on January 1, 2013, the PP&E values as of January 1, 2013 under both former CGAAP and revised CGAAP should be the same.
A43: 2 Return on rate base associated with Account 1576 balance is calculated as:
A44: the variance account ending balance as of 2017 x WACC X # of years of rate rider disposition period
A45: * Please note that the calculation should be adjusted once WACC is updated and finalized in the rate application.
A46: 3 Account 1576 is cleared by including the total balance in the deferral and variance account rate rider calculation.
A47: 4 Net additions are additions net of disposals; Net depreciation is additions to depreciation net of disposals.
A48: 5 Differences due to the adoption of MIFRS are to be shown separately in Account 1575 in Appendix 2-EA as Accounts 1575 and 1576 cannot be used interchangably.

Sheet Hidden_REG Invest. (hidden)
A1: Utility Name | B1: EB Number | C1: Test Year | D1: Bridge Year | E1: Last Rebasing Year | F1: Renewable Generation Connection Investment Summary | G1: Year | H1: Amount
A2: ='LDC Info'!$E$14 -> Burlington Hydro Inc. | B2: =EBNUMBER -> EB-2020-0007 | C2: =TestYear -> 2021 | D2: =BridgeYear -> 2020 | E2: =RebaseYear -> 2014 | F2: REI Investments_A_Total Capital Costs | G2: ='App.2-FA Proposed REG Invest.'!$C$31 -> 2016 | H2: ='App.2-FA Proposed REG Invest.'!C62 -> 0
A3: ='LDC Info'!$E$14 -> Burlington Hydro Inc. | B3: EB-2020-0007 | C3: 2021 | D3: 2020 | E3: 2014 | F3: REI Investments_A_Total OM&A Start-Up | G3: ='App.2-FA Proposed REG Invest.'!$C$31 -> 2016 | H3: ='App.2-FA Proposed REG Invest.'!$C63 -> 0
A4: ='LDC Info'!$E$14 -> Burlington Hydro Inc. | B4: EB-2020-0007 | C4: 2021 | D4: 2020 | E4: 2014 | F4: REI Investments_A_Total OM&A Ongoing | G4: ='App.2-FA Proposed REG Invest.'!$C$31 -> 2016 | H4: ='App.2-FA Proposed REG Invest.'!$C64 -> 0
A5: ='LDC Info'!$E$14 -> Burlington Hydro Inc. | B5: EB-2020-0007 | C5: 2021 | D5: 2020 | E5: 2014 | F5: REI Investments_A_Total Capital Costs | G5: ='App.2-FA Proposed REG Invest.'!$D$31 -> 2017 | H5: ='App.2-FA Proposed REG Invest.'!D62 -> 0
A6: ='LDC Info'!$E$14 -> Burlington Hydro Inc. | B6: EB-2020-0007 | C6: 2021 | D6: 2020 | E6: 2014 | F6: REI Investments_A_Total OM&A Start-Up | G6: ='App.2-FA Proposed REG Invest.'!$D$31 -> 2017 | H6: ='App.2-FA Proposed REG Invest.'!D63 -> 0
A7: ='LDC Info'!$E$14 -> Burlington Hydro Inc. | B7: EB-2020-0007 | C7: 2021 | D7: 2020 | E7: 2014 | F7: REI Investments_A_Total OM&A Ongoing | G7: ='App.2-FA Proposed REG Invest.'!$D$31 -> 2017 | H7: ='App.2-FA Proposed REG Invest.'!D64 -> 0
A8: ='LDC Info'!$E$14 -> Burlington Hydro Inc. | B8: EB-2020-0007 | C8: 2021 | D8: 2020 | E8: 2014 | F8: REI Investments_A_Total Capital Costs | G8: ='App.2-FA Proposed REG Invest.'!$E$31 -> 2018 | H8: ='App.2-FA Proposed REG Invest.'!E62 -> 0
A9: ='LDC Info'!$E$14 -> Burlington Hydro Inc. | B9: EB-2020-0007 | C9: 2021 | D9: 2020 | E9: 2014 | F9: REI Investments_A_Total OM&A Start-Up | G9: ='App.2-FA Proposed REG Invest.'!$E$31 -> 2018 | H9: ='App.2-FA Proposed REG Invest.'!E63 -> 0
A10: ='LDC Info'!$E$14 -> Burlington Hydro Inc. | B10: EB-2020-0007 | C10: 2021 | D10: 2020 | E10: 2014 | F10: REI Investments_A_Total OM&A Ongoing | G10: ='App.2-FA Proposed REG Invest.'!$E$31 -> 2018 | H10: ='App.2-FA Proposed REG Invest.'!E64 -> 0
A11: ='LDC Info'!$E$14 -> Burlington Hydro Inc. | B11: EB-2020-0007 | C11: 2021 | D11: 2020 | E11: 2014 | F11: REI Investments_A_Total Capital Costs | G11: ='App.2-FA Proposed REG Invest.'!$F$31 -> 2019 | H11: ='App.2-FA Proposed REG Invest.'!F62 -> 0
A12: ='LDC Info'!$E$14 -> Burlington Hydro Inc. | B12: EB-2020-0007 | C12: 2021 | D12: 2020 | E12: 2014 | F12: REI Investments_A_Total OM&A Start-Up | G12: ='App.2-FA Proposed REG Invest.'!$F$31 -> 2019 | H12: ='App.2-FA Proposed REG Invest.'!F63 -> 0
A13: ='LDC Info'!$E$14 -> Burlington Hydro Inc. | B13: EB-2020-0007 | C13: 2021 | D13: 2020 | E13: 2014 | F13: REI Investments_A_Total OM&A Ongoing | G13: ='App.2-FA Proposed REG Invest.'!$F$31 -> 2019 | H13: ='App.2-FA Proposed REG Invest.'!F64 -> 0
A14: ='LDC Info'!$E$14 -> Burlington Hydro Inc. | B14: EB-2020-0007 | C14: 2021 | D14: 2020 | E14: 2014 | F14: REI Investments_A_Total Capital Costs | G14: ='App.2-FA Proposed REG Invest.'!$G$31 -> 2020 | H14: ='App.2-FA Proposed REG Invest.'!G62 -> 0
A15: ='LDC Info'!$E$14 -> Burlington Hydro Inc. | B15: EB-2020-0007 | C15: 2021 | D15: 2020 | E15: 2014 | F15: REI Investments_A_Total OM&A Start-Up | G15: ='App.2-FA Proposed REG Invest.'!$G$31 -> 2020 | H15: ='App.2-FA Proposed REG Invest.'!G63 -> 0
A16: ='LDC Info'!$E$14 -> Burlington Hydro Inc. | B16: EB-2020-0007 | C16: 2021 | D16: 2020 | E16: 2014 | F16: REI Investments_A_Total OM&A Ongoing | G16: ='App.2-FA Proposed REG Invest.'!$G$31 -> 2020 | H16: ='App.2-FA Proposed REG Invest.'!G64 -> 0
A17: ='LDC Info'!$E$14 -> Burlington Hydro Inc. | B17: EB-2020-0007 | C17: 2021 | D17: 2020 | E17: 2014 | F17: REI Investments_A_Total Capital Costs | G17: ='App.2-FA Proposed REG Invest.'!$H$31 -> 2021 | H17: ='App.2-FA Proposed REG Invest.'!H62 -> 0
A18: ='LDC Info'!$E$14 -> Burlington Hydro Inc. | B18: EB-2020-0007 | C18: 2021 | D18: 2020 | E18: 2014 | F18: REI Investments_A_Total OM&A Start-Up | G18: ='App.2-FA Proposed REG Invest.'!$H$31 -> 2021 | H18: ='App.2-FA Proposed REG Invest.'!H63 -> 0
A19: ='LDC Info'!$E$14 -> Burlington Hydro Inc. | B19: EB-2020-0007 | C19: 2021 | D19: 2020 | E19: 2014 | F19: REI Investments_A_Total OM&A Ongoing | G19: ='App.2-FA Proposed REG Invest.'!$H$31 -> 2021 | H19: ='App.2-FA Proposed REG Invest.'!H64 -> 0
A20: ='LDC Info'!$E$14 -> Burlington Hydro Inc. | B20: EB-2020-0007 | C20: 2021 | D20: 2020 | E20: 2014 | F20: REI Investments_A_Total Capital Costs | G20: ='App.2-FA Proposed REG Invest.'!$I$31 -> 2022 | H20: ='App.2-FA Proposed REG Invest.'!I62 -> 0
A21: ='LDC Info'!$E$14 -> Burlington Hydro Inc. | B21: EB-2020-0007 | C21: 2021 | D21: 2020 | E21: 2014 | F21: REI Investments_A_Total OM&A Start-Up | G21: ='App.2-FA Proposed REG Invest.'!$I$31 -> 2022 | H21: ='App.2-FA Proposed REG Invest.'!I63 -> 0
A22: ='LDC Info'!$E$14 -> Burlington Hydro Inc. | B22: EB-2020-0007 | C22: 2021 | D22: 2020 | E22: 2014 | F22: REI Investments_A_Total OM&A Ongoing | G22: ='App.2-FA Proposed REG Invest.'!$I$31 -> 2022 | H22: ='App.2-FA Proposed REG Invest.'!I64 -> 0
A23: ='LDC Info'!$E$14 -> Burlington Hydro Inc. | B23: EB-2020-0007 | C23: 2021 | D23: 2020 | E23: 2014 | F23: REI Investments_A_Total Capital Costs | G23: ='App.2-FA Proposed REG Invest.'!$J$31 -> 2023 | H23: ='App.2-FA Proposed REG Invest.'!J62 -> 0
A24: ='LDC Info'!$E$14 -> Burlington Hydro Inc. | B24: EB-2020-0007 | C24: 2021 | D24: 2020 | E24: 2014 | F24: REI Investments_A_Total OM&A Start-Up | G24: ='App.2-FA Proposed REG Invest.'!$J$31 -> 2023 | H24: ='App.2-FA Proposed REG Invest.'!J63 -> 0
A25: ='LDC Info'!$E$14 -> Burlington Hydro Inc. | B25: EB-2020-0007 | C25: 2021 | D25: 2020 | E25: 2014 | F25: REI Investments_A_Total OM&A Ongoing | G25: ='App.2-FA Proposed REG Invest.'!$J$31 -> 2023 | H25: ='App.2-FA Proposed REG Invest.'!J64 -> 0
A26: ='LDC Info'!$E$14 -> Burlington Hydro Inc. | B26: EB-2020-0007 | C26: 2021 | D26: 2020 | E26: 2014 | F26: REI Investments_A_Total Capital Costs | G26: ='App.2-FA Proposed REG Invest.'!$K$31 -> 2024 | H26: ='App.2-FA Proposed REG Invest.'!K62 -> 0
A27: ='LDC Info'!$E$14 -> Burlington Hydro Inc. | B27: EB-2020-0007 | C27: 2021 | D27: 2020 | E27: 2014 | F27: REI Investments_A_Total OM&A Start-Up | G27: ='App.2-FA Proposed REG Invest.'!$K$31 -> 2024 | H27: ='App.2-FA Proposed REG Invest.'!K63 -> 0
A28: ='LDC Info'!$E$14 -> Burlington Hydro Inc. | B28: EB-2020-0007 | C28: 2021 | D28: 2020 | E28: 2014 | F28: REI Investments_A_Total OM&A Ongoing | G28: ='App.2-FA Proposed REG Invest.'!$K$31 -> 2024 | H28: ='App.2-FA Proposed REG Invest.'!K64 -> 0
A29: ='LDC Info'!$E$14 -> Burlington Hydro Inc. | B29: EB-2020-0007 | C29: 2021 | D29: 2020 | E29: 2014 | F29: REI Investments_A_Total Capital Costs | G29: ='App.2-FA Proposed REG Invest.'!$L$31 -> 2025 | H29: ='App.2-FA Proposed REG Invest.'!L62 -> 0
A30: ='LDC Info'!$E$14 -> Burlington Hydro Inc. | B30: EB-2020-0007 | C30: 2021 | D30: 2020 | E30: 2014 | F30: REI Investments_A_Total OM&A Start-Up | G30: ='App.2-FA Proposed REG Invest.'!$L$31 -> 2025 | H30: ='App.2-FA Proposed REG Invest.'!L63 -> 0
A31: ='LDC Info'!$E$14 -> Burlington Hydro Inc. | B31: EB-2020-0007 | C31: 2021 | D31: 2020 | E31: 2014 | F31: REI Investments_A_Total OM&A Ongoing | G31: ='App.2-FA Proposed REG Invest.'!$L$31 -> 2025 | H31: ='App.2-FA Proposed REG Invest.'!L64 -> 0
A32: ='LDC Info'!$E$14 -> Burlington Hydro Inc. | B32: EB-2020-0007 | C32: 2021 | D32: 2020 | E32: 2014 | F32: Expansion Investments_B_Total Capital Costs | G32: ='App.2-FA Proposed REG Invest.'!$C$31 -> 2016 | H32: ='App.2-FA Proposed REG Invest.'!C99 -> 0
A33: ='LDC Info'!$E$14 -> Burlington Hydro Inc. | B33: EB-2020-0007 | C33: 2021 | D33: 2020 | E33: 2014 | F33: Expansion Investments_B_Total OM&A Start-Up | G33: ='App.2-FA Proposed REG Invest.'!$C$31 -> 2016 | H33: ='App.2-FA Proposed REG Invest.'!C100 -> 0
A34: ='LDC Info'!$E$14 -> Burlington Hydro Inc. | B34: EB-2020-0007 | C34: 2021 | D34: 2020 | E34: 2014 | F34: Expansion Investments_B_Total OM&A Ongoing | G34: ='App.2-FA Proposed REG Invest.'!$C$31 -> 2016 | H34: ='App.2-FA Proposed REG Invest.'!C101 -> 0
A35: ='LDC Info'!$E$14 -> Burlington Hydro Inc. | B35: EB-2020-0007 | C35: 2021 | D35: 2020 | E35: 2014 | F35: Expansion Investments_B_Total Capital Costs | G35: ='App.2-FA Proposed REG Invest.'!$D$31 -> 2017 | H35: ='App.2-FA Proposed REG Invest.'!D99 -> 0
A36: ='LDC Info'!$E$14 -> Burlington Hydro Inc. | B36: EB-2020-0007 | C36: 2021 | D36: 2020 | E36: 2014 | F36: Expansion Investments_B_Total OM&A Start-Up | G36: ='App.2-FA Proposed REG Invest.'!$D$31 -> 2017 | H36: ='App.2-FA Proposed REG Invest.'!D100 -> 0
A37: ='LDC Info'!$E$14 -> Burlington Hydro Inc. | B37: EB-2020-0007 | C37: 2021 | D37: 2020 | E37: 2014 | F37: Expansion Investments_B_Total OM&A Ongoing | G37: ='App.2-FA Proposed REG Invest.'!$D$31 -> 2017 | H37: ='App.2-FA Proposed REG Invest.'!D101 -> 0
A38: ='LDC Info'!$E$14 -> Burlington Hydro Inc. | B38: EB-2020-0007 | C38: 2021 | D38: 2020 | E38: 2014 | F38: Expansion Investments_B_Total Capital Costs | G38: ='App.2-FA Proposed REG Invest.'!$E$31 -> 2018 | H38: ='App.2-FA Proposed REG Invest.'!E99 -> 0
A39: ='LDC Info'!$E$14 -> Burlington Hydro Inc. | B39: EB-2020-0007 | C39: 2021 | D39: 2020 | E39: 2014 | F39: Expansion Investments_B_Total OM&A Start-Up | G39: ='App.2-FA Proposed REG Invest.'!$E$31 -> 2018 | H39: ='App.2-FA Proposed REG Invest.'!E100 -> 0
A40: ='LDC Info'!$E$14 -> Burlington Hydro Inc. | B40: EB-2020-0007 | C40: 2021 | D40: 2020 | E40: 2014 | F40: Expansion Investments_B_Total OM&A Ongoing | G40: ='App.2-FA Proposed REG Invest.'!$E$31 -> 2018 | H40: ='App.2-FA Proposed REG Invest.'!E101 -> 0
A41: ='LDC Info'!$E$14 -> Burlington Hydro Inc. | B41: EB-2020-0007 | C41: 2021 | D41: 2020 | E41: 2014 | F41: Expansion Investments_B_Total Capital Costs | G41: ='App.2-FA Proposed REG Invest.'!$F$31 -> 2019 | H41: ='App.2-FA Proposed REG Invest.'!F99 -> 0
A42: ='LDC Info'!$E$14 -> Burlington Hydro Inc. | B42: EB-2020-0007 | C42: 2021 | D42: 2020 | E42: 2014 | F42: Expansion Investments_B_Total OM&A Start-Up | G42: ='App.2-FA Proposed REG Invest.'!$F$31 -> 2019 | H42: ='App.2-FA Proposed REG Invest.'!F100 -> 0
A43: ='LDC Info'!$E$14 -> Burlington Hydro Inc. | B43: EB-2020-0007 | C43: 2021 | D43: 2020 | E43: 2014 | F43: Expansion Investments_B_Total OM&A Ongoing | G43: ='App.2-FA Proposed REG Invest.'!$F$31 -> 2019 | H43: ='App.2-FA Proposed REG Invest.'!F101 -> 0
A44: ='LDC Info'!$E$14 -> Burlington Hydro Inc. | B44: EB-2020-0007 | C44: 2021 | D44: 2020 | E44: 2014 | F44: Expansion Investments_B_Total Capital Costs | G44: ='App.2-FA Proposed REG Invest.'!$G$31 -> 2020 | H44: ='App.2-FA Proposed REG Invest.'!G99 -> 0
A45: ='LDC Info'!$E$14 -> Burlington Hydro Inc. | B45: EB-2020-0007 | C45: 2021 | D45: 2020 | E45: 2014 | F45: Expansion Investments_B_Total OM&A Start-Up | G45: ='App.2-FA Proposed REG Invest.'!$G$31 -> 2020 | H45: ='App.2-FA Proposed REG Invest.'!G100 -> 0
A46: ='LDC Info'!$E$14 -> Burlington Hydro Inc. | B46: EB-2020-0007 | C46: 2021 | D46: 2020 | E46: 2014 | F46: Expansion Investments_B_Total OM&A Ongoing | G46: ='App.2-FA Proposed REG Invest.'!$G$31 -> 2020 | H46: ='App.2-FA Proposed REG Invest.'!G101 -> 0
A47: ='LDC Info'!$E$14 -> Burlington Hydro Inc. | B47: EB-2020-0007 | C47: 2021 | D47: 2020 | E47: 2014 | F47: Expansion Investments_B_Total Capital Costs | G47: ='App.2-FA Proposed REG Invest.'!$H$31 -> 2021 | H47: ='App.2-FA Proposed REG Invest.'!H99 -> 0
A48: ='LDC Info'!$E$14 -> Burlington Hydro Inc. | B48: EB-2020-0007 | C48: 2021 | D48: 2020 | E48: 2014 | F48: Expansion Investments_B_Total OM&A Start-Up | G48: ='App.2-FA Proposed REG Invest.'!$H$31 -> 2021 | H48: ='App.2-FA Proposed REG Invest.'!H100 -> 0
A49: ='LDC Info'!$E$14 -> Burlington Hydro Inc. | B49: EB-2020-0007 | C49: 2021 | D49: 2020 | E49: 2014 | F49: Expansion Investments_B_Total OM&A Ongoing | G49: ='App.2-FA Proposed REG Invest.'!$H$31 -> 2021 | H49: ='App.2-FA Proposed REG Invest.'!H101 -> 0
A50: ='LDC Info'!$E$14 -> Burlington Hydro Inc. | B50: EB-2020-0007 | C50: 2021 | D50: 2020 | E50: 2014 | F50: Expansion Investments_B_Total Capital Costs | G50: ='App.2-FA Proposed REG Invest.'!$I$31 -> 2022 | H50: ='App.2-FA Proposed REG Invest.'!I99 -> 0
A51: ='LDC Info'!$E$14 -> Burlington Hydro Inc. | B51: EB-2020-0007 | C51: 2021 | D51: 2020 | E51: 2014 | F51: Expansion Investments_B_Total OM&A Start-Up | G51: ='App.2-FA Proposed REG Invest.'!$I$31 -> 2022 | H51: ='App.2-FA Proposed REG Invest.'!I100 -> 0
A52: ='LDC Info'!$E$14 -> Burlington Hydro Inc. | B52: EB-2020-0007 | C52: 2021 | D52: 2020 | E52: 2014 | F52: Expansion Investments_B_Total OM&A Ongoing | G52: ='App.2-FA Proposed REG Invest.'!$I$31 -> 2022 | H52: ='App.2-FA Proposed REG Invest.'!I101 -> 0
A53: ='LDC Info'!$E$14 -> Burlington Hydro Inc. | B53: EB-2020-0007 | C53: 2021 | D53: 2020 | E53: 2014 | F53: Expansion Investments_B_Total Capital Costs | G53: ='App.2-FA Proposed REG Invest.'!$J$31 -> 2023 | H53: ='App.2-FA Proposed REG Invest.'!J99 -> 0
A54: ='LDC Info'!$E$14 -> Burlington Hydro Inc. | B54: EB-2020-0007 | C54: 2021 | D54: 2020 | E54: 2014 | F54: Expansion Investments_B_Total OM&A Start-Up | G54: ='App.2-FA Proposed REG Invest.'!$J$31 -> 2023 | H54: ='App.2-FA Proposed REG Invest.'!J100 -> 0
A55: ='LDC Info'!$E$14 -> Burlington Hydro Inc. | B55: EB-2020-0007 | C55: 2021 | D55: 2020 | E55: 2014 | F55: Expansion Investments_B_Total OM&A Ongoing | G55: ='App.2-FA Proposed REG Invest.'!$J$31 -> 2023 | H55: ='App.2-FA Proposed REG Invest.'!J101 -> 0
A56: ='LDC Info'!$E$14 -> Burlington Hydro Inc. | B56: EB-2020-0007 | C56: 2021 | D56: 2020 | E56: 2014 | F56: Expansion Investments_B_Total Capital Costs | G56: ='App.2-FA Proposed REG Invest.'!$K$31 -> 2024 | H56: ='App.2-FA Proposed REG Invest.'!K99 -> 0
A57: ='LDC Info'!$E$14 -> Burlington Hydro Inc. | B57: EB-2020-0007 | C57: 2021 | D57: 2020 | E57: 2014 | F57: Expansion Investments_B_Total OM&A Start-Up | G57: ='App.2-FA Proposed REG Invest.'!$K$31 -> 2024 | H57: ='App.2-FA Proposed REG Invest.'!K100 -> 0
A58: ='LDC Info'!$E$14 -> Burlington Hydro Inc. | B58: EB-2020-0007 | C58: 2021 | D58: 2020 | E58: 2014 | F58: Expansion Investments_B_Total OM&A Ongoing | G58: ='App.2-FA Proposed REG Invest.'!$K$31 -> 2024 | H58: ='App.2-FA Proposed REG Invest.'!K101 -> 0
A59: ='LDC Info'!$E$14 -> Burlington Hydro Inc. | B59: EB-2020-0007 | C59: 2021 | D59: 2020 | E59: 2014 | F59: Expansion Investments_B_Total Capital Costs | G59: ='App.2-FA Proposed REG Invest.'!$L$31 -> 2025 | H59: ='App.2-FA Proposed REG Invest.'!L99 -> 0
A60: ='LDC Info'!$E$14 -> Burlington Hydro Inc. | B60: EB-2020-0007 | C60: 2021 | D60: 2020 | E60: 2014 | F60: Expansion Investments_B_Total OM&A Start-Up | G60: ='App.2-FA Proposed REG Invest.'!$L$31 -> 2025 | H60: ='App.2-FA Proposed REG Invest.'!L100 -> 0
A61: ='LDC Info'!$E$14 -> Burlington Hydro Inc. | B61: EB-2020-0007 | C61: 2021 | D61: 2020 | E61: 2014 | F61: Expansion Investments_B_Total OM&A Ongoing | G61: ='App.2-FA Proposed REG Invest.'!$L$31 -> 2025 | H61: ='App.2-FA Proposed REG Invest.'!L101 -> 0

Sheet Hidden_REG Improvement (hidden)
A1: Utility Name | B1: EB Number | C1: Test Year | D1: Bridge Year | E1: Last Rebasing Year | F1: Renewable Generation Connection Direct Benefits/Provincial Amount Renewable Enabling Improvement Investments | G1: Year | H1: Amount
A2: ='LDC Info'!$E$14 -> Burlington Hydro Inc. | B2: =EBNUMBER -> EB-2020-0007 | C2: =TestYear -> 2021 | D2: =BridgeYear -> 2020 | E2: =RebaseYear -> 2014 | F2: Provincial Rate Protection | G2: ='App.2-FB Calc of REG Improvemnt'!D17 -> 2016 | H2: ='App.2-FB Calc of REG Improvemnt'!F$44 -> 0
A3: ='LDC Info'!$E$14 -> Burlington Hydro Inc. | B3: EB-2020-0007 | C3: 2021 | D3: 2020 | E3: 2014 | F3: Provincial Rate Protection | G3: ='App.2-FB Calc of REG Improvemnt'!G17 -> 2017 | H3: ='App.2-FB Calc of REG Improvemnt'!I$44 -> 0
A4: ='LDC Info'!$E$14 -> Burlington Hydro Inc. | B4: EB-2020-0007 | C4: 2021 | D4: 2020 | E4: 2014 | F4: Provincial Rate Protection | G4: ='App.2-FB Calc of REG Improvemnt'!J17 -> 2018 | H4: ='App.2-FB Calc of REG Improvemnt'!L$44 -> 0
A5: ='LDC Info'!$E$14 -> Burlington Hydro Inc. | B5: EB-2020-0007 | C5: 2021 | D5: 2020 | E5: 2014 | F5: Provincial Rate Protection | G5: ='App.2-FB Calc of REG Improvemnt'!M17 -> 2019 | H5: ='App.2-FB Calc of REG Improvemnt'!O$44 -> 0
A6: ='LDC Info'!$E$14 -> Burlington Hydro Inc. | B6: EB-2020-0007 | C6: 2021 | D6: 2020 | E6: 2014 | F6: Provincial Rate Protection | G6: ='App.2-FB Calc of REG Improvemnt'!P17 -> 2020 | H6: ='App.2-FB Calc of REG Improvemnt'!R$44 -> 0
A7: ='LDC Info'!$E$14 -> Burlington Hydro Inc. | B7: EB-2020-0007 | C7: 2021 | D7: 2020 | E7: 2014 | F7: Provincial Rate Protection | G7: ='App.2-FB Calc of REG Improvemnt'!S17 -> 2021 | H7: ='App.2-FB Calc of REG Improvemnt'!U$44 -> 0
A8: ='LDC Info'!$E$14 -> Burlington Hydro Inc. | B8: EB-2020-0007 | C8: 2021 | D8: 2020 | E8: 2014 | F8: Provincial Rate Protection | G8: ='App.2-FB Calc of REG Improvemnt'!V17 -> 2022 | H8: ='App.2-FB Calc of REG Improvemnt'!X$44 -> 0
A9: ='LDC Info'!$E$14 -> Burlington Hydro Inc. | B9: EB-2020-0007 | C9: 2021 | D9: 2020 | E9: 2014 | F9: Provincial Rate Protection | G9: ='App.2-FB Calc of REG Improvemnt'!Y17 -> 2023 | H9: ='App.2-FB Calc of REG Improvemnt'!AA$44 -> 0
A10: ='LDC Info'!$E$14 -> Burlington Hydro Inc. | B10: EB-2020-0007 | C10: 2021 | D10: 2020 | E10: 2014 | F10: Provincial Rate Protection | G10: ='App.2-FB Calc of REG Improvemnt'!AB17 -> 2024 | H10: ='App.2-FB Calc of REG Improvemnt'!AD$44 -> 0
A11: ='LDC Info'!$E$14 -> Burlington Hydro Inc. | B11: EB-2020-0007 | C11: 2021 | D11: 2020 | E11: 2014 | F11: Provincial Rate Protection | G11: ='App.2-FB Calc of REG Improvemnt'!AE17 -> 2025 | H11: ='App.2-FB Calc of REG Improvemnt'!AG$44 -> 0

Sheet Hidden_REG Expansion (hidden)
A1: Utility Name | B1: EB Number | C1: Test Year | D1: Bridge Year | E1: Last Rebasing Year | F1: Calculation of Renewable Generation Connection Direct Benefits/Provincial Amount Renewable Expansion Investments | G1: Year | H1: Amount
A2: ='LDC Info'!$E$14 -> Burlington Hydro Inc. | B2: =EBNUMBER -> EB-2020-0007 | C2: =TestYear -> 2021 | D2: =BridgeYear -> 2020 | E2: =RebaseYear -> 2014 | F2: Provincial Rate Protection | G2: ='App.2-FC Calc of REG Expansion'!D$17 -> 2016 | H2: ='App.2-FC Calc of REG Expansion'!F$44 -> 0
A3: ='LDC Info'!$E$14 -> Burlington Hydro Inc. | B3: EB-2020-0007 | C3: 2021 | D3: 2020 | E3: 2014 | F3: Provincial Rate Protection | G3: ='App.2-FC Calc of REG Expansion'!G$17 -> 2017 | H3: ='App.2-FC Calc of REG Expansion'!I$44 -> 0
A4: ='LDC Info'!$E$14 -> Burlington Hydro Inc. | B4: EB-2020-0007 | C4: 2021 | D4: 2020 | E4: 2014 | F4: Provincial Rate Protection | G4: ='App.2-FC Calc of REG Expansion'!J$17 -> 2018 | H4: ='App.2-FC Calc of REG Expansion'!L$44 -> 0
A5: ='LDC Info'!$E$14 -> Burlington Hydro Inc. | B5: EB-2020-0007 | C5: 2021 | D5: 2020 | E5: 2014 | F5: Provincial Rate Protection | G5: ='App.2-FC Calc of REG Expansion'!M$17 -> 2019 | H5: ='App.2-FC Calc of REG Expansion'!O$44 -> 0
A6: ='LDC Info'!$E$14 -> Burlington Hydro Inc. | B6: EB-2020-0007 | C6: 2021 | D6: 2020 | E6: 2014 | F6: Provincial Rate Protection | G6: ='App.2-FC Calc of REG Expansion'!P$17 -> 2020 | H6: ='App.2-FC Calc of REG Expansion'!R$44 -> 0
A7: ='LDC Info'!$E$14 -> Burlington Hydro Inc. | B7: EB-2020-0007 | C7: 2021 | D7: 2020 | E7: 2014 | F7: Provincial Rate Protection | G7: ='App.2-FC Calc of REG Expansion'!S$17 -> 2021 | H7: ='App.2-FC Calc of REG Expansion'!U$44 -> 0
A8: ='LDC Info'!$E$14 -> Burlington Hydro Inc. | B8: EB-2020-0007 | C8: 2021 | D8: 2020 | E8: 2014 | F8: Provincial Rate Protection | G8: ='App.2-FC Calc of REG Expansion'!V$17 -> 2022 | H8: ='App.2-FC Calc of REG Expansion'!X$44 -> 0
A9: ='LDC Info'!$E$14 -> Burlington Hydro Inc. | B9: EB-2020-0007 | C9: 2021 | D9: 2020 | E9: 2014 | F9: Provincial Rate Protection | G9: ='App.2-FC Calc of REG Expansion'!Y$17 -> 2023 | H9: ='App.2-FC Calc of REG Expansion'!AA$44 -> 0
A10: ='LDC Info'!$E$14 -> Burlington Hydro Inc. | B10: EB-2020-0007 | C10: 2021 | D10: 2020 | E10: 2014 | F10: Provincial Rate Protection | G10: ='App.2-FC Calc of REG Expansion'!AB$17 -> 2024 | H10: ='App.2-FC Calc of REG Expansion'!AD$44 -> 0
A11: ='LDC Info'!$E$14 -> Burlington Hydro Inc. | B11: EB-2020-0007 | C11: 2021 | D11: 2020 | E11: 2014 | F11: Provincial Rate Protection | G11: ='App.2-FC Calc of REG Expansion'!AE$17 -> 2025 | H11: ='App.2-FC Calc of REG Expansion'!AG$44 -> 0

Sheet App.2-FA Proposed REG Invest.
K1: File Number: | L1: 0
K2: Exhibit:
K3: Tab:
A4: TO BE UPDATED AT DRAFT RATE ORDER STAGE | K4: Schedule:
K5: Page:
K7: Date:
A9: Appendix 2-FA
A10: Renewable Generation Connection Investment Summary (past investments or over the future rate setting period)
A12: Enter the details of the Renewable Generation Connection projects as described in the appropriate section of the Filing Requirements.
A13: All costs entered on this page will be transferred to the appropriate cells in the appendices that follow.
A14: For Part A, Renewable Enabling Improvements (REI), these amounts will be transferred to Appendix 2 - FB
A15: For Part B, Expansions, these amounts will be transferred to Appendix 2 - FC
A17: If there are more than five projects proposed to be in-service in a certain year, please amend the tables below and ensure that the formulae for the Total Amounts in any given rate year are updated.
A18: Based on the current methodology and allocation, amounts allocated represent 6% for REI Connection Investments and 17% for Expansion Investments. (EB-2009-0349, 6-10-2010, p. 15, note 9)
A19: Ensure that OM&A costs below are not included in Recoverable OM&A (App. 2-JA)
A20: There are two scenarios described below. Separate sets of spreadsheets (2-FA, 2-FB, 2-FC) should be submited for each scenario as required.
A21: Scenario 1: | B21: Past Investments with No Recovery. The distributor has made investments in the past (during the IRM Years), but has not received approval for these projects and therefore did not receive
B22: revenue from the IESO under Regulation 330/09 and did not receive ratepayer revenue for the direct benefit portion of the investment.
B23: The WCA percentage, debt percentages, interest rates, kWh, tax rates, amortization period, CCA Class and percentage should correspond to the distributor's last Cost of Service approval.
B24: The Direct Benefit portion of the calculated Revenue Requirement for each year should be summed and can be applied for recovery from the distributor's ratepayers through a rate rider.
B25: The Provincial Recovery portion of the calculated Revenue Requirement for each year should be summed and can be applied for recovery from the IESO through a separate order.
A27: Scenario 2: | B27: Investments in the Test Year and Beyond. Distributor plans to make investments in 2021 and/or beyond. These investments should be added to 2-FA in the appropriate year.
B28: The WCA percentage, debt percentages, interest rates, kWh, tax rates, amortization period, CCA Class and percentage should correspond to the distributor's current application.
A30: Part A | H30: Test Year
A31: REI Investments (Direct Benefit at 6%) | C31: =D31-1 -> 2016 | D31: =E31-1 -> 2017 | E31: =F31-1 -> 2018 | F31: =G31-1 -> 2019 | G31: =H31-1 -> 2020 | H31: ='LDC Info'!$E$24 -> 2021 | I31: =H31+1 -> 2022 | J31: =I31+1 -> 2023 | K31: =J31+1 -> 2024 | L31: =K31+1 -> 2025
A32: Project 1
A33: Name: REI Connection Project
A34: Capital Costs | C34: 0 | D34: 0 | E34: 0 | F34: 0 | G34: 0 | H34: 0 | I34: 0 | J34: 0 | K34: 0 | L34: 0
A35: OM&A (Start-Up) | C35: 0 | D35: 0 | E35: 0 | F35: 0 | G35: 0 | H35: 0 | I35: 0 | J35: 0 | K35: 0 | L35: 0
A36: OM&A (Ongoing) | C36: 0 | D36: 0 | E36: 0 | F36: 0 | G36: 0 | H36: 0 | I36: 0 | J36: 0 | K36: 0 | L36: 0
A38: Project 2
A39: Name: REI Connection Project
A40: Capital Costs | C40: 0 | D40: 0 | E40: 0 | F40: 0 | G40: 0 | H40: 0 | I40: 0 | J40: 0 | K40: 0 | L40: 0
A41: OM&A (Start-Up) | C41: 0 | D41: 0 | E41: 0 | F41: 0 | G41: 0 | H41: 0 | I41: 0 | J41: 0 | K41: 0 | L41: 0
A42: OM&A (Ongoing) | C42: 0 | D42: 0 | E42: 0 | F42: 0 | G42: 0 | H42: 0 | I42: 0 | J42: 0 | K42: 0 | L42: 0
A44: Project 3
A45: Name: REI Connection Project
A46: Capital Costs | C46: 0 | D46: 0 | E46: 0 | F46: 0 | G46: 0 | H46: 0 | I46: 0 | J46: 0 | K46: 0 | L46: 0
A47: OM&A (Start-Up) | C47: 0 | D47: 0 | E47: 0 | F47: 0 | G47: 0 | H47: 0 | I47: 0 | J47: 0 | K47: 0 | L47: 0
A48: OM&A (Ongoing) | C48: 0 | D48: 0 | E48: 0 | F48: 0 | G48: 0 | H48: 0 | I48: 0 | J48: 0 | K48: 0 | L48: 0
A50: Project 4
A51: Name: REI Connection Project
A52: Capital Costs | C52: 0 | D52: 0 | E52: 0 | F52: 0 | G52: 0 | H52: 0 | I52: 0 | J52: 0 | K52: 0 | L52: 0
A53: OM&A (Start-Up) | C53: 0 | D53: 0 | E53: 0 | F53: 0 | G53: 0 | H53: 0 | I53: 0 | J53: 0 | K53: 0 | L53: 0
A54: OM&A (Ongoing) | C54: 0 | D54: 0 | E54: 0 | F54: 0 | G54: 0 | H54: 0 | I54: 0 | J54: 0 | K54: 0 | L54: 0
A56: Project 5
A57: Name: REI Connection Project
A58: Capital Costs | C58: 0 | D58: 0 | E58: 0 | F58: 0 | G58: 0 | H58: 0 | I58: 0 | J58: 0 | K58: 0 | L58: 0
A59: OM&A (Start-Up) | C59: 0 | D59: 0 | E59: 0 | F59: 0 | G59: 0 | H59: 0 | I59: 0 | J59: 0 | K59: 0 | L59: 0
A60: OM&A (Ongoing) | C60: 0 | D60: 0 | E60: 0 | F60: 0 | G60: 0 | H60: 0 | I60: 0 | J60: 0 | K60: 0 | L60: 0
A62: Total Capital Costs | C62: =SUM(C58,C52,C46,C40,C34) -> 0 | D62: 0 | E62: 0 | F62: 0 | G62: 0 | H62: 0 | I62: 0 | J62: 0 | K62: 0 | L62: 0
A63: Total OM&A (Start-Up) | C63: 0 | D63: 0 | E63: 0 | F63: 0 | G63: 0 | H63: 0 | I63: 0 | J63: 0 | K63: 0 | L63: 0
A64: Total OM&A (Ongoing) | C64: 0 | D64: 0 | E64: 0 | F64: 0 | G64: 0 | H64: 0 | I64: 0 | J64: 0 | K64: 0 | L64: 0
A67: Part B | H67: Test Year
A68: Expansion Investments (Direct Benefit at 17%) | C68: =D68-1 -> 2016 | D68: =E68-1 -> 2017 | E68: =F68-1 -> 2018 | F68: =G68-1 -> 2019 | G68: =H68-1 -> 2020 | H68: =H31 -> 2021 | I68: =H68+1 -> 2022 | J68: =I68+1 -> 2023 | K68: =J68+1 -> 2024 | L68: =K68+1 -> 2025
A69: Project 1
A70: Name: Expansion Connection Project
A71: Capital Costs | C71: 0 | D71: 0 | E71: 0 | F71: 0 | G71: 0 | H71: 0 | I71: 0 | J71: 0 | K71: 0 | L71: 0
A72: OM&A (Start-Up) | C72: 0 | D72: 0 | E72: 0 | F72: 0 | G72: 0 | H72: 0 | I72: 0 | J72: 0 | K72: 0 | L72: 0
A73: OM&A (Ongoing) | C73: 0 | D73: 0 | E73: 0 | F73: 0 | G73: 0 | H73: 0 | I73: 0 | J73: 0 | K73: 0 | L73: 0
A75: Project 2
A76: Name: Expansion Connection Project
A77: Capital Costs | C77: 0 | D77: 0 | E77: 0 | F77: 0 | G77: 0 | H77: 0 | I77: 0 | J77: 0 | K77: 0 | L77: 0
A78: OM&A (Start-Up) | C78: 0 | D78: 0 | E78: 0 | F78: 0 | G78: 0 | H78: 0 | I78: 0 | J78: 0 | K78: 0 | L78: 0
A79: OM&A (Ongoing) | C79: 0 | D79: 0 | E79: 0 | F79: 0 | G79: 0 | H79: 0 | I79: 0 | J79: 0 | K79: 0 | L79: 0
A81: Project 3
A82: Name: Expansion Connection Project
A83: Capital Costs | C83: 0 | D83: 0 | E83: 0 | F83: 0 | G83: 0 | H83: 0 | I83: 0 | J83: 0 | K83: 0 | L83: 0
A84: OM&A (Start-Up) | C84: 0 | D84: 0 | E84: 0 | F84: 0 | G84: 0 | H84: 0 | I84: 0 | J84: 0 | K84: 0 | L84: 0
A85: OM&A (Ongoing) | C85: 0 | D85: 0 | E85: 0 | F85: 0 | G85: 0 | H85: 0 | I85: 0 | J85: 0 | K85: 0 | L85: 0
A87: Project 4
A88: Name: Expansion Connection Project
A89: Capital Costs | C89: 0 | D89: 0 | E89: 0 | F89: 0 | G89: 0 | H89: 0 | I89: 0 | J89: 0 | K89: 0 | L89: 0
A90: OM&A (Start-Up) | C90: 0 | D90: 0 | E90: 0 | F90: 0 | G90: 0 | H90: 0 | I90: 0 | J90: 0 | K90: 0 | L90: 0
A91: OM&A (Ongoing) | C91: 0 | D91: 0 | E91: 0 | F91: 0 | G91: 0 | H91: 0 | I91: 0 | J91: 0 | K91: 0 | L91: 0
A93: Project 5
A94: Name: Expansion Connection Project
A95: Capital Costs | C95: 0 | D95: 0 | E95: 0 | F95: 0 | G95: 0 | H95: 0 | I95: 0 | J95: 0 | K95: 0 | L95: 0
A96: OM&A (Start-Up) | C96: 0 | D96: 0 | E96: 0 | F96: 0 | G96: 0 | H96: 0 | I96: 0 | J96: 0 | K96: 0 | L96: 0
A97: OM&A (Ongoing) | C97: 0 | D97: 0 | E97: 0 | F97: 0 | G97: 0 | H97: 0 | I97: 0 | J97: 0 | K97: 0 | L97: 0
A99: Total Capital Costs | C99: =SUM(C95,C89,C83,C77,C71) -> 0 | D99: 0 | E99: 0 | F99: 0 | G99: 0 | H99: 0 | I99: 0 | J99: 0 | K99: 0 | L99: 0
A100: Total OM&A (Start-Up) | C100: 0 | D100: 0 | E100: 0 | F100: 0 | G100: 0 | H100: 0 | I100: 0 | J100: 0 | K100: 0 | L100: 0
A101: Total OM&A (Ongoing) | C101: 0 | D101: 0 | E101: 0 | F101: 0 | G101: 0 | H101: 0 | I101: 0 | J101: 0 | K101: 0 | L101: 0

Sheet App.2-FB Calc of REG Improvemnt
R1: File Number: | S1: 0
R2: Exhibit:
R3: Tab:
A4: TO BE UPDATED AT DRAFT RATE ORDER STAGE | R4: Schedule:
R5: Page:
R7: Date:
A9: Appendix 2-FB
A10: Calculation of Renewable Generation Connection Direct Benefits/Provincial Amount: Renewable Enabling Improvement Investments
A12: This table will calculate the distributor/provincial shares of the investments entered in Part A of Appendix 2-FA.
A13: Enter values in green shaded cells: WCA percentage, debt percentages, interest rates, kWh, tax rates, amortization period, CCA Class and percentage.
A14: For historical investments, enter these variables that were approved in your last cost of service test year. For 2021 and beyond, enter variables as in the application.
A15: Rate Riders related to the direct benefit portion of the renewable investments are not calculated for the Test Year as these assets and costs are already in the distributor's rate base/revenue requirement.
S16: Test Year
D17: =G17-1 -> 2016 | G17: =J17-1 -> 2017 | J17: =M17-1 -> 2018 | M17: =P17-1 -> 2019 | P17: =S17-1 -> 2020 | S17: ='LDC Info'!$E$24 -> 2021 | V17: =S17+1 -> 2022 | Y17: =V17+1 -> 2023 | Z17: 2016 | AB17: =Y17+1 -> 2024 | AE17: =AB17+1 -> 2025
E18: Direct Benefit | F18: Provincial | H18: Direct Benefit | I18: Provincial | K18: Direct Benefit | L18: Provincial | N18: Direct Benefit | O18: Provincial | Q18: Direct Benefit | R18: Provincial | T18: Direct Benefit | U18: Provincial | W18: Direct Benefit | X18: Provincial | Z18: Direct Benefit | AA18: Provincial | AC18: Direct Benefit | AD18: Provincial | AF18: Direct Benefit | AG18: Provincial
D19: Total | E19: 0.06 | F19: 0.94 | G19: Total | H19: 0.06 | I19: 0.94 | J19: Total | K19: 0.06 | L19: 0.94 | M19: Total | N19: 0.06 | O19: 0.94 | P19: Total | Q19: 0.06 | R19: 0.94 | S19: Total | T19: 0.06 | U19: 0.94 | V19: Total | W19: 0.06 | X19: 0.94 | Y19: Total | Z19: 0.06 | AA19: 0.94 | AB19: Total | AC19: 0.06 | AD19: 0.94 | AE19: Total | AF19: 0.06 | AG19: 0.94
A20: Net Fixed Assets (average) | D20: =E83 -> 0 | E20: =D20*E19 -> 0 | F20: =D20*F19 -> 0 | G20: =F83 -> 0 | H20: =G20*H19 -> 0 | I20: =G20*I19 -> 0 | J20: =G83 -> 0 | K20: =J20*K19 -> 0 | L20: =J20*L19 -> 0 | M20: =H83 -> 0 | N20: =M20*N19 -> 0 | O20: =M20*O19 -> 0 | P20: =I83 -> 0 | Q20: =P20*Q19 -> 0 | R20: =P20*R19 -> 0 | S20: =J83 -> 0 | T20: =S20*T19 -> 0 | U20: =S20*U19 -> 0 | V20: =K83 -> 0 | W20: =V20*W19 -> 0 | X20: =V20*X19 -> 0 | Y20: =L83 -> 0 | Z20: =Y20*Z19 -> 0 | AA20: =Y20*AA19 -> 0 | AB20: =M83 -> 0 | AC20: =AB20*AC19 -> 0 | AD20: =AB20*AD19 -> 0 | AE20: =N83 -> 0 | AF20: =AE20*AF19 -> 0 | AG20: =AE20*AG19 -> 0
A21: Incremental OM&A (on-going, N/A for Provincial Recovery) | D21: ='App.2-FA Proposed REG Invest.'!C64 -> 0 | E21: =D21 -> 0 | G21: ='App.2-FA Proposed REG Invest.'!D64 -> 0 | H21: =G21 -> 0 | J21: ='App.2-FA Proposed REG Invest.'!E64 -> 0 | K21: =J21 -> 0 | M21: ='App.2-FA Proposed REG Invest.'!F64 -> 0 | N21: =M21 -> 0 | P21: ='App.2-FA Proposed REG Invest.'!G64 -> 0 | Q21: =P21 -> 0 | S21: ='App.2-FA Proposed REG Invest.'!H64 -> 0 | T21: =S21 -> 0 | V21: ='App.2-FA Proposed REG Invest.'!I64 -> 0 | W21: =V21 -> 0 | Y21: ='App.2-FA Proposed REG Invest.'!J64 -> 0 | Z21: =Y21 -> 0 | AB21: ='App.2-FA Proposed REG Invest.'!K64 -> 0 | AC21: =AB21 -> 0 | AE21: ='App.2-FA Proposed REG Invest.'!L64 -> 0 | AF21: =AE21 -> 0
A22: Incremental OM&A (start-up, applicable for Provincial Recovery) | D22: ='App.2-FA Proposed REG Invest.'!C63 -> 0 | E22: =D22*E19 -> 0 | F22: =D22*F19 -> 0 | G22: ='App.2-FA Proposed REG Invest.'!D63 -> 0 | H22: =G22*H19 -> 0 | I22: =G22*I19 -> 0 | J22: ='App.2-FA Proposed REG Invest.'!E63 -> 0 | K22: =J22*K19 -> 0 | L22: =J22*L19 -> 0 | M22: ='App.2-FA Proposed REG Invest.'!F63 -> 0 | N22: =M22*N19 -> 0 | O22: =M22*O19 -> 0 | P22: ='App.2-FA Proposed REG Invest.'!G63 -> 0 | Q22: =P22*Q19 -> 0 | R22: =P22*R19 -> 0 | S22: ='App.2-FA Proposed REG Invest.'!H63 -> 0 | T22: =S22*T19 -> 0 | U22: =S22*U19 -> 0 | V22: ='App.2-FA Proposed REG Invest.'!I63 -> 0 | W22: =V22*W19 -> 0 | X22: =V22*X19 -> 0 | Y22: ='App.2-FA Proposed REG Invest.'!J63 -> 0 | Z22: =Y22*Z19 -> 0 | AA22: =Y22*AA19 -> 0 | AB22: ='App.2-FA Proposed REG Invest.'!K63 -> 0 | AC22: =AB22*AC19 -> 0 | AD22: =AB22*AD19 -> 0 | AE22: ='App.2-FA Proposed REG Invest.'!L63 -> 0 | AF22: =AE22*AF19 -> 0 | AG22: =AE22*AG19 -> 0
A23: Rebasing Year vs. Test Year | B23: ='LDC Info'!E28 -> 2014 | C23: ='LDC Info'!E24 -> 2021
A24: Allowance for Working Capital (enter rate) | E24: =IF(D$17<=$B$23,(E21+E22)*$B$24,(E21+E22)*$C$24) -> 0 | F24: =IF(D$17<=$B$23, F22*$B$24, F22*$C$24) -> 0 | H24: =IF(G$17<=$B$23,(H21+H22)*$B$24,(H21+H22)*$C$24) -> 0 | I24: =IF(G$17<=$B$23, I22*$B$24, I22*$C$24) -> 0 | K24: =IF(J$17<=$B$23,(K21+K22)*$B$24,(K21+K22)*$C$24) -> 0 | L24: =IF(J$17<=$B$23, L22*$B$24, L22*$C$24) -> 0 | N24: =IF(M$17<=$B$23,(N21+N22)*$B$24,(N21+N22)*$C$24) -> 0 | O24: =IF(M$17<=$B$23, O22*$B$24, O22*$C$24) -> 0 | Q24: =IF(P$17<=$B$23,(Q21+Q22)*$B$24,(Q21+Q22)*$C$24) -> 0 | R24: =IF(P$17<=$B$23, R22*$B$24, R22*$C$24) -> 0 | T24: =IF(S$17<=$B$23,(T21+T22)*$B$24,(T21+T22)*$C$24) -> 0 | U24: =IF(S$17<=$B$23, U22*$B$24, U22*$C$24) -> 0 | W24: =IF(V$17<=$B$23,(W21+W22)*$B$24,(W21+W22)*$C$24) -> 0 | X24: =IF(V$17<=$B$23, X22*$B$24, X22*$C$24) -> 0 | Z24: =IF(Y$17<=$B$23,(Z21+Z22)*$B$24,(Z21+Z22)*$C$24) -> 0 | AA24: =IF(Y$17<=$B$23, AA22*$B$24, AA22*$C$24) -> 0 | AC24: =IF(AB$17<=$B$23,(AC21+AC22)*$B$24,(AC21+AC22)*$C$24) -> 0 | AD24: =IF(AB$17<=$B$23, AD22*$B$24, AD22*$C$24) -> 0 | AF24: =IF(AE$17<=$B$23,(AF21+AF22)*$B$24,(AF21+AF22)*$C$24) -> 0 | AG24: =IF(AE$17<=$B$23, AG22*$B$24, AG22*$C$24) -> 0
A25: Rate Base | E25: =SUM(E20+E24) -> 0 | F25: =SUM(F20+F24) -> 0 | H25: =SUM(H20+H24) -> 0 | I25: =SUM(I20+I24) -> 0 | K25: =SUM(K20+K24) -> 0 | L25: =SUM(L20+L24) -> 0 | N25: =SUM(N20+N24) -> 0 | O25: =SUM(O20+O24) -> 0 | Q25: =SUM(Q20+Q24) -> 0 | R25: =SUM(R20+R24) -> 0 | T25: =SUM(T20+T24) -> 0 | U25: =SUM(U20+U24) -> 0 | W25: =SUM(W20+W24) -> 0 | X25: =SUM(X20+X24) -> 0 | Z25: =SUM(Z20+Z24) -> 0 | AA25: =SUM(AA20+AA24) -> 0 | AC25: =SUM(AC20+AC24) -> 0 | AD25: =SUM(AD20+AD24) -> 0 | AF25: =SUM(AF20+AF24) -> 0 | AG25: =SUM(AG20+AG24) -> 0
A27: Rebasing Year vs. Test Year | B27: =B23 -> 2014 | C27: =C23 -> 2021
A28: Deemed ST Debt (enter amount) | E28: =E25*$B$28 -> 0 | F28: =F25*$B$28 -> 0 | H28: =H25*$B$28 -> 0 | I28: =I25*$B$28 -> 0 | K28: =K25*$B$28 -> 0 | L28: =L25*$B$28 -> 0 | N28: =N25*$B$28 -> 0 | O28: =O25*$B$28 -> 0 | Q28: =Q25*$B$28 -> 0 | R28: =R25*$B$28 -> 0 | T28: =T25*$C$28 -> 0 | U28: =U25*$C$28 -> 0 | W28: =W25*$C$28 -> 0 | X28: =X25*$C$28 -> 0 | Z28: =Z25*$C$28 -> 0 | AA28: =AA25*$C$28 -> 0 | AC28: =AC25*$C$28 -> 0 | AD28: =AD25*$C$28 -> 0 | AF28: =AF25*$C$28 -> 0 | AG28: =AG25*$C$28 -> 0
A29: Deemed LT Debt (enter amount) | E29: =E25*$B$29 -> 0 | F29: =F25*$B$29 -> 0 | H29: =H25*$B$29 -> 0 | I29: =I25*$B$29 -> 0 | K29: =K25*$B$29 -> 0 | L29: =L25*$B$29 -> 0 | N29: =N25*$B$29 -> 0 | O29: =O25*$B$29 -> 0 | Q29: =Q25*$B$29 -> 0 | R29: =R25*$B$29 -> 0 | T29: =T25*$C$29 -> 0 | U29: =U25*$C$29 -> 0 | W29: =W25*$C$29 -> 0 | X29: =X25*$C$29 -> 0 | Z29: =Z25*$C$29 -> 0 | AA29: =AA25*$C$29 -> 0 | AC29: =AC25*$C$29 -> 0 | AD29: =AD25*$C$29 -> 0 | AF29: =AF25*$C$29 -> 0 | AG29: =AG25*$C$29 -> 0
A30: Deemed Equity (enter amount) | E30: =E25*$B$30 -> 0 | F30: =F25*$B$30 -> 0 | H30: =H25*$B$30 -> 0 | I30: =I25*$B$30 -> 0 | K30: =K25*$B$30 -> 0 | L30: =L25*$B$30 -> 0 | N30: =N25*$B$30 -> 0 | O30: =O25*$B$30 -> 0 | Q30: =Q25*$B$30 -> 0 | R30: =R25*$B$30 -> 0 | T30: =T25*$C$30 -> 0 | U30: =U25*$C$30 -> 0 | W30: =W25*$C$30 -> 0 | X30: =X25*$C$30 -> 0 | Z30: =Z25*$C$30 -> 0 | AA30: =AA25*$C$30 -> 0 | AC30: =AC25*$C$30 -> 0 | AD30: =AD25*$C$30 -> 0 | AF30: =AF25*$C$30 -> 0 | AG30: =AG25*$C$30 -> 0
A32: ST Interest (enter rate) | E32: =E28*$B32 -> 0 | F32: 0 | H32: 0 | I32: 0 | K32: 0 | L32: 0 | N32: 0 | O32: 0 | Q32: 0 | R32: 0 | T32: =T28*$C32 -> 0 | U32: 0 | W32: =W28*$C32 -> 0 | X32: 0 | Z32: =Z28*$C32 -> 0 | AA32: 0 | AC32: =AC28*$C32 -> 0 | AD32: 0 | AF32: =AF28*$C32 -> 0 | AG32: 0
A33: LT Interest (enter rate) | E33: 0 | F33: 0 | H33: 0 | I33: 0 | K33: 0 | L33: 0 | N33: 0 | O33: 0 | Q33: 0 | R33: 0 | T33: 0 | U33: 0 | W33: 0 | X33: 0 | Z33: 0 | AA33: 0 | AC33: 0 | AD33: 0 | AF33: 0 | AG33: 0
A34: Return on Equity (enter rate) | E34: 0 | F34: 0 | H34: 0 | I34: 0 | K34: 0 | L34: 0 | N34: 0 | O34: 0 | Q34: 0 | R34: 0 | T34: 0 | U34: 0 | W34: 0 | X34: 0 | Z34: 0 | AA34: 0 | AC34: 0 | AD34: 0 | AF34: 0 | AG34: 0
A35: Cost of Capital Total | E35: =SUM(E32:E34) -> 0 | F35: =SUM(F32:F34) -> 0 | H35: =SUM(H32:H34) -> 0 | I35: =SUM(I32:I34) -> 0 | K35: =SUM(K32:K34) -> 0 | L35: =SUM(L32:L34) -> 0 | N35: =SUM(N32:N34) -> 0 | O35: =SUM(O32:O34) -> 0 | Q35: =SUM(Q32:Q34) -> 0 | R35: =SUM(R32:R34) -> 0 | T35: =SUM(T32:T34) -> 0 | U35: =SUM(U32:U34) -> 0 | W35: =SUM(W32:W34) -> 0 | X35: =SUM(X32:X34) -> 0 | Z35: =SUM(Z32:Z34) -> 0 | AA35: =SUM(AA32:AA34) -> 0 | AC35: =SUM(AC32:AC34) -> 0 | AD35: =SUM(AD32:AD34) -> 0 | AF35: =SUM(AF32:AF34) -> 0 | AG35: =SUM(AG32:AG34) -> 0
A37: OM&A | E37: =E21+E22 -> 0 | F37: =F22 -> 0 | H37: =H21+H22 -> 0 | I37: =I22 -> 0 | K37: =K21+K22 -> 0 | L37: =L22 -> 0 | N37: =N21+N22 -> 0 | O37: =O22 -> 0 | Q37: =Q21+Q22 -> 0 | R37: =R22 -> 0 | T37: =T21+T22 -> 0 | U37: =U22 -> 0 | W37: =W21+W22 -> 0 | X37: =X22 -> 0 | Z37: =Z21+Z22 -> 0 | AA37: =AA22 -> 0 | AC37: =AC21+AC22 -> 0 | AD37: =AD22 -> 0 | AF37: =AF21+AF22 -> 0 | AG37: =AG22 -> 0
A38: Amortization | D38: =+E77+E78 -> 0 | E38: =D38*E$19 -> 0 | F38: =D38*F$19 -> 0 | G38: =+F77+F78 -> 0 | H38: =G38*H$19 -> 0 | I38: =G38*I$19 -> 0 | J38: =+G77+G78 -> 0 | K38: =J38*K$19 -> 0 | L38: =J38*L$19 -> 0 | M38: =+H77+H78 -> 0 | N38: =M38*N$19 -> 0 | O38: =M38*O$19 -> 0 | P38: =+I77+I78 -> 0 | Q38: =P38*Q$19 -> 0 | R38: =P38*R$19 -> 0 | S38: =+J77+J78 -> 0 | T38: =S38*T$19 -> 0 | U38: =S38*U$19 -> 0 | V38: =+K77+K78 -> 0 | W38: =V38*W$19 -> 0 | X38: =V38*X$19 -> 0 | Y38: =+L77+L78 -> 0 | Z38: =Y38*Z$19 -> 0 | AA38: =Y38*AA$19 -> 0 | AB38: =+M77+M78 -> 0 | AC38: =AB38*AC$19 -> 0 | AD38: =AB38*AD$19 -> 0 | AE38: =+N77+N78 -> 0 | AF38: =AE38*AF$19 -> 0 | AG38: =AE38*AG$19 -> 0
A39: Grossed-up PILs | E39: =+E66 -> 0 | F39: =+F66 -> 0 | H39: =+H66 -> 0 | I39: =+I66 -> 0 | K39: =+K66 -> 0 | L39: =+L66 -> 0 | N39: =+N66 -> 0 | O39: =+O66 -> 0 | Q39: =+Q66 -> 0 | R39: =+R66 -> 0 | T39: =+T66 -> 0 | U39: =+U66 -> 0 | W39: =+W66 -> 0 | X39: =+X66 -> 0 | Z39: =+Z66 -> 0 | AA39: =+AA66 -> 0 | AC39: =+AC66 -> 0 | AD39: =+AD66 -> 0 | AF39: =+AF66 -> 0 | AG39: =+AG66 -> 0
A41: Revenue Requirement | E41: =SUM(E35:E39) -> 0 | F41: =SUM(F35:F39) -> 0 | H41: =SUM(H35:H39) -> 0 | I41: 0 | K41: =SUM(K35:K39) -> 0 | L41: 0 | N41: =SUM(N35:N39) -> 0 | O41: 0 | Q41: =SUM(Q35:Q39) -> 0 | R41: 0 | T41: =SUM(T35:T39) -> 0 | U41: 0 | W41: =SUM(W35:W39) -> 0 | X41: 0 | Z41: =SUM(Z35:Z39) -> 0 | AA41: 0 | AC41: =SUM(AC35:AC39) -> 0 | AD41: 0 | AF41: =SUM(AF35:AF39) -> 0 | AG41: 0
A44: Provincial Rate Protection | F44: =F41 -> 0 | I44: =I41 -> 0 | L44: =L41 -> 0 | O44: =O41 -> 0 | R44: =R41 -> 0 | U44: =U41 -> 0 | X44: =X41 -> 0 | AA44: =AA41 -> 0 | AD44: =AD41 -> 0 | AG44: =AG41 -> 0
A46: Monthly Amount Paid by IESO | F46: =F44/12 -> 0 | I46: =I44/12 -> 0 | L46: =L44/12 -> 0 | O46: =O44/12 -> 0 | R46: =R44/12 -> 0 | U46: =U44/12 -> 0 | X46: =X44/12 -> 0 | AA46: =AA44/12 -> 0 | AD46: =AD44/12 -> 0 | AG46: =AG44/12 -> 0
A48: Note 1: The distributor should follow the regulatory accounting set out in the Accounting Procedure Handbook Guidance FAQs issued in March 2015. Q10 of the APH FAQs states that: “For approved eligible investments as defined under O.Reg. 330/09 under the OEB Act, a variance account will continue to be used for the purpose of recording variances between the revenue requirement based on actual costs of approved eligible investments and the revenue received from the IESO.” The answer for Q10 provides the accounting guidance for this variance account: “Distributors that have included eligible investments to connect qualifying facilities in their DS plans are to establish the variance Account 1533 Renewable Generation Connection Funding Adder Deferral Account, Sub-account Provincial Rate Protection Payment Variances following OEB approval for investments forecast to enter service beyond the test year for purposes of implementing rate protection pursuant to O.Reg. 330/09. The purpose of this variance account is to track the variance between the distributor’s revenue requirement associated with the portion of the actual capital and/or operating costs that are eligible for rate protection, as incurred by the distributor for eligible renewable enabling and expansion investments, and the rate protection payments collected from the IESO.” The answer further provides the journal entries to record the variances. Distributors should follow the instructions in the answer for recording the journal entries in the variance account 1533.
A50: Note 2: For the Test Year, Costs and Revenues of the Direct Benefit are to be included in the test year applicant Rate Base and Revenues.
A52: PILs Calculation | T52: Test Year
E53: =G17-1 -> 2016 | H53: =G17 -> 2017 | K53: =J17 -> 2018 | N53: =M17 -> 2019 | Q53: =P17 -> 2020 | T53: =S17 -> 2021 | W53: =V17 -> 2022 | Z53: =Y17 -> 2023 | AC53: =AB17 -> 2024 | AF53: =AE17 -> 2025
A54: Income Tax | E54: Direct Benefit | F54: Provincial | H54: Direct Benefit | I54: Provincial | K54: Direct Benefit | L54: Provincial | N54: Direct Benefit | O54: Provincial | Q54: Direct Benefit | R54: Provincial | T54: Direct Benefit | U54: Provincial | W54: Direct Benefit | X54: Provincial | Z54: Direct Benefit | AA54: Provincial | AC54: Direct Benefit | AD54: Provincial | AF54: Direct Benefit | AG54: Provincial
AB55: Total | AE55: Total
A56: Net Income - ROE on Rate Base | E56: =E34 -> 0 | F56: =F34 -> 0 | H56: =H34 -> 0 | I56: =I34 -> 0 | K56: =K34 -> 0 | L56: =L34 -> 0 | N56: =N34 -> 0 | O56: =O34 -> 0 | Q56: =Q34 -> 0 | R56: =R34 -> 0 | T56: =T34 -> 0 | U56: =U34 -> 0 | W56: =W34 -> 0 | X56: =X34 -> 0 | Z56: =Z34 -> 0 | AA56: =AA34 -> 0 | AC56: =AC34 -> 0 | AD56: =AD34 -> 0 | AF56: =AF34 -> 0 | AG56: =AG34 -> 0
A57: Amortization (6% DB and 94% P) | E57: =E38 -> 0 | F57: =F38 -> 0 | H57: =H38 -> 0 | I57: =I38 -> 0 | K57: =K38 -> 0 | L57: =L38 -> 0 | N57: =N38 -> 0 | O57: =O38 -> 0 | Q57: =Q38 -> 0 | R57: =R38 -> 0 | T57: =T38 -> 0 | U57: =U38 -> 0 | W57: =W38 -> 0 | X57: =X38 -> 0 | Z57: =Z38 -> 0 | AA57: =AA38 -> 0 | AC57: =AC38 -> 0 | AD57: =AD38 -> 0 | AF57: =AF38 -> 0 | AG57: =AG38 -> 0
A58: CCA (6% DB and 94% P) | E58: =-E95*$E$19 -> 0 | F58: =-E95*$F$19 -> 0 | H58: =-F95*$E$19 -> 0 | I58: =-F95*$F$19 -> 0 | K58: =-G95*$E$19 -> 0 | L58: =-G95*$F$19 -> 0 | N58: =-H95*$E$19 -> 0 | O58: =-H95*$F$19 -> 0 | Q58: =-I95*$E$19 -> 0 | R58: =-I95*$F$19 -> 0 | T58: =-J95*$E$19 -> 0 | U58: =-J95*$F$19 -> 0 | W58: =-K95*$E$19 -> 0 | X58: =-K95*$F$19 -> 0 | Z58: =-L95*$E$19 -> 0 | AA58: =-L95*$F$19 -> 0 | AC58: =-M95*$E$19 -> 0 | AD58: =-M95*$F$19 -> 0 | AF58: =-N95*$E$19 -> 0 | AG58: =-N95*$F$19 -> 0
A59: Taxable income | E59: =SUM(E56:E58) -> 0 | F59: =SUM(F56:F58) -> 0 | H59: =SUM(H56:H58) -> 0 | I59: 0 | K59: =SUM(K56:K58) -> 0 | L59: 0 | N59: =SUM(N56:N58) -> 0 | O59: 0 | Q59: =SUM(Q56:Q58) -> 0 | R59: 0 | T59: =SUM(T56:T58) -> 0 | U59: 0 | W59: =SUM(W56:W58) -> 0 | X59: 0 | Z59: =SUM(Z56:Z58) -> 0 | AA59: =SUM(AA56:AA58) -> 0 | AC59: =SUM(AC56:AC58) -> 0 | AD59: =SUM(AD56:AD58) -> 0 | AF59: =SUM(AF56:AF58) -> 0 | AG59: =SUM(AG56:AG58) -> 0
A61: Tax Rate (to be entered)
A63: Income Taxes Payable | E63: =E59*E61 -> 0 | F63: =F59*F61 -> 0 | H63: =H59*H61 -> 0 | I63: =I59*I61 -> 0 | K63: =K59*K61 -> 0 | L63: =L59*L61 -> 0 | N63: =N59*N61 -> 0 | O63: =O59*O61 -> 0 | Q63: =Q59*Q61 -> 0 | R63: =R59*R61 -> 0 | T63: =T59*T61 -> 0 | U63: =U59*U61 -> 0 | W63: =W59*W61 -> 0 | X63: =X59*X61 -> 0 | Z63: =Z59*Z61 -> 0 | AA63: =AA59*AA61 -> 0 | AC63: =AC59*AC61 -> 0 | AD63: =AD59*AD61 -> 0 | AF63: =AF59*AF61 -> 0 | AG63: =AG59*AG61 -> 0
A64: Gross Up
A65: Income Taxes Payable | E65: =E63/(1-E61) -> 0 | F65: =F63/(1-F61) -> 0 | H65: =H63/(1-H61) -> 0 | I65: =I63/(1-I61) -> 0 | K65: =K63/(1-K61) -> 0 | L65: =L63/(1-L61) -> 0 | N65: =N63/(1-N61) -> 0 | O65: =O63/(1-O61) -> 0 | Q65: =Q63/(1-Q61) -> 0 | R65: =R63/(1-R61) -> 0 | T65: =T63/(1-T61) -> 0 | U65: =U63/(1-U61) -> 0 | W65: =W63/(1-W61) -> 0 | X65: =X63/(1-X61) -> 0 | Z65: =Z63/(1-Z61) -> 0 | AA65: =AA63/(1-AA61) -> 0 | AC65: =AC63/(1-AC61) -> 0 | AD65: =AD63/(1-AD61) -> 0 | AF65: =AF63/(1-AF61) -> 0 | AG65: =AG63/(1-AG61) -> 0
A66: Grossed Up PILs | E66: =+E65 -> 0 | F66: =+F65 -> 0 | H66: =+H65 -> 0 | I66: =+I65 -> 0 | K66: =+K65 -> 0 | L66: 0 | N66: =+N65 -> 0 | O66: 0 | Q66: =+Q65 -> 0 | R66: 0 | T66: =+T65 -> 0 | U66: 0 | W66: =+W65 -> 0 | X66: 0 | Z66: =+Z65 -> 0 | AA66: 0 | AC66: =+AC65 -> 0 | AD66: 0 | AF66: =+AF65 -> 0 | AG66: 0
J68: Test Year
E69: =F69-1 -> 2016 | F69: =G69-1 -> 2017 | G69: =H69-1 -> 2018 | H69: =I69-1 -> 2019 | I69: =J69-1 -> 2020 | J69: ='LDC Info'!E24 -> 2021 | K69: =J69+1 -> 2022 | L69: =K69+1 -> 2023 | M69: =L69+1 -> 2024 | N69: =M69+1 -> 2025
A70: Net Fixed Assets
A71: Enter applicable amortization in years: | B71: 40
A72: Opening Gross Fixed Assets | F72: =E74 -> 0 | G72: 0 | H72: 0 | I72: 0 | J72: 0 | K72: 0 | L72: 0 | M72: 0 | N72: 0
A73: Capital Additions | E73: ='App.2-FA Proposed REG Invest.'!C62 -> 0 | F73: ='App.2-FA Proposed REG Invest.'!D62 -> 0 | G73: ='App.2-FA Proposed REG Invest.'!E62 -> 0 | H73: ='App.2-FA Proposed REG Invest.'!F62 -> 0 | I73: ='App.2-FA Proposed REG Invest.'!G62 -> 0 | J73: ='App.2-FA Proposed REG Invest.'!H62 -> 0 | K73: ='App.2-FA Proposed REG Invest.'!I62 -> 0 | L73: ='App.2-FA Proposed REG Invest.'!J62 -> 0 | M73: ='App.2-FA Proposed REG Invest.'!K62 -> 0 | N73: ='App.2-FA Proposed REG Invest.'!L62 -> 0
A74: Closing Gross Fixed Assets | E74: =SUM(E72:E73) -> 0 | F74: 0 | G74: 0 | H74: 0 | I74: 0 | J74: 0 | K74: 0 | L74: 0 | M74: 0 | N74: 0
A76: Opening Accumulated Amortization | F76: =+E79 -> 0 | G76: =+F79 -> 0 | H76: 0 | I76: 0 | J76: 0 | K76: 0 | L76: 0 | M76: 0 | N76: 0
A77: Current Year Amortization (before additions) | E77: =IF(ISERROR(E72/$B$71), 0, E72/$B$71) -> 0 | F77: =IF(ISERROR(F72/$B$71), 0, F72/$B$71) -> 0 | G77: 0 | H77: 0 | I77: 0 | J77: 0 | K77: 0 | L77: 0 | M77: 0 | N77: 0
A78: Capital Additions Amortization (half year) | E78: =E73/$B$71/2 -> 0 | F78: =F73/$B$71/2 -> 0 | G78: 0 | H78: 0 | I78: 0 | J78: 0 | K78: 0 | L78: 0 | M78: 0 | N78: 0
A79: Closing Accumulated Amortization | E79: =SUM(E76+E77+E78) -> 0 | F79: 0 | G79: 0 | H79: 0 | I79: 0 | J79: 0 | K79: 0 | L79: 0 | M79: 0 | N79: 0
A81: Opening Net Fixed Assets | E81: =E72-E76 -> 0 | F81: 0 | G81: 0 | H81: 0 | I81: 0 | J81: 0 | K81: 0 | L81: 0 | M81: 0 | N81: 0
A82: Closing Net Fixed Assets | E82: =E74-E79 -> 0 | F82: 0 | G82: 0 | H82: 0 | I82: 0 | J82: 0 | K82: 0 | L82: 0 | M82: 0 | N82: 0
A83: Average Net Fixed Assets | E83: =SUM(E81:E82)/2 -> 0 | F83: 0 | G83: 0 | H83: 0 | I83: 0 | J83: 0 | K83: 0 | L83: 0 | M83: 0 | N83: 0
A85: UCC for PILs Calculation | J85: Test Year
E86: =E69 -> 2016 | F86: =F69 -> 2017 | G86: =G69 -> 2018 | H86: 2019 | I86: 2020 | J86: 2021 | K86: 2022 | L86: 2023 | M86: 2024 | N86: 2025
A88: Opening UCC | E88: =E72 -> 0 | F88: =E96 -> 0 | G88: 0 | H88: 0 | I88: 0 | J88: 0 | K88: 0 | L88: 0 | M88: 0 | N88: 0
A89: Capital Additions | E89: =E73 -> 0 | F89: 0 | G89: 0 | H89: 0 | I89: 0 | J89: 0 | K89: 0 | L89: 0 | M89: 0 | N89: 0
A90: UCC Before Half Year Rule | E90: =SUM(E88:E89) -> 0 | F90: 0 | G90: 0 | H90: 0 | I90: 0 | J90: 0 | K90: 0 | L90: 0 | M90: 0 | N90: 0
A91: Capital Additions (half year) | E91: =E89/2 -> 0 | F91: 0 | G91: 0 | H91: 0 | I91: 0 | J91: 0 | K91: 0 | L91: 0 | M91: 0 | N91: 0
A92: Reduced UCC | E92: =E90-E91 -> 0 | F92: 0 | G92: 0 | H92: 0 | I92: 0 | J92: 0 | K92: 0 | L92: 0 | M92: 0 | N92: 0
A93: CCA Rate Class (to be entered)
A94: CCA Rate (to be entered)
A95: CCA | E95: =E92*$B$94 -> 0 | F95: =F92*$B$94 -> 0 | G95: 0 | H95: 0 | I95: 0 | J95: 0 | K95: 0 | L95: 0 | M95: 0 | N95: 0
A96: Closing UCC | E96: =E90-E95 -> 0 | F96: 0 | G96: 0 | H96: 0 | I96: 0 | J96: 0 | K96: 0 | L96: 0 | M96: 0 | N96: 0

Sheet App.2-FC Calc of REG Expansion
R1: File Number: | S1: 0
R2: Exhibit:
R3: Tab:
A4: TO BE UPDATED AT DRAFT RATE ORDER STAGE | R4: Schedule:
R5: Page:
R7: Date:
A9: Appendix 2-FC
A10: Calculation of Renewable Generation Connection Direct Benefits/Provincial Amount: Renewable Expansion Investments
A12: This table will calculate the distributor/provincial shares of the investments entered in Part B of Appendix 2-FA.
A13: Enter values in green shaded cells: WCA percentage, debt percentages, interest rates, kWh, tax rates, amortization period, CCA Class and percentage.
A14: For historical investments, enter these variables that were approved in your last cost of service test year. For 2021 and beyond, enter variables as in the application.
A15: Rate Riders related to the direct benefit portion of the renewable investments are not calculated for the Test Year as these assets and costs are already in the distributor's rate base/revenue requirement.
S16: Test Year
D17: =G17-1 -> 2016 | G17: =J17-1 -> 2017 | J17: =M17-1 -> 2018 | M17: =P17-1 -> 2019 | P17: =S17-1 -> 2020 | S17: ='LDC Info'!$E$24 -> 2021 | V17: =S17+1 -> 2022 | Y17: =V17+1 -> 2023 | Z17: 2016 | AB17: =Y17+1 -> 2024 | AE17: =AB17+1 -> 2025
E18: Direct Benefit | F18: Provincial | H18: Direct Benefit | I18: Provincial | K18: Direct Benefit | L18: Provincial | N18: Direct Benefit | O18: Provincial | Q18: Direct Benefit | R18: Provincial | T18: Direct Benefit | U18: Provincial | W18: Direct Benefit | X18: Provincial | Z18: Direct Benefit | AA18: Provincial | AC18: Direct Benefit | AD18: Provincial | AF18: Direct Benefit | AG18: Provincial
D19: Total | E19: 0.17 | F19: 0.83 | G19: Total | H19: 0.17 | I19: 0.83 | J19: Total | K19: 0.17 | L19: 0.83 | M19: Total | N19: 0.17 | O19: 0.83 | P19: Total | Q19: 0.17 | R19: 0.83 | S19: Total | T19: 0.17 | U19: 0.83 | V19: Total | W19: 0.17 | X19: 0.83 | Y19: Total | Z19: 0.17 | AA19: 0.83 | AB19: Total | AC19: 0.17 | AD19: 0.83 | AE19: Total | AF19: 0.17 | AG19: 0.83
A20: Net Fixed Assets (average) | D20: =E83 -> 0 | E20: =D20*E19 -> 0 | F20: =D20*F19 -> 0 | G20: =F83 -> 0 | H20: =G20*H19 -> 0 | I20: =G20*I19 -> 0 | J20: =G83 -> 0 | K20: =J20*K19 -> 0 | L20: =J20*L19 -> 0 | M20: =H83 -> 0 | N20: =M20*N19 -> 0 | O20: =M20*O19 -> 0 | P20: =I83 -> 0 | Q20: =P20*Q19 -> 0 | R20: =P20*R19 -> 0 | S20: =J83 -> 0 | T20: =S20*T19 -> 0 | U20: =S20*U19 -> 0 | V20: =K83 -> 0 | W20: =V20*W19 -> 0 | X20: =V20*X19 -> 0 | Y20: =L83 -> 0 | Z20: =Y20*Z19 -> 0 | AA20: =Y20*AA19 -> 0 | AB20: =M83 -> 0 | AC20: =AB20*AC19 -> 0 | AD20: =AB20*AD19 -> 0 | AE20: =N83 -> 0 | AF20: =AE20*AF19 -> 0 | AG20: =AE20*AG19 -> 0
A21: Incremental OM&A (on-going, N/A for Provincial Recovery) | D21: ='App.2-FA Proposed REG Invest.'!C101 -> 0 | E21: =D21 -> 0 | G21: ='App.2-FA Proposed REG Invest.'!D101 -> 0 | H21: =G21 -> 0 | J21: ='App.2-FA Proposed REG Invest.'!E101 -> 0 | K21: =J21 -> 0 | M21: ='App.2-FA Proposed REG Invest.'!F101 -> 0 | N21: =M21 -> 0 | P21: ='App.2-FA Proposed REG Invest.'!G101 -> 0 | Q21: =P21 -> 0 | S21: ='App.2-FA Proposed REG Invest.'!H101 -> 0 | T21: =S21 -> 0 | V21: ='App.2-FA Proposed REG Invest.'!I101 -> 0 | W21: =V21 -> 0 | Y21: ='App.2-FA Proposed REG Invest.'!J101 -> 0 | Z21: =Y21 -> 0 | AB21: ='App.2-FA Proposed REG Invest.'!K101 -> 0 | AC21: =AB21 -> 0 | AE21: ='App.2-FA Proposed REG Invest.'!L101 -> 0 | AF21: =AE21 -> 0
A22: Incremental OM&A (start-up, applicable for Provincial Recovery) | D22: ='App.2-FA Proposed REG Invest.'!C100 -> 0 | E22: =D22*E19 -> 0 | F22: =D22*F19 -> 0 | G22: ='App.2-FA Proposed REG Invest.'!D100 -> 0 | H22: =G22*H19 -> 0 | I22: =G22*I19 -> 0 | J22: ='App.2-FA Proposed REG Invest.'!E100 -> 0 | K22: =J22*K19 -> 0 | L22: =J22*L19 -> 0 | M22: ='App.2-FA Proposed REG Invest.'!F100 -> 0 | N22: =M22*N19 -> 0 | O22: =M22*O19 -> 0 | P22: ='App.2-FA Proposed REG Invest.'!G100 -> 0 | Q22: =P22*Q19 -> 0 | R22: =P22*R19 -> 0 | S22: ='App.2-FA Proposed REG Invest.'!H100 -> 0 | T22: =S22*T19 -> 0 | U22: =S22*U19 -> 0 | V22: ='App.2-FA Proposed REG Invest.'!I100 -> 0 | W22: =V22*W19 -> 0 | X22: =V22*X19 -> 0 | Y22: ='App.2-FA Proposed REG Invest.'!J100 -> 0 | Z22: =Y22*Z19 -> 0 | AA22: =Y22*AA19 -> 0 | AB22: ='App.2-FA Proposed REG Invest.'!K100 -> 0 | AC22: =AB22*AC19 -> 0 | AD22: =AB22*AD19 -> 0 | AE22: ='App.2-FA Proposed REG Invest.'!L100 -> 0 | AF22: =AE22*AF19 -> 0 | AG22: =AE22*AG19 -> 0
A23: Rebasing Year vs. Test Year | B23: ='LDC Info'!E28 -> 2014 | C23: ='LDC Info'!E24 -> 2021
A24: Allowance for Working Capital (enter rate) | E24: =IF(D$17<=$B$23,(E21+E22)*$B$24,(E21+E22)*$C$24) -> 0 | F24: =IF(D$17<=$B$23, F22*$B$24, F22*$C$24) -> 0 | H24: =IF(G$17<=$B$23,(H21+H22)*$B$24,(H21+H22)*$C$24) -> 0 | I24: =IF(G$17<=$B$23, I22*$B$24, I22*$C$24) -> 0 | K24: =IF(J$17<=$B$23,(K21+K22)*$B$24,(K21+K22)*$C$24) -> 0 | L24: =IF(J$17<=$B$23, L22*$B$24, L22*$C$24) -> 0 | N24: =IF(M$17<=$B$23,(N21+N22)*$B$24,(N21+N22)*$C$24) -> 0 | O24: =IF(M$17<=$B$23, O22*$B$24, O22*$C$24) -> 0 | Q24: =IF(P$17<=$B$23,(Q21+Q22)*$B$24,(Q21+Q22)*$C$24) -> 0 | R24: =IF(P$17<=$B$23, R22*$B$24, R22*$C$24) -> 0 | T24: =IF(S$17<=$B$23,(T21+T22)*$B$24,(T21+T22)*$C$24) -> 0 | U24: =IF(S$17<=$B$23, U22*$B$24, U22*$C$24) -> 0 | W24: =IF(V$17<=$B$23,(W21+W22)*$B$24,(W21+W22)*$C$24) -> 0 | X24: =IF(V$17<=$B$23, X22*$B$24, X22*$C$24) -> 0 | Z24: =IF(Y$17<=$B$23,(Z21+Z22)*$B$24,(Z21+Z22)*$C$24) -> 0 | AA24: =IF(Y$17<=$B$23, AA22*$B$24, AA22*$C$24) -> 0 | AC24: =IF(AB$17<=$B$23,(AC21+AC22)*$B$24,(AC21+AC22)*$C$24) -> 0 | AD24: =IF(AB$17<=$B$23, AD22*$B$24, AD22*$C$24) -> 0 | AF24: =IF(AE$17<=$B$23,(AF21+AF22)*$B$24,(AF21+AF22)*$C$24) -> 0 | AG24: =IF(AE$17<=$B$23, AG22*$B$24, AG22*$C$24) -> 0
A25: Rate Base | E25: =SUM(E20+E24) -> 0 | F25: =SUM(F20+F24) -> 0 | H25: =SUM(H20+H24) -> 0 | I25: =SUM(I20+I24) -> 0 | K25: =SUM(K20+K24) -> 0 | L25: =SUM(L20+L24) -> 0 | N25: =SUM(N20+N24) -> 0 | O25: =SUM(O20+O24) -> 0 | Q25: =SUM(Q20+Q24) -> 0 | R25: =SUM(R20+R24) -> 0 | T25: =SUM(T20+T24) -> 0 | U25: =SUM(U20+U24) -> 0 | W25: =SUM(W20+W24) -> 0 | X25: =SUM(X20+X24) -> 0 | Z25: =SUM(Z20+Z24) -> 0 | AA25: =SUM(AA20+AA24) -> 0 | AC25: =SUM(AC20+AC24) -> 0 | AD25: =SUM(AD20+AD24) -> 0 | AF25: =SUM(AF20+AF24) -> 0 | AG25: =SUM(AG20+AG24) -> 0
B27: =B23 -> 2014 | C27: =C23 -> 2021
A28: Deemed ST Debt (enter amount) | E28: =E25*$B$28 -> 0 | F28: =F25*$B$28 -> 0 | H28: =H25*$B$28 -> 0 | I28: =I25*$B$28 -> 0 | K28: =K25*$B$28 -> 0 | L28: =L25*$B$28 -> 0 | N28: =N25*$B$28 -> 0 | O28: =O25*$B$28 -> 0 | Q28: =Q25*$B$28 -> 0 | R28: =R25*$B$28 -> 0 | T28: =T25*$C$28 -> 0 | U28: =U25*$C$28 -> 0 | W28: =W25*$C$28 -> 0 | X28: =X25*$C$28 -> 0 | Z28: =Z25*$C$28 -> 0 | AA28: =AA25*$C$28 -> 0 | AC28: =AC25*$C$28 -> 0 | AD28: =AD25*$C$28 -> 0 | AF28: =AF25*$C$28 -> 0 | AG28: =AG25*$C$28 -> 0
A29: Deemed LT Debt (enter amount) | E29: =E25*$B$29 -> 0 | F29: =F25*$B$29 -> 0 | H29: =H25*$B$29 -> 0 | I29: =I25*$B$29 -> 0 | K29: =K25*$B$29 -> 0 | L29: =L25*$B$29 -> 0 | N29: =N25*$B$29 -> 0 | O29: =O25*$B$29 -> 0 | Q29: =Q25*$B$29 -> 0 | R29: =R25*$B$29 -> 0 | T29: =T25*$C$29 -> 0 | U29: =U25*$C$29 -> 0 | W29: =W25*$C$29 -> 0 | X29: =X25*$C$29 -> 0 | Z29: =Z25*$C$29 -> 0 | AA29: =AA25*$C$29 -> 0 | AC29: =AC25*$C$29 -> 0 | AD29: =AD25*$C$29 -> 0 | AF29: =AF25*$C$29 -> 0 | AG29: =AG25*$C$29 -> 0
A30: Deemed Equity (enter amount) | E30: =E25*$B$30 -> 0 | F30: =F25*$B$30 -> 0 | H30: =H25*$B$30 -> 0 | I30: =I25*$B$30 -> 0 | K30: =K25*$B$30 -> 0 | L30: =L25*$B$30 -> 0 | N30: =N25*$B$30 -> 0 | O30: =O25*$B$30 -> 0 | Q30: =Q25*$B$30 -> 0 | R30: =R25*$B$30 -> 0 | T30: =T25*$C$30 -> 0 | U30: =U25*$C$30 -> 0 | W30: =W25*$C$30 -> 0 | X30: =X25*$C$30 -> 0 | Z30: =Z25*$C$30 -> 0 | AA30: =AA25*$C$30 -> 0 | AC30: =AC25*$C$30 -> 0 | AD30: =AD25*$C$30 -> 0 | AF30: =AF25*$C$30 -> 0 | AG30: =AG25*$C$30 -> 0
A32: ST Interest (enter rate) | E32: =E28*$B32 -> 0 | F32: 0 | H32: 0 | I32: 0 | K32: 0 | L32: 0 | N32: 0 | O32: 0 | Q32: 0 | R32: 0 | T32: =T28*$C32 -> 0 | U32: 0 | W32: =W28*$C32 -> 0 | X32: 0 | Z32: =Z28*$C32 -> 0 | AA32: 0 | AC32: =AC28*$C32 -> 0 | AD32: 0 | AF32: =AF28*$C32 -> 0 | AG32: 0
A33: LT Interest (enter rate) | E33: 0 | F33: 0 | H33: 0 | I33: 0 | K33: 0 | L33: 0 | N33: 0 | O33: 0 | Q33: 0 | R33: 0 | T33: 0 | U33: 0 | W33: 0 | X33: 0 | Z33: 0 | AA33: 0 | AC33: 0 | AD33: 0 | AF33: 0 | AG33: 0
A34: Return on Equity (enter rate) | E34: 0 | F34: 0 | H34: 0 | I34: 0 | K34: 0 | L34: 0 | N34: 0 | O34: 0 | Q34: 0 | R34: 0 | T34: 0 | U34: 0 | W34: 0 | X34: 0 | Z34: 0 | AA34: 0 | AC34: 0 | AD34: 0 | AF34: 0 | AG34: 0
A35: Cost of Capital Total | E35: =SUM(E32:E34) -> 0 | F35: =SUM(F32:F34) -> 0 | H35: =SUM(H32:H34) -> 0 | I35: =SUM(I32:I34) -> 0 | K35: =SUM(K32:K34) -> 0 | L35: =SUM(L32:L34) -> 0 | N35: =SUM(N32:N34) -> 0 | O35: =SUM(O32:O34) -> 0 | Q35: =SUM(Q32:Q34) -> 0 | R35: =SUM(R32:R34) -> 0 | T35: =SUM(T32:T34) -> 0 | U35: =SUM(U32:U34) -> 0 | W35: =SUM(W32:W34) -> 0 | X35: =SUM(X32:X34) -> 0 | Z35: =SUM(Z32:Z34) -> 0 | AA35: =SUM(AA32:AA34) -> 0 | AC35: =SUM(AC32:AC34) -> 0 | AD35: =SUM(AD32:AD34) -> 0 | AF35: =SUM(AF32:AF34) -> 0 | AG35: =SUM(AG32:AG34) -> 0
A37: OM&A | E37: =E21+E22 -> 0 | F37: =F22 -> 0 | H37: =H21+H22 -> 0 | I37: =I22 -> 0 | K37: =K21+K22 -> 0 | L37: =L22 -> 0 | N37: =N21+N22 -> 0 | O37: =O22 -> 0 | Q37: =Q21+Q22 -> 0 | R37: =R22 -> 0 | T37: =T21+T22 -> 0 | U37: =U22 -> 0 | W37: =W21+W22 -> 0 | X37: =X22 -> 0 | Z37: =Z21+Z22 -> 0 | AA37: =AA22 -> 0 | AC37: =AC21+AC22 -> 0 | AD37: =AD22 -> 0 | AF37: =AF21+AF22 -> 0 | AG37: =AG22 -> 0
A38: Amortization | D38: =+E77+E78 -> 0 | E38: =D38*E$19 -> 0 | F38: =D38*F$19 -> 0 | G38: =+F77+F78 -> 0 | H38: =G38*H$19 -> 0 | I38: =G38*I$19 -> 0 | J38: =+G77+G78 -> 0 | K38: =J38*K$19 -> 0 | L38: =J38*L$19 -> 0 | M38: =+H77+H78 -> 0 | N38: =M38*N$19 -> 0 | O38: =M38*O$19 -> 0 | P38: =+I77+I78 -> 0 | Q38: =P38*Q$19 -> 0 | R38: =P38*R$19 -> 0 | S38: =+J77+J78 -> 0 | T38: =S38*T$19 -> 0 | U38: =S38*U$19 -> 0 | V38: =+K77+K78 -> 0 | W38: =V38*W$19 -> 0 | X38: =V38*X$19 -> 0 | Y38: =+L77+L78 -> 0 | Z38: =Y38*Z$19 -> 0 | AA38: =Y38*AA$19 -> 0 | AB38: =+M77+M78 -> 0 | AC38: =AB38*AC$19 -> 0 | AD38: =AB38*AD$19 -> 0 | AE38: =+N77+N78 -> 0 | AF38: =AE38*AF$19 -> 0 | AG38: =AE38*AG$19 -> 0
A39: Grossed-up PILs | E39: =+E66 -> 0 | F39: =+F66 -> 0 | H39: =+H66 -> 0 | I39: =+I66 -> 0 | K39: =+K66 -> 0 | L39: =+L66 -> 0 | N39: =+N66 -> 0 | O39: =+O66 -> 0 | Q39: =+Q66 -> 0 | R39: =+R66 -> 0 | T39: =+T66 -> 0 | U39: =+U66 -> 0 | W39: =+W66 -> 0 | X39: =+X66 -> 0 | Z39: =+Z66 -> 0 | AA39: =+AA66 -> 0 | AC39: =+AC66 -> 0 | AD39: =+AD66 -> 0 | AF39: =+AF66 -> 0 | AG39: =+AG66 -> 0
A41: Revenue Requirement | E41: =SUM(E35:E39) -> 0 | F41: =SUM(F35:F39) -> 0 | H41: =SUM(H35:H39) -> 0 | I41: 0 | K41: =SUM(K35:K39) -> 0 | L41: 0 | N41: =SUM(N35:N39) -> 0 | O41: 0 | Q41: =SUM(Q35:Q39) -> 0 | R41: 0 | T41: =SUM(T35:T39) -> 0 | U41: 0 | W41: =SUM(W35:W39) -> 0 | X41: 0 | Z41: =SUM(Z35:Z39) -> 0 | AA41: 0 | AC41: =SUM(AC35:AC39) -> 0 | AD41: 0 | AF41: =SUM(AF35:AF39) -> 0 | AG41: 0
A44: Provincial Rate Protection | F44: =F41 -> 0 | I44: =I41 -> 0 | L44: =L41 -> 0 | O44: =O41 -> 0 | R44: =R41 -> 0 | U44: =U41 -> 0 | X44: =X41 -> 0 | AA44: =AA41 -> 0 | AD44: =AD41 -> 0 | AG44: =AG41 -> 0
A46: Monthly Amount Paid by IESO | F46: =F44/12 -> 0 | I46: =I44/12 -> 0 | L46: =L44/12 -> 0 | O46: =O44/12 -> 0 | R46: =R44/12 -> 0 | U46: =U44/12 -> 0 | X46: =X44/12 -> 0 | AA46: =AA44/12 -> 0 | AD46: =AD44/12 -> 0 | AG46: =AG44/12 -> 0
A48: Note 1: The distributor should follow the regulatory accounting set out in the Accounting Procedure Handbook Guidance FAQs issued in March 2015. Q10 of the APH FAQs states that: “For approved eligible investments as defined under O.Reg. 330/09 under the OEB Act, a variance account will continue to be used for the purpose of recording variances between the revenue requirement based on actual costs of approved eligible investments and the revenue received from the IESO.” The answer for Q10 provides the accounting guidance for this variance account: “Distributors that have included eligible investments to connect qualifying facilities in their DS plans are to establish the variance Account 1533 Renewable Generation Connection Funding Adder Deferral Account, Sub-account Provincial Rate Protection Payment Variances following OEB approval for investments forecast to enter service beyond the test year for purposes of implementing rate protection pursuant to O.Reg. 330/09. The purpose of this variance account is to track the variance between the distributor’s revenue requirement associated with the portion of the actual capital and/or operating costs that are eligible for rate protection, as incurred by the distributor for eligible renewable enabling and expansion investments, and the rate protection payments collected from the IESO.” The answer further provides the journal entries to record the variances. Distributors should follow the instructions in the answer for recording the journal entries in the variance account 1533.
A50: Note 2: For the Test Year, Costs and Revenues of the Direct Benefit are to be included in the test year applicant Rate Base and Revenues.
A52: PILs Calculation | T52: Test Year
E53: =G17-1 -> 2016 | H53: =G17 -> 2017 | K53: =J17 -> 2018 | N53: =M17 -> 2019 | Q53: =P17 -> 2020 | T53: =S17 -> 2021 | W53: =V17 -> 2022 | Z53: =Y17 -> 2023 | AC53: =AB17 -> 2024 | AF53: =AE17 -> 2025
A54: Income Tax | E54: Direct Benefit | F54: Provincial | H54: Direct Benefit | I54: Provincial | K54: Direct Benefit | L54: Provincial | N54: Direct Benefit | O54: Provincial | Q54: Direct Benefit | R54: Provincial | T54: Direct Benefit | U54: Provincial | W54: Direct Benefit | X54: Provincial | Z54: Direct Benefit | AA54: Provincial | AC54: Direct Benefit | AD54: Provincial | AF54: Direct Benefit | AG54: Provincial
AB55: Total | AE55: Total
A56: Net Income - ROE on Rate Base | E56: =E34 -> 0 | F56: =F34 -> 0 | H56: =H34 -> 0 | I56: =I34 -> 0 | K56: =K34 -> 0 | L56: =L34 -> 0 | N56: =N34 -> 0 | O56: =O34 -> 0 | Q56: =Q34 -> 0 | R56: =R34 -> 0 | T56: =T34 -> 0 | U56: =U34 -> 0 | W56: =W34 -> 0 | X56: =X34 -> 0 | Z56: =Z34 -> 0 | AA56: =AA34 -> 0 | AC56: =AC34 -> 0 | AD56: =AD34 -> 0 | AF56: =AF34 -> 0 | AG56: =AG34 -> 0
A57: Amortization (6% DB and 94% P) | E57: =E38 -> 0 | F57: =F38 -> 0 | H57: =H38 -> 0 | I57: =I38 -> 0 | K57: =K38 -> 0 | L57: =L38 -> 0 | N57: =N38 -> 0 | O57: =O38 -> 0 | Q57: =Q38 -> 0 | R57: =R38 -> 0 | T57: =T38 -> 0 | U57: =U38 -> 0 | W57: =W38 -> 0 | X57: =X38 -> 0 | Z57: =Z38 -> 0 | AA57: =AA38 -> 0 | AC57: =AC38 -> 0 | AD57: =AD38 -> 0 | AF57: =AF38 -> 0 | AG57: =AG38 -> 0
A58: CCA (6% DB and 94% P) | E58: =-E95*$E$19 -> 0 | F58: =-E95*$F$19 -> 0 | H58: =-F95*$E$19 -> 0 | I58: =-F95*$F$19 -> 0 | K58: =-G95*$E$19 -> 0 | L58: =-G95*$F$19 -> 0 | N58: =-H95*$E$19 -> 0 | O58: =-H95*$F$19 -> 0 | Q58: =-I95*$E$19 -> 0 | R58: =-I95*$F$19 -> 0 | T58: =-J95*$E$19 -> 0 | U58: =-J95*$F$19 -> 0 | W58: =-K95*$E$19 -> 0 | X58: =-K95*$F$19 -> 0 | Z58: =-L95*$E$19 -> 0 | AA58: =-L95*$F$19 -> 0 | AC58: =-M95*$E$19 -> 0 | AD58: =-M95*$F$19 -> 0 | AF58: =-N95*$E$19 -> 0 | AG58: =-N95*$F$19 -> 0
A59: Taxable income | E59: =SUM(E56:E58) -> 0 | F59: =SUM(F56:F58) -> 0 | H59: =SUM(H56:H58) -> 0 | I59: 0 | K59: =SUM(K56:K58) -> 0 | L59: 0 | N59: =SUM(N56:N58) -> 0 | O59: 0 | Q59: =SUM(Q56:Q58) -> 0 | R59: 0 | T59: =SUM(T56:T58) -> 0 | U59: 0 | W59: =SUM(W56:W58) -> 0 | X59: 0 | Z59: =SUM(Z56:Z58) -> 0 | AA59: =SUM(AA56:AA58) -> 0 | AC59: =SUM(AC56:AC58) -> 0 | AD59: =SUM(AD56:AD58) -> 0 | AF59: =SUM(AF56:AF58) -> 0 | AG59: =SUM(AG56:AG58) -> 0
A61: Tax Rate (to be entered)
A63: Income Taxes Payable | E63: =E59*E61 -> 0 | F63: =F59*F61 -> 0 | H63: =H59*H61 -> 0 | I63: =I59*I61 -> 0 | K63: =K59*K61 -> 0 | L63: =L59*L61 -> 0 | N63: =N59*N61 -> 0 | O63: =O59*O61 -> 0 | Q63: =Q59*Q61 -> 0 | R63: =R59*R61 -> 0 | T63: =T59*T61 -> 0 | U63: =U59*U61 -> 0 | W63: =W59*W61 -> 0 | X63: =X59*X61 -> 0 | Z63: =Z59*Z61 -> 0 | AA63: =AA59*AA61 -> 0 | AC63: =AC59*AC61 -> 0 | AD63: =AD59*AD61 -> 0 | AF63: =AF59*AF61 -> 0 | AG63: =AG59*AG61 -> 0
A64: Gross Up
A65: Income Taxes Payable | E65: =E63/(1-E61) -> 0 | F65: =F63/(1-F61) -> 0 | H65: =H63/(1-H61) -> 0 | I65: =I63/(1-I61) -> 0 | K65: =K63/(1-K61) -> 0 | L65: =L63/(1-L61) -> 0 | N65: =N63/(1-N61) -> 0 | O65: =O63/(1-O61) -> 0 | Q65: =Q63/(1-Q61) -> 0 | R65: =R63/(1-R61) -> 0 | T65: =T63/(1-T61) -> 0 | U65: =U63/(1-U61) -> 0 | W65: =W63/(1-W61) -> 0 | X65: =X63/(1-X61) -> 0 | Z65: =Z63/(1-Z61) -> 0 | AA65: =AA63/(1-AA61) -> 0 | AC65: =AC63/(1-AC61) -> 0 | AD65: =AD63/(1-AD61) -> 0 | AF65: =AF63/(1-AF61) -> 0 | AG65: =AG63/(1-AG61) -> 0
A66: Grossed Up PILs | E66: =+E65 -> 0 | F66: =+F65 -> 0 | H66: =+H65 -> 0 | I66: =+I65 -> 0 | K66: =+K65 -> 0 | L66: 0 | N66: =+N65 -> 0 | O66: 0 | Q66: =+Q65 -> 0 | R66: 0 | T66: =+T65 -> 0 | U66: 0 | W66: =+W65 -> 0 | X66: 0 | Z66: =+Z65 -> 0 | AA66: 0 | AC66: =+AC65 -> 0 | AD66: 0 | AF66: =+AF65 -> 0 | AG66: 0
J68: Test Year
E69: =F69-1 -> 2016 | F69: =G69-1 -> 2017 | G69: =H69-1 -> 2018 | H69: =I69-1 -> 2019 | I69: =J69-1 -> 2020 | J69: ='LDC Info'!E24 -> 2021 | K69: =J69+1 -> 2022 | L69: =K69+1 -> 2023 | M69: =L69+1 -> 2024 | N69: =M69+1 -> 2025
A70: Net Fixed Assets
A71: Enter applicable amortization in years: | B71: 40
A72: Opening Gross Fixed Assets | F72: =E74 -> 0 | G72: 0 | H72: 0 | I72: 0 | J72: 0 | K72: 0 | L72: 0 | M72: 0 | N72: 0
A73: Capital Additions | E73: ='App.2-FA Proposed REG Invest.'!C99 -> 0 | F73: ='App.2-FA Proposed REG Invest.'!D99 -> 0 | G73: ='App.2-FA Proposed REG Invest.'!E99 -> 0 | H73: ='App.2-FA Proposed REG Invest.'!F99 -> 0 | I73: ='App.2-FA Proposed REG Invest.'!G99 -> 0 | J73: ='App.2-FA Proposed REG Invest.'!H99 -> 0 | K73: ='App.2-FA Proposed REG Invest.'!I99 -> 0 | L73: ='App.2-FA Proposed REG Invest.'!J99 -> 0 | M73: ='App.2-FA Proposed REG Invest.'!K99 -> 0 | N73: ='App.2-FA Proposed REG Invest.'!L99 -> 0
A74: Closing Gross Fixed Assets | E74: =SUM(E72:E73) -> 0 | F74: 0 | G74: 0 | H74: 0 | I74: 0 | J74: 0 | K74: 0 | L74: 0 | M74: 0 | N74: 0
A76: Opening Accumulated Amortization | E76: 0 | F76: =+E79 -> 0 | G76: =+F79 -> 0 | H76: 0 | I76: 0 | J76: 0 | K76: 0 | L76: 0 | M76: 0 | N76: 0
A77: Current Year Amortization (before additions) | E77: =IF(ISERROR(E72/$B$71), 0, E72/$B$71) -> 0 | F77: =IF(ISERROR(F72/$B$71), 0, F72/$B$71) -> 0 | G77: 0 | H77: 0 | I77: 0 | J77: 0 | K77: 0 | L77: 0 | M77: 0 | N77: 0
A78: Capital Additions Amortization (half year) | E78: =E73/$B$71/2 -> 0 | F78: =F73/$B$71/2 -> 0 | G78: 0 | H78: 0 | I78: 0 | J78: 0 | K78: 0 | L78: 0 | M78: 0 | N78: 0
A79: Closing Accumulated Amortization | E79: =SUM(E76+E77+E78) -> 0 | F79: 0 | G79: 0 | H79: 0 | I79: 0 | J79: 0 | K79: 0 | L79: 0 | M79: 0 | N79: 0
A81: Opening Net Fixed Assets | E81: =E72-E76 -> 0 | F81: 0 | G81: 0 | H81: 0 | I81: 0 | J81: 0 | K81: 0 | L81: 0 | M81: 0 | N81: 0
A82: Closing Net Fixed Assets | E82: =E74-E79 -> 0 | F82: 0 | G82: 0 | H82: 0 | I82: 0 | J82: 0 | K82: 0 | L82: 0 | M82: 0 | N82: 0
A83: Average Net Fixed Assets | E83: =SUM(E81:E82)/2 -> 0 | F83: 0 | G83: 0 | H83: 0 | I83: 0 | J83: 0 | K83: 0 | L83: 0 | M83: 0 | N83: 0
A85: UCC for PILs Calculation | J85: =J68 -> Test Year
E86: =E69 -> 2016 | F86: =F69 -> 2017 | G86: =G69 -> 2018 | H86: 2019 | I86: 2020 | J86: 2021 | K86: 2022 | L86: 2023 | M86: 2024 | N86: 2025
A88: Opening UCC | E88: =E72 -> 0 | F88: =E96 -> 0 | G88: 0 | H88: 0 | I88: 0 | J88: 0 | K88: 0 | L88: 0 | M88: 0 | N88: 0
A89: Capital Additions | E89: =E73 -> 0 | F89: 0 | G89: 0 | H89: 0 | I89: 0 | J89: 0 | K89: 0 | L89: 0 | M89: 0 | N89: 0
A90: UCC Before Half Year Rule | E90: =SUM(E88:E89) -> 0 | F90: 0 | G90: 0 | H90: 0 | I90: 0 | J90: 0 | K90: 0 | L90: 0 | M90: 0 | N90: 0
A91: Capital Additions (half year) | E91: =E89/2 -> 0 | F91: 0 | G91: 0 | H91: 0 | I91: 0 | J91: 0 | K91: 0 | L91: 0 | M91: 0 | N91: 0
A92: Reduced UCC | E92: =E90-E91 -> 0 | F92: 0 | G92: 0 | H92: 0 | I92: 0 | J92: 0 | K92: 0 | L92: 0 | M92: 0 | N92: 0
A93: CCA Rate Class (to be entered)
A94: CCA Rate (to be entered)
A95: CCA | E95: =E92*$B$94 -> 0 | F95: =F92*$B$94 -> 0 | G95: 0 | H95: 0 | I95: 0 | J95: 0 | K95: 0 | L95: 0 | M95: 0 | N95: 0
A96: Closing UCC | E96: =E90-E95 -> 0 | F96: 0 | G96: 0 | H96: 0 | I96: 0 | J96: 0 | K96: 0 | L96: 0 | M96: 0 | N96: 0

Sheet App.2-G SQI
M1: File Number: | O1: =EBNUMBER -> EB-2020-0007
M2: Exhibit:
M3: Tab:
M4: Schedule:
M5: Page:
M7: Date:
A9: Appendix 2-G
A10: Service Reliability and Quality Indicators
A13: Service Reliability
A15: Index | B15: Including outages caused by loss of supply | G15: Excluding outages caused by loss of supply | L15: Excluding Major Event Days
B16: =TestYear-6 -> 2015 | C16: =TestYear-5 -> 2016 | D16: =TestYear-4 -> 2017 | E16: =TestYear-3 -> 2018 | F16: =TestYear-2 -> 2019 | G16: =B16 -> 2015 | H16: 2016 | I16: 2017 | J16: 2018 | K16: 2019 | L16: 2015 | M16: 2016 | N16: 2017 | O16: 2018 | P16: 2019
A17: SAIDI | B17: 3.4 | C17: 1.41 | D17: 1.52 | E17: 3.69 | F17: 2.09 | G17: 3.37 | H17: 1.25 | I17: 1.5 | J17: 3.64 | K17: 2.09 | L17: 1.18 | M17: 1.25 | N17: 1.04 | O17: 1.44 | P17: 1.05
A18: SAIFI | B18: 1.14 | C18: 0.94 | D18: 0.96 | E18: 1.63 | F18: 1.42 | G18: 1.07 | H18: 0.79 | I18: 0.91 | J18: 1.41 | K18: 1.42 | L18: 0.71 | M18: 0.79 | N18: 0.64 | O18: 0.85 | P18: 0.75
A20: 5 Year Historical Average
A21: SAIDI | F21: =IF(ISERROR(AVERAGE(B17:F17)), "", AVERAGE(B17:F17)) -> 2.422 | K21: =IF(ISERROR(AVERAGE(G17:K17)), "", AVERAGE(G17:K17)) -> 2.37 | P21: =IF(ISERROR(AVERAGE(L17:P17)), "", AVERAGE(L17:P17)) -> 1.192
A22: SAIFI | F22: =IF(ISERROR(AVERAGE(B18:F18)), "", AVERAGE(B18:F18)) -> 1.218 | K22: =IF(ISERROR(AVERAGE(G18:K18)), "", AVERAGE(G18:K18)) -> 1.12 | P22: =IF(ISERROR(AVERAGE(L18:P18)), "", AVERAGE(L18:P18)) -> 0.748
A24: SAIDI = System Average Interruption Duration Index
A25: SAIFI = System Average Interruption Frequency Index
A27: Service Quality
A29: Indicator | E29: OEB Minimum Standard | G29: =B16 -> 2015 | H29: =C16 -> 2016 | I29: =D16 -> 2017 | J29: =E16 -> 2018 | K29: =F16 -> 2019
A30: Low Voltage Connections | E30: 0.9 | G30: 0.983 | H30: 0.967 | I30: 0.9772 | J30: 0.9831 | K30: 1
A31: High Voltage Connections | E31: 0.9 | K31: 1 | L31: * no HV connections reported in 2015 to 2018
A32: Telephone Accessibility | E32: 0.65 | G32: 0.756 | H32: 0.747 | I32: 0.8013 | J32: 0.8328 | K32: 0.8143
A33: Appointments Met | E33: 0.9 | G33: 0.996 | H33: 1 | I33: 1 | J33: 0.9981 | K33: 1
A34: Written Response to Enquires | E34: 0.8 | G34: 0.979 | H34: 1 | I34: 1 | J34: 0.9901 | K34: 0.9883
A35: Emergency Urban Response | E35: 0.8 | G35: 0.942 | H35: 0.959 | I35: 0.9597 | J35: 0.9231 | K35: 0.9333
A36: Emergency Rural Response | E36: 0.8 | J36: n/a | K36: n/a | L36: ** reported same as urban in years 2015 to 2017 but no rural
A37: Telephone Call Abandon Rate | E37: 0.1 | G37: 0.058 | H37: 0.064 | I37: 0.05 | J37: 0.0587 | K37: 0.0531
A38: Appointment Scheduling | E38: 0.9 | G38: 1 | H38: 1 | I38: 1 | J38: 0.9055 | K38: 0.4587
A39: Rescheduling a Missed Appointment | E39: 1 | G39: 1 | H39: n/a | I39: n/a | J39: 0.9974 | K39: 1
A40: Reconnection Performance Standard | E40: 0.85 | G40: 1 | H40: 1 | I40: 1 | J40: 1 | K40: 1

Sheet App.2-H_Other_Oper_Rev
K1: File Number: | L1: =EBNUMBER -> EB-2020-0007
K2: Exhibit:
K3: Tab:
A4: TO BE UPDATED AT THE DRAFT RATE ORDER STAGE | K4: Schedule:
K5: Page:
K7: Date:
A9: Appendix 2-H
A10: Other Operating Revenue
A12: USoA # | B12: USoA Description | C12: =D13 - 1 &" Actual"&CHAR(178) -> 2012 Actual² | D12: 2013 Actual² | E12: 2014 Actual² | F12: 2015 Actual² | G12: =H13 - 1 &" Actual"&CHAR(178) -> 2016 Actual² | H12: =I13 - 1 &" Actual"&CHAR(178) -> 2017 Actual² | I12: =I13 & " Actual" & CHAR(178) -> 2018 Actual² | J12: =J13& " Actual" -> 2019 Actual | K12: Bridge Year | L12: Test Year | N12: CGAAP
C13: =D13-1 -> 2012 | D13: =E13-1 -> 2013 | E13: =F13-1 -> 2014 | F13: =G13-1 -> 2015 | G13: =H13-1 -> 2016 | H13: =I13-1 -> 2017 | I13: =J13-1 -> 2018 | J13: 2019 | K13: =BridgeYear -> 2020 | L13: =TestYear -> 2021 | N13: 2014
B14: Reporting Basis | E14: MIFRS | F14: MIFRS | G14: MIFRS | H14: MIFRS | I14: MIFRS | J14: MIFRS | K14: MIFRS | L14: MIFRS | N14: CGAAP
A15: 4235 | B15: Specific Service Charges | E15: 830576.8 | F15: 843967.05 | G15: 918255.81 | H15: 784543.73 | I15: 797598.17 | J15: 727126.54 | K15: 876020 | L15: 416359.6 | N15: =E15 -> 830576.8
A16: 4225 | B16: Late Payment Charges | E16: 265005.61 | F16: 263719.25 | G16: 278227.17 | H16: 271656.45 | I16: 304816.42 | J16: 263964.77 | K16: 286000 | L16: 294000 | N16: =E16 -> 265005.61
A17: 4082 | B17: Retail Services Revenues | E17: 25834.94 | F17: 29654.5 | G17: 26345 | H17: 22661.1 | I17: 19868.9 | J17: 22890.21 | K17: 23520.03 | L17: 23990.4306 | N17: 25834.94
A18: 4084 | B18: STR Revenue | E18: 784.75 | F18: 655.75 | G18: 589.5 | H18: 443.5 | I18: 401 | J18: 476.75 | K18: 539.1 | L18: 549.882 | N18: 784.75
A19: 4086 | B19: SSS Revenue | E19: 189676.08 | F19: 191572.43 | G19: 192822.5 | H19: 195423.2 | I19: 198140.91 | J19: 199651.22 | K19: 200679 | L19: 202041 | N19: 189676.08
A20: 4210 | B20: Rent from Electric Property | E20: 329782.13 | F20: 329782.13 | G20: 329782.13 | H20: 329782.13 | I20: 329782.14 | J20: 329782 | K20: 329800 | L20: 460300 | N20: 329782.13
A21: 4220 | B21: Other Electric Revenue | E21: 77008 | F21: 6346.42 | G21: 150106.27 | H21: 11077.62 | I21: 22527.18 | J21: 9952.72 | K21: 59977 | L21: 12796 | N21: 77008
A22: 4310 | B22: Regulatory Credits | E22: 0 | F22: 55847.87 | G22: 33020.87 | H22: 21400.12 | I22: 332135.16 | J22: 70261.98 | K22: 125668.56 | L22: 27668.56 | N22: 0
A23: 4355 / 4360 | B23: Gain / Loss on Disposition | E23: -169000 | F23: 47971.85 | G23: 24500 | H23: 9181.07 | I23: 35975.69 | J23: -12278.12 | K23: 0 | L23: -98000 | N23: =E23 -> -169000
A24: 4375 | B24: Rev.from Non-Utility Oper. | E24: 485608.3 | F24: 935080.86 | G24: 491154.64 | H24: 470882 | I24: 1588315.42 | J24: 600835.12 | K24: 707115 | L24: 643218 | N24: 485608.3
A25: 4380 | B25: Exp.from Non-Utility Oper. | E25: -474387.17 | F25: -488531.61 | G25: -541508.71 | H25: -556359.59 | I25: -757751.55 | J25: -883510.73 | K25: -522115.79 | L25: -535889.33 | N25: -474387.17
A26: 4390 | B26: Miscellaneous Income | E26: 29793.9 | F26: 345091.35 | G26: 191673.87 | H26: 114773.74 | I26: 169556.36 | J26: 1003988.79 | K26: 483153.55 | L26: 121600 | N26: 29793.9
A27: 4405 | B27: Interest & Dividend Income | E27: 223207.98 | F27: 129350.98 | G27: 101474.66 | H27: 127902.2 | I27: 228208.67 | J27: 281818.76 | K27: 120051.64 | L27: 122452.6728 | N27: 223207.98
A28: 4245 | B28: Gov't Assistance CR to Inc. | E28: 0 | F28: 161982.49 | G28: 188415.52 | H28: 289166.86 | I28: 375497.3 | J28: 477935.69 | K28: 738682.25 | L28: 1198079.79 | N28: 0
A53: Specific Service Charges | C53: =C15 -> 0 | D53: 0 | E53: 830576.8 | F53: 843967.05 | G53: 918255.81 | H53: 784543.73 | I53: 797598.17 | J53: 727126.54 | K53: 876020 | L53: 416359.6 | N53: =N15 -> 830576.8
A54: Late Payment Charges | C54: =C16 -> 0 | D54: 0 | E54: 265005.61 | F54: 263719.25 | G54: 278227.17 | H54: 271656.45 | I54: 304816.42 | J54: 263964.77 | K54: 286000 | L54: 294000 | N54: =N16 -> 265005.61
A55: Other Operating Revenues | E55: =SUM(E17:E21)+E28 -> 623085.9 | F55: =SUM(F17:F21)+F28 -> 719993.72 | G55: 888060.92 | H55: 848554.41 | I55: 946217.43 | J55: 1040688.59 | K55: 1353197.38 | L55: 1897757.103 | N55: =E55 -> 623085.9
A56: Other Income or Deductions | E56: =SUM(E22:E27) -> 95223.01 | F56: 1024811.3 | G56: 300315.33 | H56: 187779.54 | I56: 1596439.75 | J56: 1061115.8 | K56: 913872.96 | L56: 281049.9028 | N56: =E56 -> 95223.01
A57: Total | C57: =SUM(C53:C56) -> 0 | D57: =SUM(D53:D56) -> 0 | E57: =SUM(E53:E56) -> 1813891.32 | F57: =SUM(F53:F56) -> 2852491.32 | G57: =SUM(G53:G56) -> 2384859.23 | H57: 2092534.13 | I57: 3645071.77 | J57: 3092895.7 | K57: 3429090.34 | L57: 2889166.605 | N57: =SUM(N53:N56) -> 1813891.32
A59: Description Account(s)
A60: Specific Service Charges: 4235
A61: Late Payment Charges: 4225
A62: Other Distribution Revenues: 4082, 4084, 4090, 4205, 4210, 4215, 4220, 4230, 4240, 4245
A63: Other Income and Expenses: 4305, 4310, 4315, 4320, 4325, 4330, 4335, 4340, 4345, 4350, 4355, 4357, 4360, 4362, 4365, 4370, 4375, 4380, 4385, 4390, 4395, 4398, 4405, 4410, 4415, 4420
A66: Note: Add all applicable accounts listed above to the table and include all relevant information.
A68: Account Breakdown Details
A70: For each "Other Operating Revenue" and "Other Income or Deductions" Account, a detailed breakdown of the account components is required. See the example below for Account 4405, Interest and Dividend Income. Tables for the detailed breakdowns will be generated after cell B89 is filled in.
A73: Example: Account 4405 - Interest and Dividend Income
C74: =C12 -> 2012 Actual² | D74: 2013 Actual² | E74: 2014 Actual² | F74: 2015 Actual² | G74: 2016 Actual² | H74: 2017 Actual² | I74: 2018 Actual² | J74: 2019 Actual | K74: Bridge Year | L74: Test Year | N74: =N12 -> CGAAP
C75: =C13 -> 2012 | D75: 2013 | E75: 2014 | F75: 2015 | G75: 2016 | H75: 2017 | I75: 2018 | J75: =J13 -> 2019 | K75: =K13 -> 2020 | L75: =L13 -> 2021 | N75: =N13 -> 2014
A76: Reporting Basis | C76: =IF(C14=0, "", C14) ->  | E76: MIFRS | F76: MIFRS | G76: MIFRS | H76: MIFRS | I76: MIFRS | J76: MIFRS | K76: MIFRS | L76: MIFRS | N76: =IF(N14=0, "", N14) -> CGAAP
A77: Short-term Investment Interest
A78: Bank Deposit Interest
A79: Miscellaneous Interest Revenue
A80: etc.1
A83: Total | C83: =SUM(C77:C82) -> 0 | D83: 0 | E83: 0 | F83: 0 | G83: 0 | H83: 0 | I83: 0 | J83: 0 | K83: 0 | L83: 0 | N83: =SUM(N77:N82) -> 0
A86: Notes:
A87: 1 | B87: List and specify any other interest revenue.
A88: 2 | B88: For applicants rebasing under IFRS for the first time, in the transition year (2014) to IFRS, the applicant is to present information in both MIFRS and CGAAP. In column N, present CGAAP transition year information.
B89: 11 | C89: Enter the number of "Other Operating Revenue" and "Other Income or Deductions" Accounts that require a detailed breakdown of the account components.
A93: =CONCATENATE(A17," - ",B17) -> 4082 - Retail Services Revenues
C94: =C$12 -> 2012 Actual² | D94: 2013 Actual² | E94: 2014 Actual² | F94: 2015 Actual² | G94: 2016 Actual² | H94: 2017 Actual² | I94: 2018 Actual² | J94: 2019 Actual | K94: Bridge Year | L94: Test Year | N94: =N$12 -> CGAAP
C95: =C$13 -> 2012 | D95: 2013 | E95: 2014 | F95: 2015 | G95: 2016 | H95: 2017 | I95: 2018 | J95: 2019 | K95: 2020 | L95: 2021 | N95: =N$13 -> 2014
A96: Reporting Basis | C96: =IF(C34=0, "", C34) ->  | N96: =IF(N$14=0, "", N$14) -> CGAAP
A97: Retail Services Revenue | E97: =E17 -> 25834.94 | F97: =F17 -> 29654.5 | G97: 26345 | H97: 22661.1 | I97: 19868.9 | J97: 22890.21 | K97: 23520.03 | L97: 23990.4306 | N97: =N17 -> 25834.94
A105: Total | C105: =SUM(C97:C104) -> 0 | D105: 0 | E105: 25834.94 | F105: 29654.5 | G105: 26345 | H105: 22661.1 | I105: 19868.9 | J105: 22890.21 | K105: 23520.03 | L105: 23990.4306 | N105: =SUM(N97:N104) -> 25834.94
A107: =CONCATENATE(A18," - ",B18) -> 4084 - STR Revenue
C108: =C$12 -> 2012 Actual² | D108: 2013 Actual² | E108: 2014 Actual² | F108: 2015 Actual² | G108: 2016 Actual² | H108: 2017 Actual² | I108: 2018 Actual² | J108: 2019 Actual | K108: Bridge Year | L108: Test Year | N108: =N$12 -> CGAAP
C109: =C$13 -> 2012 | D109: 2013 | E109: 2014 | F109: 2015 | G109: 2016 | H109: 2017 | I109: 2018 | J109: 2019 | K109: 2020 | L109: 2021 | N109: =N$13 -> 2014
A110: Reporting Basis | C110: =IF(C48=0, "", C48) ->  | N110: =IF(N$14=0, "", N$14) -> CGAAP
A111: Service Transaction Request Revenue | E111: =E18 -> 784.75 | F111: =F18 -> 655.75 | G111: 589.5 | H111: 443.5 | I111: 401 | J111: 476.75 | K111: 539.1 | L111: 549.882 | N111: =N18 -> 784.75
A119: Total | C119: =SUM(C111:C118) -> 0 | D119: =SUM(D111:D118) -> 0 | E119: =SUM(E111:E118) -> 784.75 | F119: =SUM(F111:F118) -> 655.75 | G119: =SUM(G111:G118) -> 589.5 | H119: =SUM(H111:H118) -> 443.5 | I119: =SUM(I111:I118) -> 401 | J119: =SUM(J111:J118) -> 476.75 | K119: =SUM(K111:K118) -> 539.1 | L119: =SUM(L111:L118) -> 549.882 | N119: =SUM(N111:N118) -> 784.75
A121: =CONCATENATE(A19," - ",B19) -> 4086 - SSS Revenue
C122: =C$12 -> 2012 Actual² | D122: 2013 Actual² | E122: 2014 Actual² | F122: 2015 Actual² | G122: 2016 Actual² | H122: 2017 Actual² | I122: 2018 Actual² | J122: 2019 Actual | K122: Bridge Year | L122: Test Year | N122: =N$12 -> CGAAP
C123: =C$13 -> 2012 | D123: 2013 | E123: 2014 | F123: 2015 | G123: 2016 | H123: 2017 | I123: 2018 | J123: 2019 | K123: 2020 | L123: 2021 | N123: =N$13 -> 2014
A124: Reporting Basis | C124: =IF(C62=0, "", C62) ->  | N124: =IF(N$14=0, "", N$14) -> CGAAP
A125: SSS Admin Fee Revenue | E125: =E19 -> 189676.08 | F125: =F19 -> 191572.43 | G125: 192822.5 | H125: 195423.2 | I125: 198140.91 | J125: 199651.22 | K125: 200679 | L125: 202041 | N125: =N19 -> 189676.08
A133: Total | C133: =SUM(C125:C132) -> 0 | D133: =SUM(D125:D132) -> 0 | E133: =SUM(E125:E132) -> 189676.08 | F133: =SUM(F125:F132) -> 191572.43 | G133: =SUM(G125:G132) -> 192822.5 | H133: =SUM(H125:H132) -> 195423.2 | I133: =SUM(I125:I132) -> 198140.91 | J133: =SUM(J125:J132) -> 199651.22 | K133: =SUM(K125:K132) -> 200679 | L133: =SUM(L125:L132) -> 202041 | N133: =SUM(N125:N132) -> 189676.08
A135: =CONCATENATE(A20," - ",B20) -> 4210 - Rent from Electric Property
C136: =C$12 -> 2012 Actual² | D136: 2013 Actual² | E136: 2014 Actual² | F136: 2015 Actual² | G136: 2016 Actual² | H136: 2017 Actual² | I136: 2018 Actual² | J136: 2019 Actual | K136: Bridge Year | L136: Test Year | N136: =N$12 -> CGAAP
C137: =C$13 -> 2012 | D137: 2013 | E137: 2014 | F137: 2015 | G137: 2016 | H137: 2017 | I137: 2018 | J137: 2019 | K137: 2020 | L137: 2021 | N137: =N$13 -> 2014
A138: Reporting Basis | C138: =IF(C76=0, "", C76) ->  | E138: MIFRS | F138: MIFRS | G138: MIFRS | H138: MIFRS | I138: MIFRS | J138: MIFRS | K138: MIFRS | L138: MIFRS | N138: =IF(N$14=0, "", N$14) -> CGAAP
A139: Pole & Duct Rental Revenue | E139: =E20 -> 329782.13 | F139: =F20 -> 329782.13 | G139: 329782.13 | H139: 329782.13 | I139: 329782.14 | J139: 329782 | K139: 329800 | L139: 460300 | N139: =N20 -> 329782.13
A147: Total | C147: =SUM(C139:C146) -> 0 | D147: =SUM(D139:D146) -> 0 | E147: =SUM(E139:E146) -> 329782.13 | F147: =SUM(F139:F146) -> 329782.13 | G147: =SUM(G139:G146) -> 329782.13 | H147: =SUM(H139:H146) -> 329782.13 | I147: =SUM(I139:I146) -> 329782.14 | J147: =SUM(J139:J146) -> 329782 | K147: =SUM(K139:K146) -> 329800 | L147: =SUM(L139:L146) -> 460300 | N147: =SUM(N139:N146) -> 329782.13
A149: =CONCATENATE(A21," - ",B21) -> 4220 - Other Electric Revenue
C150: =C$12 -> 2012 Actual² | D150: 2013 Actual² | E150: 2014 Actual² | F150: 2015 Actual² | G150: 2016 Actual² | H150: 2017 Actual² | I150: 2018 Actual² | J150: 2019 Actual | K150: Bridge Year | L150: Test Year | N150: =N$12 -> CGAAP
C151: =C$13 -> 2012 | D151: 2013 | E151: 2014 | F151: 2015 | G151: 2016 | H151: 2017 | I151: 2018 | J151: 2019 | K151: 2020 | L151: 2021 | N151: =N$13 -> 2014
A152: Reporting Basis | C152: =IF(C90=0, "", C90) ->  | N152: =IF(N$14=0, "", N$14) -> CGAAP
A153: Purchase Discounts/Fees & Reel Returns | E153: 3232.9 | F153: 2552.42 | G153: 2595.27 | H153: 824.01 | I153: -278.75 | J153: 8140 | K153: -23 | L153: -404 | N153: 3232.9
A154: Subdivision Admin Fees Revenue | E154: 73775.1 | F154: 3794 | G154: 147511 | H154: 10253.61 | I154: 22805.93 | J154: 1812.72 | K154: 60000 | L154: 13200 | N154: 73775.1
A161: Total | C161: =SUM(C153:C160) -> 0 | D161: =SUM(D153:D160) -> 0 | E161: =SUM(E153:E160) -> 77008 | F161: =SUM(F153:F160) -> 6346.42 | G161: =SUM(G153:G160) -> 150106.27 | H161: =SUM(H153:H160) -> 11077.62 | I161: =SUM(I153:I160) -> 22527.18 | J161: =SUM(J153:J160) -> 9952.72 | K161: =SUM(K153:K160) -> 59977 | L161: =SUM(L153:L160) -> 12796 | N161: =SUM(N153:N160) -> 77008
A163: =CONCATENATE(A22," - ",B22) -> 4310 - Regulatory Credits
C164: =C$12 -> 2012 Actual² | D164: 2013 Actual² | E164: 2014 Actual² | F164: 2015 Actual² | G164: 2016 Actual² | H164: 2017 Actual² | I164: 2018 Actual² | J164: 2019 Actual | K164: Bridge Year | L164: Test Year | N164: =N$12 -> CGAAP
C165: =C$13 -> 2012 | D165: 2013 | E165: 2014 | F165: 2015 | G165: 2016 | H165: 2017 | I165: 2018 | J165: 2019 | K165: 2020 | L165: 2021 | N165: =N$13 -> 2014
A166: Reporting Basis | C166: =IF(C104=0, "", C104) ->  | N166: =IF(N$14=0, "", N$14) -> CGAAP
A167: IFRS-CGAAP Transitional PP&E Amounts | E167: =E22 -> 0 | F167: =F22 -> 55847.87 | G167: 33020.87 | H167: 21400.12 | I167: 332135.16 | J167: 70261.98 | K167: 125668.56 | L167: 27668.56 | N167: =N22 -> 0
A175: Total | C175: =SUM(C167:C174) -> 0 | D175: =SUM(D167:D174) -> 0 | E175: =SUM(E167:E174) -> 0 | F175: =SUM(F167:F174) -> 55847.87 | G175: =SUM(G167:G174) -> 33020.87 | H175: =SUM(H167:H174) -> 21400.12 | I175: =SUM(I167:I174) -> 332135.16 | J175: =SUM(J167:J174) -> 70261.98 | K175: =SUM(K167:K174) -> 125668.56 | L175: =SUM(L167:L174) -> 27668.56 | N175: =SUM(N167:N174) -> 0
A177: =CONCATENATE(A23," - ",B23) -> 4355 / 4360 - Gain / Loss on Disposition
C178: =C$12 -> 2012 Actual² | D178: 2013 Actual² | E178: 2014 Actual² | F178: 2015 Actual² | G178: 2016 Actual² | H178: 2017 Actual² | I178: 2018 Actual² | J178: 2019 Actual | K178: Bridge Year | L178: Test Year | N178: =N$12 -> CGAAP
C179: =C$13 -> 2012 | D179: 2013 | E179: 2014 | F179: 2015 | G179: 2016 | H179: 2017 | I179: 2018 | J179: 2019 | K179: 2020 | L179: 2021 | N179: =N$13 -> 2014
A180: Reporting Basis | C180: =IF(C118=0, "", C118) ->  | N180: =IF(N$14=0, "", N$14) -> CGAAP
A181: Loss on Disposal of Property | E181: =E23-E182 -> -169000 | F181: =F23-F182 -> 0 | G181: 0 | H181: 0 | I181: 0 | J181: -12278.12 | K181: 0 | L181: -98000 | N181: =N23 -> -169000
A182: Gain on Disposal of Property | E182: 0 | F182: 47971.85 | G182: 24500 | H182: 9181.07 | I182: 35975.69 | J182: 0 | K182: 0 | L182: 0
A189: Total | C189: =SUM(C181:C188) -> 0 | D189: =SUM(D181:D188) -> 0 | E189: =SUM(E181:E188) -> -169000 | F189: =SUM(F181:F188) -> 47971.85 | G189: =SUM(G181:G188) -> 24500 | H189: =SUM(H181:H188) -> 9181.07 | I189: =SUM(I181:I188) -> 35975.69 | J189: =SUM(J181:J188) -> -12278.12 | K189: =SUM(K181:K188) -> 0 | L189: =SUM(L181:L188) -> -98000 | N189: =SUM(N181:N188) -> -169000
A191: =CONCATENATE(A24," - ",B24) -> 4375 - Rev.from Non-Utility Oper.
C192: =C$12 -> 2012 Actual² | D192: 2013 Actual² | E192: 2014 Actual² | F192: 2015 Actual² | G192: 2016 Actual² | H192: 2017 Actual² | I192: 2018 Actual² | J192: 2019 Actual | K192: Bridge Year | L192: Test Year | N192: =N$12 -> CGAAP
C193: =C$13 -> 2012 | D193: 2013 | E193: 2014 | F193: 2015 | G193: 2016 | H193: 2017 | I193: 2018 | J193: 2019 | K193: 2020 | L193: 2021 | N193: =N$13 -> 2014
A194: Reporting Basis | C194: =IF(C132=0, "", C132) ->  | N194: =IF(N$14=0, "", N$14) -> CGAAP
A195: Water & Wastewater Billing Services Rev | E195: 361592.64 | F195: 380080.02 | G195: 384502.63 | H195: 395684.63 | I195: 399321.44 | J195: 390267.45 | K195: 401000 | L195: 402734 | N195: =E195 -> 361592.64
A196: Intercompany Accounting Services | E196: 4000 | F196: 4000 | G196: 4000 | H196: 4000 | I196: 4000 | J196: 4000 | K196: 17000 | L196: 18000 | N196: 4000
A197: Connection Impact Assessment Revenue | E197: 3227.7 | F197: 5000 | G197: -15000 | H197: 5000 | I197: 0 | J197: 650 | K197: 0 | L197: 0 | N197: 3227.7
A198: CDM Program Revenue | E198: 38384.96 | F198: 494596.84 | G198: 65652.01 | H198: 11726.09 | I198: 929328.38 | J198: 40717.67 | K198: 70000 | L198: 0 | N198: 38384.96
A199: BESI Control Room Services | E199: 0 | F199: 0 | G199: 0 | H199: 0 | I199: =110000+91743.12 -> 201743.12 | J199: 110000 | K199: 157000 | L199: 159000 | N199: 0
A200: BESI Management Services | E200: 78403 | F200: 51404 | G200: 52000 | H200: 54471 | I200: 53922 | J200: 55200 | K200: 62115 | L200: 63484 | N200: 78403
A203: Total | C203: =SUM(C195:C202) -> 0 | D203: =SUM(D195:D202) -> 0 | E203: =SUM(E195:E202) -> 485608.3 | F203: =SUM(F195:F202) -> 935080.86 | G203: =SUM(G195:G202) -> 491154.64 | H203: =SUM(H195:H202) -> 470881.72 | I203: =SUM(I195:I202) -> 1588314.94 | J203: =SUM(J195:J202) -> 600835.12 | K203: =SUM(K195:K202) -> 707115 | L203: =SUM(L195:L202) -> 643218 | N203: =SUM(N195:N202) -> 485608.3
A205: =CONCATENATE(A25," - ",B25) -> 4380 - Exp.from Non-Utility Oper.
C206: =C$12 -> 2012 Actual² | D206: 2013 Actual² | E206: 2014 Actual² | F206: 2015 Actual² | G206: 2016 Actual² | H206: 2017 Actual² | I206: 2018 Actual² | J206: 2019 Actual | K206: Bridge Year | L206: Test Year | N206: =N$12 -> CGAAP
C207: =C$13 -> 2012 | D207: 2013 | E207: 2014 | F207: 2015 | G207: 2016 | H207: 2017 | I207: 2018 | J207: 2019 | K207: 2020 | L207: 2021 | N207: =N$13 -> 2014
A208: Reporting Basis | C208: =IF(C146=0, "", C146) ->  | N208: =IF(N$14=0, "", N$14) -> CGAAP
A209: Water & Wastewater Billing Services Exp | E209: =(121880.37+84112.38+88527.04)*-1 -> -294519.79 | F209: =(121789.59+88452.69+91302.35)*-1 -> -301544.63 | G209: =(117988.88+90303.13+90860.41)*-1 -> -299152.42 | H209: =(119159.96+95025.22+95415.4)*-1 -> -309600.58 | I209: =(122463.89+97551.87+95855.54)*-1 -> -315871.3 | J209: =(128376.36+92544.54+98888.63)*-1 -> -319809.53 | K209: -299858.79 | L209: -309230.01 | N209: =E209 -> -294519.79
A210: Management Oversight (Directors' Fees) | E210: =(282490.7-200651.28)*-1 -> -81839.42 | F210: =(279328.65-203041.63)*-1-1041.63 -> -77328.65 | G210: =(308243.45-223887.16)*-1 -> -84356.29 | H210: =(388914.39-309675.6)*-1 -> -79238.79 | I210: =(407069.93-337068.61)*-1 -> -70001.32 | J210: =55110.13*-1 -> -55110.13 | K210: 0 | L210: 0 | N210: =E210 -> -81839.42
A211: Intercompany Accounting Services | E211: =(2000+2000)*-1 -> -4000 | F211: =(2000+2000)*-1 -> -4000 | G211: -4000 | H211: -4000 | I211: -4000 | J211: -4000 | K211: -15885 | L211: -17042 | N211: -4000
A212: CDM Program Exp/COB Addt'l Pole Chrge | E212: =5625*-1 -> -5625 | F212: =7795.96*-1+1041.63 -> -6754.33 | G212: 0 | H212: =7048.94*-1 -> -7048.94 | I212: =21020.33*-1 -> -21020.33 | J212: =146139.19*-1+102058.88*-1 -> -248198.07 | K212: 0 | L212: 0 | N212: -5625
A213: BESI Control Room Services | E213: 0 | F213: 0 | G213: 0 | H213: 0 | I213: -190936.12 | J213: -99193 | K213: -147638 | L213: -148977 | N213: 0
A214: BESI Management Services | E214: -78403 | F214: -51404 | G214: -52000 | H214: -54471 | I214: -53922 | J214: -55200 | K214: -58734 | L214: -60640.32 | N214: -78403
A215: Heating Supply and Back-up Generation | E215: 0 | F215: -42500 | G215: -102000 | H215: -102000 | I215: -102000 | J215: -102000 | K215: 0 | L215: 0 | N215: 0
A216: GSC Membership | E216: -10000 | F216: -5000 | G216: 0 | H216: 0 | I216: 0 | J216: 0 | K216: 0 | L216: 0 | N216: -10000
A217: Total | C217: =SUM(C209:C216) -> 0 | D217: =SUM(D209:D216) -> 0 | E217: =SUM(E209:E216) -> -474387.21 | F217: =SUM(F209:F216) -> -488531.61 | G217: =SUM(G209:G216) -> -541508.71 | H217: =SUM(H209:H216) -> -556359.31 | I217: =SUM(I209:I216) -> -757751.07 | J217: =SUM(J209:J216) -> -883510.73 | K217: =SUM(K209:K216) -> -522115.79 | L217: =SUM(L209:L216) -> -535889.33 | N217: =SUM(N209:N216) -> -474387.21
A219: =CONCATENATE(A26," - ",B26) -> 4390 - Miscellaneous Income
C220: =C$12 -> 2012 Actual² | D220: 2013 Actual² | E220: 2014 Actual² | F220: 2015 Actual² | G220: 2016 Actual² | H220: 2017 Actual² | I220: 2018 Actual² | J220: 2019 Actual | K220: Bridge Year | L220: Test Year | N220: =N$12 -> CGAAP
C221: =C$13 -> 2012 | D221: 2013 | E221: 2014 | F221: 2015 | G221: 2016 | H221: 2017 | I221: 2018 | J221: 2019 | K221: 2020 | L221: 2021 | N221: =N$13 -> 2014
A222: Reporting Basis | C222: =IF(C160=0, "", C160) ->  | N222: =IF(N$14=0, "", N$14) -> CGAAP
A223: Scrap Material Revenue | E223: 20884.2 | F223: 49890.32 | G223: 87641.99 | H223: 49310.69 | I223: 38794.63 | J223: 34325.68 | K223: 9153.55 | L223: 40800 | N223: =E223 -> 20884.2
A224: Project Material Hdlg Chrge/Site Mob.Fee | E224: 0 | F224: 0 | G224: 0 | H224: 0 | I224: 0 | J224: 0 | K224: 474000 | L224: 80800 | N224: =E224 -> 0
A225: Recovery of Bad Debt (prior period) | E225: 0 | F225: 0 | G225: 0 | H225: 0 | I225: 0 | J225: 260716.2 | K225: 0 | L225: 0 | N225: 0
A226: Prior Period CDM Indirect Cost Recovery | E226: 0 | F226: 0 | G226: 0 | H226: 0 | I226: 0 | J226: 574047.54 | K226: 0 | L226: 0 | N226: 0
A227: SRED Benefit | E227: 125876 | F227: 0 | G227: 41457 | H227: 44550 | I227: 64482 | J227: 97754 | K227: 0 | L227: 0 | N227: 125876
A228: CGAAP Accounting Change | E228: -140199 | G228: 0 | H228: 0 | I228: 0 | J228: 0 | K228: 0 | L228: 0 | N228: -140199
A229: Rev.C.C. Retroactive Adj.(EB-2014-0059) | E229: 0 | F229: 268239 | G229: 0 | H229: 0 | I229: 0 | J229: 0 | K229: 0 | L229: 0 | N229: 0
A230: Other Miscellaneous Income | E230: =29793.9-SUM(E223:E229) -> 23232.7 | F230: =345091.35-SUM(F223:F229) -> 26962.03 | G230: =191673.87-SUM(G223:G229) -> 62574.88 | H230: =114773.74-SUM(H223:H229) -> 20913.05 | I230: =169556.36-SUM(I223:I229) -> 66279.73 | J230: =1003988.79-SUM(J223:J229) -> 37145.37 | K230: =483153.55-SUM(K223:K229) -> 0 | L230: =121600-SUM(L223:L229) -> 0 | N230: 23232.7
A231: Total | C231: =SUM(C223:C230) -> 0 | D231: =SUM(D223:D230) -> 0 | E231: =SUM(E223:E230) -> 29793.9 | F231: =SUM(F223:F230) -> 345091.35 | G231: =SUM(G223:G230) -> 191673.87 | H231: =SUM(H223:H230) -> 114773.74 | I231: =SUM(I223:I230) -> 169556.36 | J231: =SUM(J223:J230) -> 1003988.79 | K231: =SUM(K223:K230) -> 483153.55 | L231: =SUM(L223:L230) -> 121600 | N231: =SUM(N223:N230) -> 29793.9
A233: =CONCATENATE(A27," - ",B27) -> 4405 - Interest & Dividend Income
C234: =C$12 -> 2012 Actual² | D234: 2013 Actual² | E234: 2014 Actual² | F234: 2015 Actual² | G234: 2016 Actual² | H234: 2017 Actual² | I234: 2018 Actual² | J234: 2019 Actual | K234: Bridge Year | L234: Test Year | N234: =N$12 -> CGAAP
C235: =C$13 -> 2012 | D235: 2013 | E235: 2014 | F235: 2015 | G235: 2016 | H235: 2017 | I235: 2018 | J235: 2019 | K235: 2020 | L235: 2021 | N235: =N$13 -> 2014
A236: Reporting Basis | C236: =IF(C174=0, "", C174) ->  | N236: =IF(N$14=0, "", N$14) -> CGAAP
A237: Bank Account Interest Earned | E237: 252750.4 | F237: 157168.75 | G237: 124034.29 | H237: 164492.12 | I237: 295586.36 | J237: 379594.88 | K237: 168276.14 | L237: 171641.6628 | N237: =E237 -> 252750.4
A238: Deposit Interest Expense | E238: -29542.42 | F238: -27817.77 | G238: -22559.63 | H238: -36589.92 | I238: -67377.69 | J238: -82050.62 | K238: -48224.5 | L238: -49188.99 | N238: =E238 -> -29542.42
A239: Customer Billing Adj. Interest Expense | E239: 0 | F239: 0 | G239: 0 | H239: 0 | I239: 0 | J239: -15725.5 | K239: 0 | L239: 0 | N239: =E239 -> 0
A245: Total | C245: =SUM(C237:C244) -> 0 | D245: =SUM(D237:D244) -> 0 | E245: =SUM(E237:E244) -> 223207.98 | F245: =SUM(F237:F244) -> 129350.98 | G245: =SUM(G237:G244) -> 101474.66 | H245: =SUM(H237:H244) -> 127902.2 | I245: =SUM(I237:I244) -> 228208.67 | J245: =SUM(J237:J244) -> 281818.76 | K245: =SUM(K237:K244) -> 120051.64 | L245: =SUM(L237:L244) -> 122452.6728 | N245: =SUM(N237:N244) -> 223207.98
C248: =C$12 -> 2012 Actual² | D248: 2013 Actual² | E248: 2014 Actual² | F248: 2015 Actual² | G248: 2016 Actual² | H248: 2017 Actual² | I248: 2018 Actual² | J248: 2019 Actual | K248: Bridge Year | L248: Test Year | N248: =N$12 -> CGAAP
C249: =C$13 -> 2012 | D249: 2013 | E249: 2014 | F249: 2015 | G249: 2016 | H249: 2017 | I249: 2018 | J249: 2019 | K249: 2020 | L249: 2021 | N249: =N$13 -> 2014
A250: Reporting Basis | C250: =IF(C188=0, "", C188) ->  | N250: =IF(N$14=0, "", N$14) -> CGAAP
A259: Total | C259: =SUM(C251:C258) -> 0 | D259: =SUM(D251:D258) -> 0 | E259: =SUM(E251:E258) -> 0 | F259: =SUM(F251:F258) -> 0 | G259: =SUM(G251:G258) -> 0 | H259: =SUM(H251:H258) -> 0 | I259: =SUM(I251:I258) -> 0 | J259: =SUM(J251:J258) -> 0 | K259: =SUM(K251:K258) -> 0 | L259: =SUM(L251:L258) -> 0 | N259: =SUM(N251:N258) -> 0
C262: =C$12 -> 2012 Actual² | D262: 2013 Actual² | E262: 2014 Actual² | F262: 2015 Actual² | G262: 2016 Actual² | H262: 2017 Actual² | I262: 2018 Actual² | J262: 2019 Actual | K262: Bridge Year | L262: Test Year | N262: =N$12 -> CGAAP
C263: =C$13 -> 2012 | D263: 2013 | E263: 2014 | F263: 2015 | G263: 2016 | H263: 2017 | I263: 2018 | J263: 2019 | K263: 2020 | L263: 2021 | N263: =N$13 -> 2014
A264: Reporting Basis | C264: =IF(C202=0, "", C202) ->  | N264: =IF(N$14=0, "", N$14) -> CGAAP
A273: Total | C273: =SUM(C265:C272) -> 0 | D273: =SUM(D265:D272) -> 0 | E273: =SUM(E265:E272) -> 0 | F273: =SUM(F265:F272) -> 0 | G273: =SUM(G265:G272) -> 0 | H273: =SUM(H265:H272) -> 0 | I273: =SUM(I265:I272) -> 0 | J273: =SUM(J265:J272) -> 0 | K273: =SUM(K265:K272) -> 0 | L273: =SUM(L265:L272) -> 0 | N273: =SUM(N265:N272) -> 0
C276: =C$12 -> 2012 Actual² | D276: 2013 Actual² | E276: 2014 Actual² | F276: 2015 Actual² | G276: 2016 Actual² | H276: 2017 Actual² | I276: 2018 Actual² | J276: 2019 Actual | K276: Bridge Year | L276: Test Year | N276: =N$12 -> CGAAP
C277: =C$13 -> 2012 | D277: 2013 | E277: 2014 | F277: 2015 | G277: 2016 | H277: 2017 | I277: 2018 | J277: 2019 | K277: 2020 | L277: 2021 | N277: =N$13 -> 2014
A278: Reporting Basis | C278: =IF(C216=0, "", C216) ->  | E278: -10000 | F278: -5000 | N278: =IF(N$14=0, "", N$14) -> CGAAP
A287: Total | C287: =SUM(C279:C286) -> 0 | D287: =SUM(D279:D286) -> 0 | E287: =SUM(E279:E286) -> 0 | F287: =SUM(F279:F286) -> 0 | G287: =SUM(G279:G286) -> 0 | H287: =SUM(H279:H286) -> 0 | I287: =SUM(I279:I286) -> 0 | J287: =SUM(J279:J286) -> 0 | K287: =SUM(K279:K286) -> 0 | L287: =SUM(L279:L286) -> 0 | N287: =SUM(N279:N286) -> 0
C290: =C$12 -> 2012 Actual² | D290: 2013 Actual² | E290: 2014 Actual² | F290: 2015 Actual² | G290: 2016 Actual² | H290: 2017 Actual² | I290: 2018 Actual² | J290: 2019 Actual | K290: Bridge Year | L290: Test Year | N290: =N$12 -> CGAAP
C291: =C$13 -> 2012 | D291: 2013 | E291: 2014 | F291: 2015 | G291: 2016 | H291: 2017 | I291: 2018 | J291: 2019 | K291: 2020 | L291: 2021 | N291: =N$13 -> 2014
A292: Reporting Basis | C292: =IF(C230=0, "", C230) ->  | E292: 23232.7 | F292: 26962.03 | G292: 62574.88 | H292: 20913.05 | I292: 66279.73 | J292: 37145.37 | N292: =IF(N$14=0, "", N$14) -> CGAAP
A301: Total | C301: =SUM(C293:C300) -> 0 | D301: =SUM(D293:D300) -> 0 | E301: =SUM(E293:E300) -> 0 | F301: =SUM(F293:F300) -> 0 | G301: =SUM(G293:G300) -> 0 | H301: =SUM(H293:H300) -> 0 | I301: =SUM(I293:I300) -> 0 | J301: =SUM(J293:J300) -> 0 | K301: =SUM(K293:K300) -> 0 | L301: =SUM(L293:L300) -> 0 | N301: =SUM(N293:N300) -> 0
C304: =C$12 -> 2012 Actual² | D304: 2013 Actual² | E304: 2014 Actual² | F304: 2015 Actual² | G304: 2016 Actual² | H304: 2017 Actual² | I304: 2018 Actual² | J304: 2019 Actual | K304: Bridge Year | L304: Test Year | N304: =N$12 -> CGAAP
C305: =C$13 -> 2012 | D305: 2013 | E305: 2014 | F305: 2015 | G305: 2016 | H305: 2017 | I305: 2018 | J305: 2019 | K305: 2020 | L305: 2021 | N305: =N$13 -> 2014
A306: Reporting Basis | C306: =IF(C244=0, "", C244) ->  | N306: =IF(N$14=0, "", N$14) -> CGAAP
A315: Total | C315: =SUM(C307:C314) -> 0 | D315: =SUM(D307:D314) -> 0 | E315: =SUM(E307:E314) -> 0 | F315: =SUM(F307:F314) -> 0 | G315: =SUM(G307:G314) -> 0 | H315: =SUM(H307:H314) -> 0 | I315: =SUM(I307:I314) -> 0 | J315: =SUM(J307:J314) -> 0 | K315: =SUM(K307:K314) -> 0 | L315: =SUM(L307:L314) -> 0 | N315: =SUM(N307:N314) -> 0
C318: =C$12 -> 2012 Actual² | D318: 2013 Actual² | E318: 2014 Actual² | F318: 2015 Actual² | G318: 2016 Actual² | H318: 2017 Actual² | I318: 2018 Actual² | J318: 2019 Actual | K318: Bridge Year | L318: Test Year | N318: =N$12 -> CGAAP
C319: =C$13 -> 2012 | D319: 2013 | E319: 2014 | F319: 2015 | G319: 2016 | H319: 2017 | I319: 2018 | J319: 2019 | K319: 2020 | L319: 2021 | N319: =N$13 -> 2014
A320: Reporting Basis | C320: =IF(C258=0, "", C258) ->  | N320: =IF(N$14=0, "", N$14) -> CGAAP
A329: Total | C329: =SUM(C321:C328) -> 0 | D329: =SUM(D321:D328) -> 0 | E329: =SUM(E321:E328) -> 0 | F329: =SUM(F321:F328) -> 0 | G329: =SUM(G321:G328) -> 0 | H329: =SUM(H321:H328) -> 0 | I329: =SUM(I321:I328) -> 0 | J329: =SUM(J321:J328) -> 0 | K329: =SUM(K321:K328) -> 0 | L329: =SUM(L321:L328) -> 0 | N329: =SUM(N321:N328) -> 0
C332: =C$12 -> 2012 Actual² | D332: 2013 Actual² | E332: 2014 Actual² | F332: 2015 Actual² | G332: 2016 Actual² | H332: 2017 Actual² | I332: 2018 Actual² | J332: 2019 Actual | K332: Bridge Year | L332: Test Year | N332: =N$12 -> CGAAP
C333: =C$13 -> 2012 | D333: 2013 | E333: 2014 | F333: 2015 | G333: 2016 | H333: 2017 | I333: 2018 | J333: 2019 | K333: 2020 | L333: 2021 | N333: =N$13 -> 2014
A334: Reporting Basis | C334: =IF(C272=0, "", C272) ->  | N334: =IF(N$14=0, "", N$14) -> CGAAP
A343: Total | C343: =SUM(C335:C342) -> 0 | D343: =SUM(D335:D342) -> 0 | E343: =SUM(E335:E342) -> 0 | F343: =SUM(F335:F342) -> 0 | G343: =SUM(G335:G342) -> 0 | H343: =SUM(H335:H342) -> 0 | I343: =SUM(I335:I342) -> 0 | J343: =SUM(J335:J342) -> 0 | K343: =SUM(K335:K342) -> 0 | L343: =SUM(L335:L342) -> 0 | N343: =SUM(N335:N342) -> 0
C346: =C$12 -> 2012 Actual² | D346: 2013 Actual² | E346: 2014 Actual² | F346: 2015 Actual² | G346: 2016 Actual² | H346: 2017 Actual² | I346: 2018 Actual² | J346: 2019 Actual | K346: Bridge Year | L346: Test Year | N346: =N$12 -> CGAAP
C347: =C$13 -> 2012 | D347: 2013 | E347: 2014 | F347: 2015 | G347: 2016 | H347: 2017 | I347: 2018 | J347: 2019 | K347: 2020 | L347: 2021 | N347: =N$13 -> 2014
A348: Reporting Basis | C348: =IF(C286=0, "", C286) ->  | N348: =IF(N$14=0, "", N$14) -> CGAAP
A357: Total | C357: =SUM(C349:C356) -> 0 | D357: =SUM(D349:D356) -> 0 | E357: =SUM(E349:E356) -> 0 | F357: =SUM(F349:F356) -> 0 | G357: =SUM(G349:G356) -> 0 | H357: =SUM(H349:H356) -> 0 | I357: =SUM(I349:I356) -> 0 | J357: =SUM(J349:J356) -> 0 | K357: =SUM(K349:K356) -> 0 | L357: =SUM(L349:L356) -> 0 | N357: =SUM(N349:N356) -> 0
C360: =C$12 -> 2012 Actual² | D360: 2013 Actual² | E360: 2014 Actual² | F360: 2015 Actual² | G360: 2016 Actual² | H360: 2017 Actual² | I360: 2018 Actual² | J360: 2019 Actual | K360: Bridge Year | L360: Test Year | N360: =N$12 -> CGAAP
C361: =C$13 -> 2012 | D361: 2013 | E361: 2014 | F361: 2015 | G361: 2016 | H361: 2017 | I361: 2018 | J361: 2019 | K361: 2020 | L361: 2021 | N361: =N$13 -> 2014
A362: Reporting Basis | C362: =IF(C300=0, "", C300) ->  | N362: =IF(N$14=0, "", N$14) -> CGAAP
A371: Total | C371: =SUM(C363:C370) -> 0 | D371: =SUM(D363:D370) -> 0 | E371: =SUM(E363:E370) -> 0 | F371: =SUM(F363:F370) -> 0 | G371: =SUM(G363:G370) -> 0 | H371: =SUM(H363:H370) -> 0 | I371: =SUM(I363:I370) -> 0 | J371: =SUM(J363:J370) -> 0 | K371: =SUM(K363:K370) -> 0 | L371: =SUM(L363:L370) -> 0 | N371: =SUM(N363:N370) -> 0
C374: =C$12 -> 2012 Actual² | D374: 2013 Actual² | E374: 2014 Actual² | F374: 2015 Actual² | G374: 2016 Actual² | H374: 2017 Actual² | I374: 2018 Actual² | J374: 2019 Actual | K374: Bridge Year | L374: Test Year | N374: =N$12 -> CGAAP
C375: =C$13 -> 2012 | D375: 2013 | E375: 2014 | F375: 2015 | G375: 2016 | H375: 2017 | I375: 2018 | J375: 2019 | K375: 2020 | L375: 2021 | N375: =N$13 -> 2014
A376: Reporting Basis | C376: =IF(C314=0, "", C314) ->  | N376: =IF(N$14=0, "", N$14) -> CGAAP
A385: Total | C385: =SUM(C377:C384) -> 0 | D385: =SUM(D377:D384) -> 0 | E385: =SUM(E377:E384) -> 0 | F385: =SUM(F377:F384) -> 0 | G385: =SUM(G377:G384) -> 0 | H385: =SUM(H377:H384) -> 0 | I385: =SUM(I377:I384) -> 0 | J385: =SUM(J377:J384) -> 0 | K385: =SUM(K377:K384) -> 0 | L385: =SUM(L377:L384) -> 0 | N385: =SUM(N377:N384) -> 0
C388: =C$12 -> 2012 Actual² | D388: 2013 Actual² | E388: 2014 Actual² | F388: 2015 Actual² | G388: 2016 Actual² | H388: 2017 Actual² | I388: 2018 Actual² | J388: 2019 Actual | K388: Bridge Year | L388: Test Year | N388: =N$12 -> CGAAP
C389: =C$13 -> 2012 | D389: 2013 | E389: 2014 | F389: 2015 | G389: 2016 | H389: 2017 | I389: 2018 | J389: 2019 | K389: 2020 | L389: 2021 | N389: =N$13 -> 2014
A390: Reporting Basis | C390: =IF(C328=0, "", C328) ->  | N390: =IF(N$14=0, "", N$14) -> CGAAP
A399: Total | C399: =SUM(C391:C398) -> 0 | D399: =SUM(D391:D398) -> 0 | E399: =SUM(E391:E398) -> 0 | F399: =SUM(F391:F398) -> 0 | G399: =SUM(G391:G398) -> 0 | H399: =SUM(H391:H398) -> 0 | I399: =SUM(I391:I398) -> 0 | J399: =SUM(J391:J398) -> 0 | K399: =SUM(K391:K398) -> 0 | L399: =SUM(L391:L398) -> 0 | N399: =SUM(N391:N398) -> 0
C402: =C$12 -> 2012 Actual² | D402: 2013 Actual² | E402: 2014 Actual² | F402: 2015 Actual² | G402: 2016 Actual² | H402: 2017 Actual² | I402: 2018 Actual² | J402: 2019 Actual | K402: Bridge Year | L402: Test Year | N402: =N$12 -> CGAAP
C403: =C$13 -> 2012 | D403: 2013 | E403: 2014 | F403: 2015 | G403: 2016 | H403: 2017 | I403: 2018 | J403: 2019 | K403: 2020 | L403: 2021 | N403: =N$13 -> 2014
A404: Reporting Basis | C404: =IF(C342=0, "", C342) ->  | N404: =IF(N$14=0, "", N$14) -> CGAAP
A413: Total | C413: =SUM(C405:C412) -> 0 | D413: =SUM(D405:D412) -> 0 | E413: =SUM(E405:E412) -> 0 | F413: =SUM(F405:F412) -> 0 | G413: =SUM(G405:G412) -> 0 | H413: =SUM(H405:H412) -> 0 | I413: =SUM(I405:I412) -> 0 | J413: =SUM(J405:J412) -> 0 | K413: =SUM(K405:K412) -> 0 | L413: =SUM(L405:L412) -> 0 | N413: =SUM(N405:N412) -> 0
C416: =C$12 -> 2012 Actual² | D416: 2013 Actual² | E416: 2014 Actual² | F416: 2015 Actual² | G416: 2016 Actual² | H416: 2017 Actual² | I416: 2018 Actual² | J416: 2019 Actual | K416: Bridge Year | L416: Test Year | N416: =N$12 -> CGAAP
C417: =C$13 -> 2012 | D417: 2013 | E417: 2014 | F417: 2015 | G417: 2016 | H417: 2017 | I417: 2018 | J417: 2019 | K417: 2020 | L417: 2021 | N417: =N$13 -> 2014
A418: Reporting Basis | C418: =IF(C356=0, "", C356) ->  | N418: =IF(N$14=0, "", N$14) -> CGAAP
A427: Total | C427: =SUM(C419:C426) -> 0 | D427: =SUM(D419:D426) -> 0 | E427: =SUM(E419:E426) -> 0 | F427: =SUM(F419:F426) -> 0 | G427: =SUM(G419:G426) -> 0 | H427: =SUM(H419:H426) -> 0 | I427: =SUM(I419:I426) -> 0 | J427: =SUM(J419:J426) -> 0 | K427: =SUM(K419:K426) -> 0 | L427: =SUM(L419:L426) -> 0 | N427: =SUM(N419:N426) -> 0
C430: =C$12 -> 2012 Actual² | D430: 2013 Actual² | E430: 2014 Actual² | F430: 2015 Actual² | G430: 2016 Actual² | H430: 2017 Actual² | I430: 2018 Actual² | J430: 2019 Actual | K430: Bridge Year | L430: Test Year | N430: =N$12 -> CGAAP
C431: =C$13 -> 2012 | D431: 2013 | E431: 2014 | F431: 2015 | G431: 2016 | H431: 2017 | I431: 2018 | J431: 2019 | K431: 2020 | L431: 2021 | N431: =N$13 -> 2014
A432: Reporting Basis | C432: =IF(C370=0, "", C370) ->  | N432: =IF(N$14=0, "", N$14) -> CGAAP
A441: Total | C441: =SUM(C433:C440) -> 0 | D441: =SUM(D433:D440) -> 0 | E441: =SUM(E433:E440) -> 0 | F441: =SUM(F433:F440) -> 0 | G441: =SUM(G433:G440) -> 0 | H441: =SUM(H433:H440) -> 0 | I441: =SUM(I433:I440) -> 0 | J441: =SUM(J433:J440) -> 0 | K441: =SUM(K433:K440) -> 0 | L441: =SUM(L433:L440) -> 0 | N441: =SUM(N433:N440) -> 0
C444: =C$12 -> 2012 Actual² | D444: 2013 Actual² | E444: 2014 Actual² | F444: 2015 Actual² | G444: 2016 Actual² | H444: 2017 Actual² | I444: 2018 Actual² | J444: 2019 Actual | K444: Bridge Year | L444: Test Year | N444: =N$12 -> CGAAP
C445: =C$13 -> 2012 | D445: 2013 | E445: 2014 | F445: 2015 | G445: 2016 | H445: 2017 | I445: 2018 | J445: 2019 | K445: 2020 | L445: 2021 | N445: =N$13 -> 2014
A446: Reporting Basis | C446: =IF(C384=0, "", C384) ->  | N446: =IF(N$14=0, "", N$14) -> CGAAP
A455: Total | C455: =SUM(C447:C454) -> 0 | D455: =SUM(D447:D454) -> 0 | E455: =SUM(E447:E454) -> 0 | F455: =SUM(F447:F454) -> 0 | G455: =SUM(G447:G454) -> 0 | H455: =SUM(H447:H454) -> 0 | I455: =SUM(I447:I454) -> 0 | J455: =SUM(J447:J454) -> 0 | K455: =SUM(K447:K454) -> 0 | L455: =SUM(L447:L454) -> 0 | N455: =SUM(N447:N454) -> 0
... 32 more rows

Sheet Hidden_Other Revenue (hidden)
A1: Utility Name | B1: EB Number | C1: Test Year | D1: Bridge Year | E1: Last Rebasing Year | F1: Heading | G1: Year | H1: Amount
A2: ='LDC Info'!$E$14 -> Burlington Hydro Inc. | B2: =EBNUMBER -> EB-2020-0007 | C2: =TestYear -> 2021 | D2: =BridgeYear -> 2020 | E2: =RebaseYear -> 2014 | F2: Specific Service Charges | G2: ='App.2-H_Other_Oper_Rev'!C13 -> 2012 | H2: ='App.2-H_Other_Oper_Rev'!C53 -> 0
A3: ='LDC Info'!$E$14 -> Burlington Hydro Inc. | B3: EB-2020-0007 | C3: 2021 | D3: 2020 | E3: 2014 | F3: Late Payment Charges | G3: ='App.2-H_Other_Oper_Rev'!C13 -> 2012 | H3: ='App.2-H_Other_Oper_Rev'!C54 -> 0
A4: ='LDC Info'!$E$14 -> Burlington Hydro Inc. | B4: EB-2020-0007 | C4: 2021 | D4: 2020 | E4: 2014 | F4: Other Operating Revenues | G4: ='App.2-H_Other_Oper_Rev'!C13 -> 2012 | H4: ='App.2-H_Other_Oper_Rev'!C55 -> 0
A5: ='LDC Info'!$E$14 -> Burlington Hydro Inc. | B5: EB-2020-0007 | C5: 2021 | D5: 2020 | E5: 2014 | F5: Other Income or Deductions | G5: ='App.2-H_Other_Oper_Rev'!C13 -> 2012 | H5: ='App.2-H_Other_Oper_Rev'!C56 -> 0
A6: ='LDC Info'!$E$14 -> Burlington Hydro Inc. | B6: EB-2020-0007 | C6: 2021 | D6: 2020 | E6: 2014 | F6: Specific Service Charges | G6: ='App.2-H_Other_Oper_Rev'!D13 -> 2013 | H6: ='App.2-H_Other_Oper_Rev'!D53 -> 0
A7: ='LDC Info'!$E$14 -> Burlington Hydro Inc. | B7: EB-2020-0007 | C7: 2021 | D7: 2020 | E7: 2014 | F7: Late Payment Charges | G7: ='App.2-H_Other_Oper_Rev'!D13 -> 2013 | H7: ='App.2-H_Other_Oper_Rev'!D54 -> 0
A8: ='LDC Info'!$E$14 -> Burlington Hydro Inc. | B8: EB-2020-0007 | C8: 2021 | D8: 2020 | E8: 2014 | F8: Other Operating Revenues | G8: ='App.2-H_Other_Oper_Rev'!D13 -> 2013 | H8: ='App.2-H_Other_Oper_Rev'!D55 -> 0
A9: ='LDC Info'!$E$14 -> Burlington Hydro Inc. | B9: EB-2020-0007 | C9: 2021 | D9: 2020 | E9: 2014 | F9: Other Income or Deductions | G9: ='App.2-H_Other_Oper_Rev'!D13 -> 2013 | H9: ='App.2-H_Other_Oper_Rev'!D56 -> 0
A10: ='LDC Info'!$E$14 -> Burlington Hydro Inc. | B10: EB-2020-0007 | C10: 2021 | D10: 2020 | E10: 2014 | F10: Specific Service Charges | G10: ='App.2-H_Other_Oper_Rev'!E13 -> 2014 | H10: ='App.2-H_Other_Oper_Rev'!E53 -> 830576.8
A11: ='LDC Info'!$E$14 -> Burlington Hydro Inc. | B11: EB-2020-0007 | C11: 2021 | D11: 2020 | E11: 2014 | F11: Late Payment Charges | G11: ='App.2-H_Other_Oper_Rev'!E13 -> 2014 | H11: ='App.2-H_Other_Oper_Rev'!E54 -> 265005.61
A12: ='LDC Info'!$E$14 -> Burlington Hydro Inc. | B12: EB-2020-0007 | C12: 2021 | D12: 2020 | E12: 2014 | F12: Other Operating Revenues | G12: ='App.2-H_Other_Oper_Rev'!E13 -> 2014 | H12: ='App.2-H_Other_Oper_Rev'!E55 -> 623085.9
A13: ='LDC Info'!$E$14 -> Burlington Hydro Inc. | B13: EB-2020-0007 | C13: 2021 | D13: 2020 | E13: 2014 | F13: Other Income or Deductions | G13: ='App.2-H_Other_Oper_Rev'!E13 -> 2014 | H13: ='App.2-H_Other_Oper_Rev'!E56 -> 95223.01
A14: ='LDC Info'!$E$14 -> Burlington Hydro Inc. | B14: EB-2020-0007 | C14: 2021 | D14: 2020 | E14: 2014 | F14: Specific Service Charges | G14: ='App.2-H_Other_Oper_Rev'!F13 -> 2015 | H14: ='App.2-H_Other_Oper_Rev'!F53 -> 843967.05
A15: ='LDC Info'!$E$14 -> Burlington Hydro Inc. | B15: EB-2020-0007 | C15: 2021 | D15: 2020 | E15: 2014 | F15: Late Payment Charges | G15: ='App.2-H_Other_Oper_Rev'!F13 -> 2015 | H15: ='App.2-H_Other_Oper_Rev'!F54 -> 263719.25
A16: ='LDC Info'!$E$14 -> Burlington Hydro Inc. | B16: EB-2020-0007 | C16: 2021 | D16: 2020 | E16: 2014 | F16: Other Operating Revenues | G16: ='App.2-H_Other_Oper_Rev'!F13 -> 2015 | H16: ='App.2-H_Other_Oper_Rev'!F55 -> 719993.72
A17: ='LDC Info'!$E$14 -> Burlington Hydro Inc. | B17: EB-2020-0007 | C17: 2021 | D17: 2020 | E17: 2014 | F17: Other Income or Deductions | G17: ='App.2-H_Other_Oper_Rev'!F13 -> 2015 | H17: ='App.2-H_Other_Oper_Rev'!F56 -> 1024811.3
A18: ='LDC Info'!$E$14 -> Burlington Hydro Inc. | B18: EB-2020-0007 | C18: 2021 | D18: 2020 | E18: 2014 | F18: Specific Service Charges | G18: ='App.2-H_Other_Oper_Rev'!G13 -> 2016 | H18: ='App.2-H_Other_Oper_Rev'!G53 -> 918255.81
A19: ='LDC Info'!$E$14 -> Burlington Hydro Inc. | B19: EB-2020-0007 | C19: 2021 | D19: 2020 | E19: 2014 | F19: Late Payment Charges | G19: ='App.2-H_Other_Oper_Rev'!G13 -> 2016 | H19: ='App.2-H_Other_Oper_Rev'!G54 -> 278227.17
A20: ='LDC Info'!$E$14 -> Burlington Hydro Inc. | B20: EB-2020-0007 | C20: 2021 | D20: 2020 | E20: 2014 | F20: Other Operating Revenues | G20: ='App.2-H_Other_Oper_Rev'!G13 -> 2016 | H20: ='App.2-H_Other_Oper_Rev'!G55 -> 888060.92
A21: ='LDC Info'!$E$14 -> Burlington Hydro Inc. | B21: EB-2020-0007 | C21: 2021 | D21: 2020 | E21: 2014 | F21: Other Income or Deductions | G21: ='App.2-H_Other_Oper_Rev'!G13 -> 2016 | H21: ='App.2-H_Other_Oper_Rev'!G56 -> 300315.33
A22: ='LDC Info'!$E$14 -> Burlington Hydro Inc. | B22: EB-2020-0007 | C22: 2021 | D22: 2020 | E22: 2014 | F22: Specific Service Charges | G22: ='App.2-H_Other_Oper_Rev'!H13 -> 2017 | H22: ='App.2-H_Other_Oper_Rev'!H53 -> 784543.73
A23: ='LDC Info'!$E$14 -> Burlington Hydro Inc. | B23: EB-2020-0007 | C23: 2021 | D23: 2020 | E23: 2014 | F23: Late Payment Charges | G23: ='App.2-H_Other_Oper_Rev'!H13 -> 2017 | H23: ='App.2-H_Other_Oper_Rev'!H54 -> 271656.45
A24: ='LDC Info'!$E$14 -> Burlington Hydro Inc. | B24: EB-2020-0007 | C24: 2021 | D24: 2020 | E24: 2014 | F24: Other Operating Revenues | G24: ='App.2-H_Other_Oper_Rev'!H13 -> 2017 | H24: ='App.2-H_Other_Oper_Rev'!H55 -> 848554.41
A25: ='LDC Info'!$E$14 -> Burlington Hydro Inc. | B25: EB-2020-0007 | C25: 2021 | D25: 2020 | E25: 2014 | F25: Other Income or Deductions | G25: ='App.2-H_Other_Oper_Rev'!H13 -> 2017 | H25: ='App.2-H_Other_Oper_Rev'!H56 -> 187779.54
A26: ='LDC Info'!$E$14 -> Burlington Hydro Inc. | B26: EB-2020-0007 | C26: 2021 | D26: 2020 | E26: 2014 | F26: Specific Service Charges | G26: ='App.2-H_Other_Oper_Rev'!I13 -> 2018 | H26: ='App.2-H_Other_Oper_Rev'!I53 -> 797598.17
A27: ='LDC Info'!$E$14 -> Burlington Hydro Inc. | B27: EB-2020-0007 | C27: 2021 | D27: 2020 | E27: 2014 | F27: Late Payment Charges | G27: ='App.2-H_Other_Oper_Rev'!I13 -> 2018 | H27: ='App.2-H_Other_Oper_Rev'!I54 -> 304816.42
A28: ='LDC Info'!$E$14 -> Burlington Hydro Inc. | B28: EB-2020-0007 | C28: 2021 | D28: 2020 | E28: 2014 | F28: Other Operating Revenues | G28: ='App.2-H_Other_Oper_Rev'!I13 -> 2018 | H28: ='App.2-H_Other_Oper_Rev'!I55 -> 946217.43
A29: ='LDC Info'!$E$14 -> Burlington Hydro Inc. | B29: EB-2020-0007 | C29: 2021 | D29: 2020 | E29: 2014 | F29: Other Income or Deductions | G29: ='App.2-H_Other_Oper_Rev'!I13 -> 2018 | H29: ='App.2-H_Other_Oper_Rev'!I56 -> 1596439.75
A30: ='LDC Info'!$E$14 -> Burlington Hydro Inc. | B30: EB-2020-0007 | C30: 2021 | D30: 2020 | E30: 2014 | F30: Specific Service Charges | G30: ='App.2-H_Other_Oper_Rev'!J13 -> 2019 | H30: ='App.2-H_Other_Oper_Rev'!J53 -> 727126.54
A31: ='LDC Info'!$E$14 -> Burlington Hydro Inc. | B31: EB-2020-0007 | C31: 2021 | D31: 2020 | E31: 2014 | F31: Late Payment Charges | G31: ='App.2-H_Other_Oper_Rev'!J13 -> 2019 | H31: ='App.2-H_Other_Oper_Rev'!J54 -> 263964.77
A32: ='LDC Info'!$E$14 -> Burlington Hydro Inc. | B32: EB-2020-0007 | C32: 2021 | D32: 2020 | E32: 2014 | F32: Other Operating Revenues | G32: ='App.2-H_Other_Oper_Rev'!J13 -> 2019 | H32: ='App.2-H_Other_Oper_Rev'!J55 -> 1040688.59
A33: ='LDC Info'!$E$14 -> Burlington Hydro Inc. | B33: EB-2020-0007 | C33: 2021 | D33: 2020 | E33: 2014 | F33: Other Income or Deductions | G33: ='App.2-H_Other_Oper_Rev'!J13 -> 2019 | H33: ='App.2-H_Other_Oper_Rev'!J56 -> 1061115.8
A34: ='LDC Info'!$E$14 -> Burlington Hydro Inc. | B34: EB-2020-0007 | C34: 2021 | D34: 2020 | E34: 2014 | F34: Specific Service Charges | G34: ='App.2-H_Other_Oper_Rev'!K13 -> 2020 | H34: ='App.2-H_Other_Oper_Rev'!K53 -> 876020
A35: ='LDC Info'!$E$14 -> Burlington Hydro Inc. | B35: EB-2020-0007 | C35: 2021 | D35: 2020 | E35: 2014 | F35: Late Payment Charges | G35: ='App.2-H_Other_Oper_Rev'!K13 -> 2020 | H35: ='App.2-H_Other_Oper_Rev'!K54 -> 286000
A36: ='LDC Info'!$E$14 -> Burlington Hydro Inc. | B36: EB-2020-0007 | C36: 2021 | D36: 2020 | E36: 2014 | F36: Other Operating Revenues | G36: ='App.2-H_Other_Oper_Rev'!K13 -> 2020 | H36: ='App.2-H_Other_Oper_Rev'!K55 -> 1353197.38
A37: ='LDC Info'!$E$14 -> Burlington Hydro Inc. | B37: EB-2020-0007 | C37: 2021 | D37: 2020 | E37: 2014 | F37: Other Income or Deductions | G37: ='App.2-H_Other_Oper_Rev'!K13 -> 2020 | H37: ='App.2-H_Other_Oper_Rev'!K56 -> 913872.96
A38: ='LDC Info'!$E$14 -> Burlington Hydro Inc. | B38: EB-2020-0007 | C38: 2021 | D38: 2020 | E38: 2014 | F38: Specific Service Charges | G38: ='App.2-H_Other_Oper_Rev'!L13 -> 2021 | H38: ='App.2-H_Other_Oper_Rev'!L53 -> 416359.6
A39: ='LDC Info'!$E$14 -> Burlington Hydro Inc. | B39: EB-2020-0007 | C39: 2021 | D39: 2020 | E39: 2014 | F39: Late Payment Charges | G39: ='App.2-H_Other_Oper_Rev'!L13 -> 2021 | H39: ='App.2-H_Other_Oper_Rev'!L54 -> 294000
A40: ='LDC Info'!$E$14 -> Burlington Hydro Inc. | B40: EB-2020-0007 | C40: 2021 | D40: 2020 | E40: 2014 | F40: Other Operating Revenues | G40: ='App.2-H_Other_Oper_Rev'!L13 -> 2021 | H40: ='App.2-H_Other_Oper_Rev'!L55 -> 1897757.103
A41: ='LDC Info'!$E$14 -> Burlington Hydro Inc. | B41: EB-2020-0007 | C41: 2021 | D41: 2020 | E41: 2014 | F41: Other Income or Deductions | G41: ='App.2-H_Other_Oper_Rev'!L13 -> 2021 | H41: ='App.2-H_Other_Oper_Rev'!L56 -> 281049.9028

Sheet App_2-I LF_CDM
G1: File Number: | H1: =EBNUMBER -> EB-2020-0007
G2: Exhibit:
G3: Tab:
G4: Schedule:
G5: Page:
G7: Date:
A9: Appendix 2-I
A10: Load Forecast CDM Adjustment Work Form
A12: Appendix 2-I was initially developed to help determine what would be the amount of CDM savings needed in each year to cumulatively achieve the four year 2011-2014 CDM target. This then determined the amount of kWh (and with translation, kW of demand) savings that were converted into dollar balances for the LRAMVA, and also to determine the related adjustment to the load forecast to account for OPA-reported savings. Beginning in the 2015 year, it was adjusted because the persistence of 2011-2014 CDM programs will be an adjustment to the load forecast in addition to the estimated savings for the first year (2015) for the new 2015-2020 CDM plan. This appendix has been updated for 2020 rate applications to acknowledge that in accordance with the Minister of Energy's March 20, 2019 Directive to the IESO, the Conservation First Framework (CFF) is no longer in effect. As distributors are no longer working towards the former 2015-2020 CDM targets, for 2019 and 2020 activity only CDM projects that are subject to a contractual agreement entered into between the distributor and a customer by April 30, 2019 under a former CFF program should be included in the proposed CDM manual adjustment to the load forecast. Distributors should provide relevant documentation to support the manual adjustments for 2019 and 2020 CDM projects, including the corresponding CFF program, project timelines and projected savings. For any savings from new projects that begin on or after May 1, 2019 that are under the IESO's interim framework (May 1, 2019 to December 31, 2020), distributors should not include these savings as part of the 2020 CDM manual adjustment.
A14: 2019-2020 CDM Activities
A16: For the first year of the new 2015-2020 CDM plan, for simplicity it was assumed that each year's program will achieve an equal amount of new CDM savings. This resulted in each year's program being about 1/6 (or 16.67%) of the cumulative 2015-2020 CDM target for kWh savings. A distributor could have proposed an alternative approach but would have been expected to document in its application why it believes that its proposal is more reasonable. For 2020 rate applications, distributors should ensure that the sum of the results for the 2015 to 2018 program years is consistent with the results provided by the IESO. For 2019 and 2020 program years, the projected CDM savings should not match the distributor's CDM Plan or its 2015-2020 CDM targets. Rather, for 2019 and 2020 CDM activity, distributors should only include the projected CDM savings from projects that are subject to contractual agreements between the distributor and customer made on or before April 30, 2019 under the former CFF.
A18: Former CFF 6 Year (2015-2020) kWh Target*
B20: 2015 | C20: 2016 | D20: 2017 | E20: 2018 | F20: 2019 | G20: 2020 | H20: Total
A21: %
A22: 2015 CDM Programs | G22: =G30/G36 ->  | H22: =H30/H36 -> 
A23: 2016 CDM Programs | G23: =G31/G36 ->  | H23: =H31/H36 -> 
A24: 2017 CDM Programs | G24: =G32/$H$36 ->  | H24: =H32/H36 -> 
A25: 2018 CDM Programs | G25: =G33/$H$36 ->  | H25: =H33/H36 -> 
A26: 2019 CDM Programs | G26: =G34/$H$36 ->  | H26: =H34/H36 -> 
A27: 2020 CDM Programs | G27: =G35/$H$36 ->  | H27: =H35/H36 -> 
A28: Total in Year | B28: =SUM(B22:B27) -> 0 | C28: =SUM(C22:C27) -> 0 | D28: =SUM(D22:D27) -> 0 | E28: =SUM(E22:E25) -> 0 | F28: =SUM(F22:F26) -> 0 | G28: =SUM(G22:G27) ->  | H28: =SUM(H22:H27) -> 
A29: kWh
A30: =A22 -> 2015 CDM Programs | H30: =G30 -> 0
A31: 2016 CDM Programs | H31: 0 | K31: 2011 | L31: 2012 | M31: 2013 | N31: 2014
A32: 2017 CDM Programs | H32: 0 | J32: 2011 CDM Programs | K32: =50% -> 0.5 | L32: 1 | M32: 1 | N32: 1
A33: 2018 CDM Programs | H33: 0 | J33: 2012 CDM Programs | L33: 0.5 | M33: 1 | N33: 1
A34: 2019 CDM Programs | H34: 0 | J34: 2013 CDM Programs | M34: 0.5 | N34: 1
A35: 2020 CDM Programs | H35: 0 | J35: 2014 CDM Programs | N35: 0.5
A36: Total in Year | B36: =SUM(B30:B35) -> 0 | C36: =SUM(C30:C35) -> 0 | D36: =SUM(D30:D35) -> 0 | E36: =SUM(E30:E33) -> 0 | F36: =SUM(F30:F34) -> 0 | G36: =SUM(G30:G35) -> 0 | H36: =A19 -> 0
G37: =IF(G36-H36<>0,"Inputs do no match 2015-20 CDM target","") -> 
A39: *This total will not equal the distributor's former CFF CDM target. Rather, for 2019 and 2020, the distributor should only include the projected savings from projects that are subject to contractual agreements made between the LDC and a customer on or before April 30, 2019 under the former CFF.
A41: Note: The default formulae in the above table assume that the 2015-2020 kWh CDM target is achieved through persistence of CDM savings to the end of 2020. The distributor should enter measured CDM savings for 2015, 2016, 2017 and 2018, and the persistence of 2015, 2016, 2017 and 2018 programs for 2018-2020 in rows 34, 35, 36 and 37. Distributors should rely on the Participant and Cost monthly reports provided by the IESO for 2018 CDM savings which can be entered into row 37. The distributor should include only those projected CDM savings in 2019 and 2020 from projects that it has contractual obligations with a customer on or before April 30, 2019 under the former CFF.
A43: Determination of 2020 Load Forecast Adjustment
